Workbook

Sheet Principal
C9: Informes por Meta | I9: Informes Gráficos
C22: EDITADO POR LA SECRETARÍA DISTRITAL DE PLANEACIÓN

Sheet Promedio Sector (hidden)
A3: Sector relacionado | B3: Nombre Localidad | C3: Promedio de % Avance Acumulado contratado
A4: Sector Ambiente | B4: Antonio Nariño | C4: 0 | E4: =AVERAGE(C4:C23) -> 0.002083333333
B5: Barrios Unidos | C5: 0
B6: Bosa | C6: 0
B7: Chapinero | C7: 0
B8: Ciudad Bolívar | C8: 0
B9: Engativá | C9: 0
B10: Fontibón | C10: 0
B11: Kennedy | C11: 0
B12: La Candelaria | C12: 0
B13: Los Mártires | C13: 0
B14: Puente Aranda | C14: 0
B15: Rafael Uribe Uribe | C15: 0
B16: San Cristóbal | C16: 0
B17: Santa Fe | C17: 0
B18: Suba | C18: 0
B19: Sumapaz | C19: 0
B20: Teusaquillo | C20: 0
B21: Tunjuelito | C21: 0
B22: Usaquén | C22: 0
B23: Usme | C23: 0.04166666667
A24: Total Sector Ambiente | C24: 0.003378378378
A25: Sector Cultura, recreación y deporte | B25: Antonio Nariño | C25: 0 | E25: =AVERAGE(C25:C44) -> 0.0021875
B26: Barrios Unidos | C26: 0
B27: Bosa | C27: 0
B28: Chapinero | C28: 0
B29: Ciudad Bolívar | C29: 0
B30: Engativá | C30: 0
B31: Fontibón | C31: 0
B32: Kennedy | C32: 0
B33: La Candelaria | C33: 0.03333333333
B34: Los Mártires | C34: 0
B35: Puente Aranda | C35: 0.01041666667
B36: Rafael Uribe Uribe | C36: 0
B37: San Cristóbal | C37: 0
B38: Santa Fe | C38: 0
B39: Suba | C39: 0
B40: Sumapaz | C40: 0
B41: Teusaquillo | C41: 0
B42: Tunjuelito | C42: 0
B43: Usaquén | C43: 0
B44: Usme | C44: 0
A45: Total Sector Cultura, recreación y deporte | C45: 0.001477272727
A46: Sector Desarrollo económico, industria y turismo | B46: Engativá | C46: 0 | E46: =AVERAGE(C46:C48) -> 0
B47: La Candelaria | C47: 0
B48: Usme | C48: 0
A49: Total Sector Desarrollo económico, industria y turismo | C49: 0
A50: Sector Educación | B50: Antonio Nariño | C50: 0 | E50: =AVERAGE(C50:C69) -> 0
B51: Barrios Unidos | C51: 0
B52: Bosa | C52: 0
B53: Chapinero | C53: 0
B54: Ciudad Bolívar | C54: 0
B55: Engativá | C55: 0
B56: Fontibón | C56: 0
B57: Kennedy | C57: 0
B58: La Candelaria | C58: 0
B59: Los Mártires | C59: 0
B60: Puente Aranda | C60: 0
B61: Rafael Uribe Uribe | C61: 0
B62: San Cristóbal | C62: 0
B63: Santa Fe | C63: 0
B64: Suba | C64: 0
B65: Sumapaz | C65: 0
B66: Teusaquillo | C66: 0
B67: Tunjuelito | C67: 0
B68: Usaquén | C68: 0
B69: Usme | C69: 0
A70: Total Sector Educación | C70: 0
A71: Sector Gestión pública | B71: Ciudad Bolívar | C71: 0 | E71: =AVERAGE(C71:C74) -> 0
B72: Kennedy | C72: 0
B73: Suba | C73: 0
B74: Sumapaz | C74: 0
A75: Total Sector Gestión pública | C75: 0
A76: Sector Gobierno | B76: Antonio Nariño | C76: 0.15 | E76: =AVERAGE(C76:C95) -> 0.1072806548
B77: Barrios Unidos | C77: 0.0625
B78: Bosa | C78: 0.101
B79: Chapinero | C79: 0.15
B80: Ciudad Bolívar | C80: 0.0625
B81: Engativá | C81: 0.075
B82: Fontibón | C82: 0.0625
B83: Kennedy | C83: 0.05357142857
B84: La Candelaria | C84: 0.15
B85: Los Mártires | C85: 0.0625
B86: Puente Aranda | C86: 0.125
B87: Rafael Uribe Uribe | C87: 0.15
B88: San Cristóbal | C88: 0.125
B89: Santa Fe | C89: 0.15
B90: Suba | C90: 0.08166666667
B91: Sumapaz | C91: 0.140625
B92: Teusaquillo | C92: 0.075
B93: Tunjuelito | C93: 0.125
B94: Usaquén | C94: 0.0625
B95: Usme | C95: 0.18125
A96: Total Sector Gobierno | C96: 0.1044227829
A97: Sector Hábitat | B97: Bosa | C97: 0 | E97: =AVERAGE(C97:C108) -> 0
B98: Chapinero | C98: 0
B99: Ciudad Bolívar | C99: 0
B100: Fontibón | C100: 0
B101: Kennedy | C101: 0
B102: Rafael Uribe Uribe | C102: 0
B103: San Cristóbal | C103: 0
B104: Santa Fe | C104: 0
B105: Suba | C105: 0
B106: Sumapaz | C106: 0
B107: Usaquén | C107: 0
B108: Usme | C108: 0
A109: Total Sector Hábitat | C109: 0
A110: Sector Integración social | B110: Antonio Nariño | C110: 0.0625 | E110: =AVERAGE(C110:C129) -> 0.07105978261
B111: Barrios Unidos | C111: 0.0625
B112: Bosa | C112: 0.0625
B113: Chapinero | C113: 0.0625
B114: Ciudad Bolívar | C114: 0.0625
B115: Engativá | C115: 0.0625
B116: Fontibón | C116: 0.05
B117: Kennedy | C117: 0.0625
B118: La Candelaria | C118: 0.08333333333
B119: Los Mártires | C119: 0.08333333333
B120: Puente Aranda | C120: 0.0625
B121: Rafael Uribe Uribe | C121: 0.125
B122: San Cristóbal | C122: 0
B123: Santa Fe | C123: 0.08333333333
B124: Suba | C124: 0.0625
B125: Sumapaz | C125: 0.1211956522
B126: Teusaquillo | C126: 0.0625
B127: Tunjuelito | C127: 0.0625
B128: Usaquén | C128: 0.125
B129: Usme | C129: 0.0625
A130: Total Sector Integración social | C130: 0.06586654589
A131: Sector Movilidad | B131: Antonio Nariño | C131: 0 | E131: =AVERAGE(C131:C150) -> 0
B132: Barrios Unidos | C132: 0
B133: Bosa | C133: 0
B134: Chapinero | C134: 0
B135: Ciudad Bolívar | C135: 0
B136: Engativá | C136: 0
B137: Fontibón | C137: 0
B138: Kennedy | C138: 0
B139: La Candelaria | C139: 0
B140: Los Mártires | C140: 0
B141: Puente Aranda | C141: 0
B142: Rafael Uribe Uribe | C142: 0
B143: San Cristóbal | C143: 0
B144: Santa Fe | C144: 0
B145: Suba | C145: 0
B146: Sumapaz | C146: 0
B147: Teusaquillo | C147: 0
B148: Tunjuelito | C148: 0
B149: Usaquén | C149: 0
B150: Usme | C150: 0
A151: Total Sector Movilidad | C151: 0
A152: Sector Mujeres | B152: Engativá | C152: 0 | E152: =AVERAGE(C152:C153) -> 0.01302083333
B153: Usaquén | C153: 0.02604166667
A154: Total Sector Mujeres | C154: 0.01302083333
A155: Sector Salud | B155: Antonio Nariño | C155: 0 | E155: =AVERAGE(C155:C174) -> 0
B156: Barrios Unidos | C156: 0
B157: Bosa | C157: 0
B158: Chapinero | C158: 0
B159: Ciudad Bolívar | C159: 0
B160: Engativá | C160: 0
B161: Fontibón | C161: 0
B162: Kennedy | C162: 0
B163: La Candelaria | C163: 0
B164: Los Mártires | C164: 0
B165: Puente Aranda | C165: 0
B166: Rafael Uribe Uribe | C166: 0
B167: San Cristóbal | C167: 0
B168: Santa Fe | C168: 0
B169: Suba | C169: 0
B170: Sumapaz | C170: 0
B171: Teusaquillo | C171: 0
B172: Tunjuelito | C172: 0
B173: Usaquén | C173: 0
B174: Usme | C174: 0
A175: Total Sector Salud | C175: 0
A176: Sector Seguridad, Convivencia y Justicia | B176: Antonio Nariño | C176: 0 | E176: =AVERAGE(C176:C195) -> 0.00625
B177: Barrios Unidos | C177: 0
B178: Bosa | C178: 0
B179: Chapinero | C179: 0
B180: Ciudad Bolívar | C180: 0
B181: Engativá | C181: 0
B182: Fontibón | C182: 0
B183: Kennedy | C183: 0
B184: La Candelaria | C184: 0
B185: Los Mártires | C185: 0
B186: Puente Aranda | C186: 0
B187: Rafael Uribe Uribe | C187: 0
B188: San Cristóbal | C188: 0.125
B189: Santa Fe | C189: 0
B190: Suba | C190: 0
B191: Sumapaz | C191: 0
B192: Teusaquillo | C192: 0
B193: Tunjuelito | C193: 0
B194: Usaquén | C194: 0
B195: Usme | C195: 0
A196: Total Sector Seguridad, Convivencia y Justicia | C196: 0.005681818182
A197: Total general | C197: 0.0300232434

Sheet Gráficas ODS (hidden)
A1: Año_corte | B1: 2020_4 | D1: =VLOOKUP(B1,FECHAS,2,0) -> Diciembre 31 de 2020
A2: Nombre Localidad | B2: Usaquén
A4: Nombre_ODS Conpes 3918 de 2018 | B4: Suma de Total Compromisos 2017-2020
A5: Ciudades y comunidades sostenibles | B5: 25231338189 | D5: =GETPIVOTDATA("Total Compromisos 2017-2020",$A$4,"Nombre_ODS Conpes 3918 de 2018","Ciudades y comunidades sostenibles")/GETPIVOTDATA("Total Compromisos 2017-2020",$A$4) -> 0.1520449119
A6: Educación de calidad | B6: 2913035930 | D6: =GETPIVOTDATA("Suma de Total Compromisos 2017-2020",$A$4,"Nombre_ODS Conpes 3918 de 2018","Educación de calidad")/GETPIVOTDATA("Suma de Total Compromisos 2017-2020",$A$4) -> 0.01755405473
A7: Fin de la pobreza | B7: 16801469642 | D7: =GETPIVOTDATA("Suma de Total Compromisos 2017-2020",$A$4,"Nombre_ODS Conpes 3918 de 2018","Fin de la pobreza")/GETPIVOTDATA("Suma de Total Compromisos 2017-2020",$A$4) -> 0.1012462341
A8: Igualdad de género | B8: 1698311810 | D8: =GETPIVOTDATA("Suma de Total Compromisos 2017-2020",$A$4,"Nombre_ODS Conpes 3918 de 2018","Salud y Bienestar")/GETPIVOTDATA("Suma de Total Compromisos 2017-2020",$A$4) -> 0.004474414034
A9: Salud y Bienestar | B9: 742513855
A10: Industria, innovación e infraestructura | B10: 79486362190
A11: Paz, justicia e instituciones sólidas | B11: 38321441218
A12: Vida de ecosistemas terrestres | B12: 752140355
A13: Total general | B13: 165946613189 | D13: =GETPIVOTDATA("Total Compromisos 2017-2020",$A$4,"Nombre_ODS Conpes 3918 de 2018","Acción por el Clima")/GETPIVOTDATA("Total Compromisos 2017-2020",$A$4) -> 
A19: Año_corte | B19: 2020_4
A20: Nombre Localidad | B20: Usaquén
A22: Nombre_ODS Conpes 3918 de 2018 | B22: Compromisos 2017 | C22: Compromisos 2018 | D22: Compromisos 2019 | E22: Compromisos 2020 | F22: Total 2017-2020
A23: Industria, innovación e infraestructura | B23: 18722267249 | C23: 2.966559193e+10 | D23: 24829652925 | E23: 6268850090 | F23: 79486362190 | G23: 1
A24: Paz, justicia e instituciones sólidas | B24: 5059379094 | C24: 8785040903 | D24: 7159430525 | E24: 17317590696 | F24: 38321441218 | G24: 2
A25: Ciudades y comunidades sostenibles | B25: 4961307244 | C25: 10146762758 | D25: 7682647728 | E25: 2440620459 | F25: 25231338189 | G25: 3
A26: Fin de la pobreza | B26: 1952682000 | C26: 2260123471 | D26: 2573537777 | E26: 10015126394 | F26: 16801469642 | G26: 4
A27: Educación de calidad | B27: 54083333 | C27: 1303745575 | D27: 1470057022 | E27: 85150000 | F27: 2913035930 | G27: 5
A28: Igualdad de género | B28: 101917583 | C28: 785411272 | D28: 351429622 | E28: 459553333 | F28: 1698311810 | G28: 6
A29: Vida de ecosistemas terrestres | B29: 65000000 | C29: 373147500 | D29: 131622855 | E29: 182370000 | F29: 752140355 | G29: 7
A30: Salud y Bienestar | B30: 180000000 | C30: 384301235 | D30: 169892620 | E30: 8320000 | F30: 742513855 | G30: 8
A31: Total general | B31: 31096636503 | C31: 53704124640 | D31: 44368271074 | E31: 36777580972 | F31: 165946613189 | G31: 9
G32: 10

Sheet ODS
B12: Objetivos de Desarrollo Sostenible (ODS) FDL
B14: ='Gráficas ODS'!$D$1 -> Diciembre 31 de 2020
B16: Localidad: | D16: ='Gráficas ODS'!$B$2 -> Usaquén | G16: *Cifras en millones de pesos
B40: Esferas ODS | C40: Codigo_ODS | D40: Nombre_ODS Conpes 3918 de 2018 | E40: Cod_meta ODS | F40: Nombre Meta ODS | G40: Código Proyecto | H40: Meta proyecto | I40: Apropiación inicial POAI 2017 | J40: Compromisos 2017 | K40: Apropiación inicial POAI 2018 | L40: Compromisos 2018 | M40: Apropiación inicial POAI 2019 | N40: Compromisos 2019 | O40: Apropiación inicial POAI 2020 | P40: Compromisos 2020 | Q40: Giros 2020
B41: Personas | C41: 1 | D41: Fin de la pobreza | E41: 1.2 | F41: De aquí a 2030, reducir al menos a la mitad la proporción de hombres, mujeres y niños de todas las edades que viven en la pobreza en todas sus dimensiones con arreglo a las definiciones nacionales | G41: 3-3-1-15-01-03-1571-00 | H41: Beneficiar 950 personas Adultos mayores con subsidio tipo C | I41: 1805469000 | J41: 1466780000 | K41: 1716800000 | L41: 1645910471 | M41: 2069488000 | N41: 1921037777 | O41: 2059859000 | P41: 1422350000 | Q41: 1013206029
B42: Personas | C42: 1 | D42: Fin de la pobreza | E42: 1.2 | F42: De aquí a 2030, reducir al menos a la mitad la proporción de hombres, mujeres y niños de todas las edades que viven en la pobreza en todas sus dimensiones con arreglo a las definiciones nacionales | G42: 3-3-1-15-01-03-1571-00 | H42: Beneficiar 21318 hogares en condición de vulnerabilidad y situación de pobreza a través de ayuda humanitaria transitoria para atender la emergencia sanitaria y sus consecuencias. | I42: 0 | J42: 0 | K42: 0 | L42: 0 | M42: 0 | N42: 0 | O42: 0 | P42: 8259976394 | Q42: 8242020789
B43: Personas | C43: 1 | D43: Fin de la pobreza | E43: 1.3 | F43: Implementar a nivel nacional sistemas y medidas apropiados de protección social para todos, incluidos niveles mínimos, y, de aquí a 2030, lograr una amplia cobertura de las personas pobres y vulnerables | G43: 3-3-1-15-01-03-1566-00 | H43: Beneficiar 836 personas con ayudas técnicas no POS | I43: 485902000 | J43: 485902000 | K43: 614213000 | L43: 614213000 | M43: 650000000 | N43: 652500000 | O43: 530000000 | P43: 332800000 | Q43: 234401869
B44: Personas | C44: 4 | D44: Educación de calidad | E44: 4.2 | F44: De aquí a 2030, asegurar que todas las niñas y todos los niños tengan acceso a servicios de atención y desarrollo en la primera infancia y educación preescolar de calidad, a fin de que estén preparados para la enseñanza primaria. | G44: 3-3-1-15-01-02-1383-00 | H44: Dotar 40 centros de atención a la primera infancia | I44: 257924000 | J44: 0 | K44: 527924000 | L44: 387986185 | M44: 350000000 | N44: 236079066 | O44: 120000000
B45: Personas | C45: 4 | D45: Educación de calidad | E45: 4.3 | F45: De aquí a 2030, asegurar el acceso igualitario de todos los hombres y las mujeres a una formación técnica, profesional y superior de calidad, incluida la enseñanza universitaria. | G45: 3-3-1-15-01-11-1570-00 | H45: Vincular 500 personas en procesos de formación artísticos y culturales | I45: 330295000 | J45: 54083333 | K45: 527500000 | L45: 326267549 | M45: 500000000 | N45: 665063365 | O45: 450000000 | P45: 85150000 | Q45: 53121773
B46: Personas | C46: 4 | D46: Educación de calidad | E46: 4.a | F46: Construir y adecuar instalaciones educativas que tengan en cuenta las necesidades de los niños y las personas con discapacidad y las diferencias de género, y que ofrezcan entornos de aprendizaje seguros, no violentos, inclusivos y eficaces para todos. | G46: 3-3-1-15-01-07-1565-00 | H46: Dotar 12 centros De atención a personas en edad escolar a la primera infancia | I46: 251366000 | J46: 0 | K46: 511366000 | L46: 589491841 | M46: 450000000 | N46: 568914591 | O46: 150000000
B47: Personas | C47: 5 | D47: Igualdad de género | E47: 5.2 | F47: Eliminar todas las formas de violencia contra todas las mujeres y las niñas en los ámbitos público y privado, incluidas la trata y la explotación sexual y otros tipos de explotación | G47: 3-3-1-15-03-20-1577-00 | H47: Beneficiar 3840 personas con estrategias de empoderamiento de la mujer y construcción de nuevas masculinidades, eliminacion de todas formas de violencia de genero y promocion del buen trato | I47: 663883000 | J47: 101917583 | K47: 800000000 | L47: 785411272 | M47: 350000000 | N47: 351429622 | O47: 450000000 | P47: 459553333 | Q47: 163325000
B48: Personas | C48: 11 | D48: Ciudades y comunidades sostenibles | E48: 11.4 | F48: Redoblar los esfuerzos para proteger y salvaguardar el patrimonio cultural y natural del mundo | G48: 3-3-1-15-01-11-1570-00 | H48: Realizar 24 eventos Artísticos y culturales locales | I48: 438274000 | J48: 155554639 | K48: 550000000 | L48: 562662000 | M48: 150000000 | N48: 215046300 | O48: 500000000 | P48: 259546241 | Q48: 17566667
B49: Personas | C49: 11 | D49: Ciudades y comunidades sostenibles | E49: 11.4 | F49: Redoblar los esfuerzos para proteger y salvaguardar el patrimonio cultural y natural del mundo | G49: 3-3-1-15-01-11-1570-00 | H49: Vincular 500 personas en procesos de formación deportiva | I49: 330295000 | J49: 919965607 | K49: 527500000 | L49: 944121121 | M49: 600000000 | N49: 550200000 | O49: 450000000 | P49: 56000000 | Q49: 48600000
B50: Personas | C50: 11 | D50: Ciudades y comunidades sostenibles | E50: 11.5 | F50: De aquí a 2030, reducir significativamente el número de muertes causadas por los desastres, incluidos los relacionados con el agua, y de personas afectadas por ellos, y reducir considerablemente las pérdidas económicas directas provocadas por los desastres en comparación con el producto interno bruto mundial, haciendo especial hincapié en la protección de los pobres y las personas en situaciones de vulnerabilidad | G50: 3-3-1-15-01-04-1576-00 | H50: Beneficiar 220 personas Incoporandolas a territorios seguros | I50: 838476000 | J50: 45850000 | K50: 924876000 | L50: 109723554 | M50: 1000000000 | N50: 1433900967 | O50: 1149646000 | P50: 94148400 | Q50: 70048400
B51: Personas | C51: 11 | D51: Ciudades y comunidades sostenibles | E51: 11.1 | F51: De aquí a 2030, asegurar el acceso de todas las personas a viviendas y servicios básicos adecuados, seguros y asequibles y mejorar los barrios marginales | G51: 3-3-1-15-02-15-1568-00 | H51: Presentar 600 demandas De titulación predial | I51: 161967000 | J51: 0 | K51: 500000000 | L51: 310472084 | M51: 550000000 | N51: 604263596 | O51: 383000000 | P51: 239577000 | Q51: 201367000
B52: Personas | C52: 11 | D52: Ciudades y comunidades sostenibles | E52: 11.1 | F52: De aquí a 2030, asegurar el acceso de todas las personas a viviendas y servicios básicos adecuados, seguros y asequibles y mejorar los barrios marginales | G52: 3-3-1-15-02-15-1568-00 | H52: Presentar 9 estudios Preliminares para la regularización urbanística | I52: 323935000 | J52: 346639468 | K52: 0 | L52: 0 | M52: 0 | N52: 0 | O52: 0
B53: Personas | C53: 11 | D53: Ciudades y comunidades sostenibles | E53: 11.7 | F53: De aquí a 2030, proporcionar acceso universal a zonas verdes y espacios públicos seguros, inclusivos y accesibles, en particular para las mujeres y los niños, las personas de edad y las personas con discapacidad | G53: 3-3-1-15-02-17-1567-00 | H53: Construir 2 parques Vecinales y/o de bolsillo | I53: 841798000 | J53: 643770841 | K53: 3702285000 | L53: 4474838315 | M53: 0 | N53: 0 | O53: 0
B54: Personas | C54: 11 | D54: Ciudades y comunidades sostenibles | E54: 11.7 | F54: De aquí a 2030, proporcionar acceso universal a zonas verdes y espacios públicos seguros, inclusivos y accesibles, en particular para las mujeres y los niños, las personas de edad y las personas con discapacidad | G54: 3-3-1-15-02-17-1567-00 | H54: Intervenir 150 parques Vecinales y/o de bolsillo | I54: 2375521000 | J54: 2557048319 | K54: 0 | L54: 3543880184 | M54: 3449146000 | N54: 4463219825 | O54: 3433098000 | P54: 1499978818 | Q54: 125849333
B55: Personas | C55: 3 | D55: Salud y Bienestar | E55: 3.d | F55: Reforzar la capacidad de todos los países, en particular los países en desarrollo, en materia de alerta temprana, reducción de riesgos y gestión de los riesgos para la salud nacional y mundial | G55: 3-3-1-15-01-11-1570-00 | H55: Realizar 24 eventos De recreación y deporte en la localidad | I55: 438274000 | J55: 180000000 | K55: 550000000 | L55: 384301235 | M55: 150000000 | N55: 169892620 | O55: 400000000 | P55: 8320000 | Q55: 0
B56: Personas | C56: 9 | D56: Industria, innovación e infraestructura | E56: 9.1 | F56: Desarrollar infraestructuras fiables, sostenibles, resilientes y de calidad, incluidas infraestructuras regionales y transfronterizas, para apoyar el desarrollo económico y el bienestar humano, haciendo especial hincapié en el acceso asequible y equitativo para todos | G56: 3-3-1-15-02-18-1572-00 | H56: Construir 11 km/carril de malla vial local | I56: 4979020000 | J56: 0 | K56: 8347863000 | L56: 1330941920 | M56: 9145732000 | N56: 3808149834 | O56: 11440000000
B57: Personas | C57: 9 | D57: Industria, innovación e infraestructura | E57: 9.1 | F57: Desarrollar infraestructuras fiables, sostenibles, resilientes y de calidad, incluidas infraestructuras regionales y transfronterizas, para apoyar el desarrollo económico y el bienestar humano, haciendo especial hincapié en el acceso asequible y equitativo para todos | G57: 3-3-1-15-02-18-1572-00 | H57: Construir 3350 m2 de espacio público | I57: 267786000 | J57: 0 | K57: 0 | L57: 344873201.7 | M57: 5000000000 | N57: 2485911833 | O57: 2860000000
B58: Personas | C58: 9 | D58: Industria, innovación e infraestructura | E58: 9.1 | F58: Desarrollar infraestructuras fiables, sostenibles, resilientes y de calidad, incluidas infraestructuras regionales y transfronterizas, para apoyar el desarrollo económico y el bienestar humano, haciendo especial hincapié en el acceso asequible y equitativo para todos | G58: 3-3-1-15-02-18-1572-00 | H58: Mantener 4400 m2 de espacio público | I58: 215957000 | J58: 105428022 | K58: 4000000000 | L58: 5746915363 | M58: 200000000 | N58: 2909747368 | O58: 433097000 | P58: 500928059 | Q58: 52143359
B59: Personas | C59: 9 | D59: Industria, innovación e infraestructura | E59: 9.1 | F59: Desarrollar infraestructuras fiables, sostenibles, resilientes y de calidad, incluidas infraestructuras regionales y transfronterizas, para apoyar el desarrollo económico y el bienestar humano, haciendo especial hincapié en el acceso asequible y equitativo para todos | G59: 3-3-1-15-02-18-1572-00 | H59: Mantener 48 km/carril de malla vial local | I59: 10365911000 | J59: 18616839227 | K59: 3038725000 | L59: 2.224286144e+10 | M59: 2900000000 | N59: 15625843890 | O59: 2432391000 | P59: 5767922031 | Q59: 209160025
B60: Alianza y justicia | C60: 16 | D60: Paz, justicia e instituciones sólidas | E60: 16.1 | F60: Garantizar el acceso público a la información y proteger las libertades fundamentales, de conformidad con las leyes nacionales y los acuerdos internacionales | G60: 3-3-1-15-03-19-1569-00 | H60: Realizar 4 dotaciones de seguridad | I60: 988749000 | J60: 0 | K60: 2088749000 | L60: 2069419511 | M60: 1424573000 | N60: 1383595090 | O60: 1170000000 | P60: 3897400826 | Q60: 0
B61: Alianza y justicia | C61: 16 | D61: Paz, justicia e instituciones sólidas | E61: 16.1 | F61: Garantizar el acceso público a la información y proteger las libertades fundamentales, de conformidad con las leyes nacionales y los acuerdos internacionales | G61: 3-3-1-15-03-19-1569-00 | H61: Vincular 960 personas a ejercicios de convivencia, seguridad y seguridad vial | I61: 744834000 | J61: 391145832 | K61: 751142000 | L61: 768559650 | M61: 300000000 | N61: 267706885 | O61: 546549000 | P61: 1946360944 | Q61: 420244719
B62: Alianza y justicia | C62: 16 | D62: Paz, justicia e instituciones sólidas | E62: 16.1 | F62: Garantizar el acceso público a la información y proteger las libertades fundamentales, de conformidad con las leyes nacionales y los acuerdos internacionales | G62: 3-3-1-15-07-45-1573-00 | H62: Fortalecer 10 organizaciones, instancias y expresiones sociales ciudadanas | I62: 419891000 | J62: 97300860 | K62: 400000000 | L62: 259300063 | M62: 223719000 | N62: 131919468 | O62: 53000000 | P62: 5857704333 | Q62: 2427676086
B63: Alianza y justicia | C63: 16 | D63: Paz, justicia e instituciones sólidas | E63: 16.1 | F63: Garantizar el acceso público a la información y proteger las libertades fundamentales, de conformidad con las leyes nacionales y los acuerdos internacionales | G63: 3-3-1-15-07-45-1573-00 | H63: Vincular 400 personas En procesos de participación y control social | I63: 215956000 | J63: 3208500 | K63: 515956000 | L63: 374611951 | M63: 200000000 | N63: 167482000 | O63: 397000000 | P63: 292969924 | Q63: 141272667
B64: Alianza y justicia | C64: 16 | D64: Paz, justicia e instituciones sólidas | E64: 16.1 | F64: Garantizar el acceso público a la información y proteger las libertades fundamentales, de conformidad con las leyes nacionales y los acuerdos internacionales | G64: 3-3-1-15-07-45-1574-00 | H64: Construir 1 sede administrativa local | I64: 1349728000 | J64: 64024667 | K64: 2470536000 | L64: 44100000 | M64: 1781000000 | N64: 304770751 | O64: 3500000000 | P64: 20641108 | Q64: 0
B65: Alianza y justicia | C65: 16 | D65: Paz, justicia e instituciones sólidas | E65: 16.1 | F65: Garantizar el acceso público a la información y proteger las libertades fundamentales, de conformidad con las leyes nacionales y los acuerdos internacionales | G65: 3-3-1-15-07-45-1574-00 | H65: Cubrir 11 ediles Con el pago de honorarios | I65: 947364000 | J65: 856330080 | K65: 1002922000 | L65: 900273132 | M65: 0 | N65: 0 | O65: 0
B66: Alianza y justicia | C66: 16 | D66: Paz, justicia e instituciones sólidas | E66: 16.1 | F66: Garantizar el acceso público a la información y proteger las libertades fundamentales, de conformidad con las leyes nacionales y los acuerdos internacionales | G66: 3-3-1-15-07-45-1574-00 | H66: Realizar 1 estrategia De fortalecimiento institucional | I66: 2269955000 | J66: 2853225355 | K66: 2699363000 | L66: 3494692429 | M66: 3449146000 | N66: 3716634518 | O66: 3433098000 | P66: 5004773561 | Q66: 3075488981
B67: Alianza y justicia | C67: 16 | D67: Paz, justicia e instituciones sólidas | E67: 16.1 | F67: Garantizar el acceso público a la información y proteger las libertades fundamentales, de conformidad con las leyes nacionales y los acuerdos internacionales | G67: 3-3-1-15-07-45-1574-00 | H67: Realizar 4 estrategias De inspección, vigilancia y control | I67: 801026000 | J67: 794143800 | K67: 980914000 | L67: 874084167 | M67: 829659000 | N67: 1187321813 | O67: 990239000 | P67: 297740000 | Q67: 253664666
B68: Planeta | C68: 11 | D68: Ciudades y comunidades sostenibles | E68: 11.7 | F68: De aquí a 2030, proporcionar acceso universal a zonas verdes y espacios públicos seguros, inclusivos y accesibles, en particular para las mujeres y los niños, las personas de edad y las personas con discapacidad | G68: 3-3-1-15-06-38-1575-00 | H68: Intervenir 300 m2 De espacio público con acciones de jardinería, muros verdes, paisajismo y/o agricultura urbana | I68: 130351000 | J68: 13750000 | K68: 144898000 | L68: 150000000 | M68: 190000000 | N68: 94532040 | O68: 150000000 | P68: 184900000 | Q68: 16000000
B69: Planeta | C69: 11 | D69: Ciudades y comunidades sostenibles | E69: 11.7 | F69: De aquí a 2030, proporcionar acceso universal a zonas verdes y espacios públicos seguros, inclusivos y accesibles, en particular para las mujeres y los niños, las personas de edad y las personas con discapacidad | G69: 3-3-1-15-06-38-1575-00 | H69: Sembrar y/o intervenir 1000 árboles En la localidad | I69: 115891000 | J69: 278728370 | K69: 133124000 | L69: 51065500 | M69: 190000000 | N69: 321485000 | O69: 200000000 | P69: 106470000 | Q69: 64806000
B70: Planeta | C70: 15 | D70: Vida de ecosistemas terrestres | E70: 15.1 | F70: De aquí a 2020, asegurar la conservación, el restablecimiento y el uso sostenible de los ecosistemas terrestres y los ecosistemas interiores de agua dulce y sus servicios, en particular los bosques, los humedales, las montañas y las zonas áridas, en consonancia con las obligaciones contraídas en virtud de acuerdos internacionales | G70: 3-3-1-15-06-38-1575-00 | H70: Intervenir 10 hectáreas De espacio público con acciones de renaturalización y/o ecourbanismo | I70: 167126000 | J70: 65000000 | K70: 296191000 | L70: 373147500 | M70: 170000000 | N70: 131622855 | O70: 150000000 | P70: 182370000 | Q70: 78451000
B71: Prosperidad | C71: 11 | D71: Ciudades y comunidades sostenibles | E71: 11.4 | F71: Redoblar los esfuerzos para proteger y salvaguardar el patrimonio cultural y natural del mundo | G71: 3-3-1-15-06-38-1575-00 | H71: Implementar 1 estrategia y ejecucion de la politica de protecion y bienestar animal | I71: 0 | J71: 0 | K71: 0 | L71: 0 | M71: 0 | N71: 0 | O71: 0

Sheet Base de Datos MUSI 2017-2020 (hidden)
A1: Código meta proyecto Extendida | B1: No. Localidad | C1: Nombre Localidad | D1: Código Eje/Pilar | E1: Nombre Eje/Pilar | F1: Código Programa | G1: Nombre Programa | H1: Codigo meta Resultado PDD asociada | I1: Nombre meta Resultado PDD asociada | J1: Codigo meta Producto PDD asociada | K1: Nombre meta Producto PDD asociada | L1: Código meta PDL | M1: Nombre meta PDL | N1: Código Proyecto | O1: Nombre Proyecto | P1: Componente | Q1: Tipo de anualización meta proyecto | R1: Código meta proyecto SEGPLAN | S1: Proceso meta proyecto | T1: Magnitud meta proyecto | U1: Unidad de Medida meta proyecto | V1: Descripción meta proyecto | W1: Meta proyecto | X1: Código Línea de inversión | Y1: Línea de Inversión | Z1: Concepto línea de inversión | AA1: Código sector | AB1: Sector relacionado | AC1: Código producto | AD1: Producto PMR | AE1: Código Indicador | AF1: Nombre Indicador | AG1: Cod. PP | AH1: Política Pública Distrital | AI1: Eje Estructurante / Dimensión/ Líneas de Acción / Eje Temático | AJ1: Ponderación de la meta de proyecto | AK1: Suma contratado | AL1: % Avance Acumulado contratado | AM1: % AVANCE CONTRATADO PONDERADO | AN1: Suma Entregado | AO1: % Avance Acumulado Entregado | AP1: % AVANCE ENTREGADO PONDERADO | AQ1: Nivel de avance Contratado | AR1: Nivel de avance Entregado | AS1: Ponderador por Programa | AT1: % AVANCE CONTRATADO POR PROGRAMA | AU1: % AVANCE ENTREGADO POR PROGRAMA | AV1: Poderador por Eje/Pilar | AW1: % AVANCE CONTRATADO POR EJE/PILAR | AX1: % AVANCE ENTREGADO POR EJE/PILAR | AY1: Ponderador por Proyecto | AZ1: % AVANCE CONTRATADO POR PROYECTO | BA1: % AVANCE ENTREGADO POR PROYECTO | BB1: Linea Base | BC1: Año_corte | BD1: Magnitud programada SEGPLAN meta proyecto 2017 (31 DIC) | BE1: Magnitud programada SEGPLAN meta proyecto 2018 (31 DIC) | BF1: Magnitud programada SEGPLAN meta proyecto 2019 (31 DIC) | BG1: Magnitud programada SEGPLAN meta proyecto 2020 (31 DIC) | BH1: Magnitud programada POAI vigencia del corte | BI1: Magnitud programada POAI meta proyecto 2017 | BJ1: Magnitud programada POAI meta proyecto 2018 | BK1: Magnitud programada POAI meta proyecto 2019 | BL1: Magnitud programada POAI meta proyecto 2020 | BM1: Magnitud contratada meta proyecto 2017 | BN1: Magnitud contratada meta proyecto 2018 | BO1: Magnitud contratada meta proyecto 2019 | BP1: Magnitud contratada meta proyecto 2020 | BQ1: Magnitud entregada meta proyecto 2017 | BR1: Magnitud entregada meta proyecto 2018 | BS1: Magnitud entregada meta proyecto 2019 | BT1: Magnitud entregada meta proyecto 2020 | BU1: Condición 2017 | BV1: Condición 2018 | BW1: Condición 2019 | BX1: Condición 2020 | BY1: Apropiación inicial POAI vigencia del corte | BZ1: Apropiacion inicial meta proyecto POAI 2017 | CA1: Apropiación inicial meta proyecto POAI 2018 | CB1: Apropiación inicial meta proyecto POAI 2019 | CC1: Apropiación inicial meta proyecto POAI 2020 | CD1: Compromisos meta proyecto 2017 | CE1: Compromisos meta proyecto 2018 | CF1: Compromisos meta proyecto 2019 | CG1: Compromisos meta proyecto 2020 | CH1: Total Compromisos 2017-2020 | CI1: Giros vigencia del corte | CJ1: Giros meta proyecto 2017 | CK1: Giros meta proyecto 2018 | CL1: Giros meta proyecto 2019 | CM1: Giros meta proyecto 2020 | CN1: Observaciones 2017 | CO1: Observaciones 2018 | CP1: Observaciones 2019 | CQ1: Observaciones 2020 | CR1: Código GEO | CS1: TEMA GEO | CT1: Esferas ODS | CU1: Codigo_ODS | CV1: Nombre_ODS Conpes 3918 de 2018 | CW1: Cod_meta ODS | CX1: Nombre Meta ODS | CY1: % POAI 2017 | CZ1: % POAI 2018 | DA1: % POAI 2019 | DB1: % POAI 2020 | DC1: % Compromisos 2017 | DD1: % Compromisos 2018 | DE1: % Compromisos 2019 | DF1: % Compromisos 2020 | DG1: Anexo
A2: 1 | B2: =VLOOKUP(C2,NUMERO_LOCALIDAD,2,0) -> 1 | C2: Usaquén | D2: =VLOOKUP(E2,RANGO_EJE_PILAR,2,0) -> 1 | E2: Pilar Igualdad de calidad de vida | F2: =VLOOKUP(G2,CODIGO_PROGRAMAS,2,0) -> 2 | G2: Desarrollo integral desde la gestación hasta la adolescencia | H2: 10 | I2: Alcanzar 159.054 cupos para la atención integral de niños y niñas de primera infancia con estándares de calidad superiores al 80% en el ámbito institucional. | J2: 382 | K2: 83.000 cupos para la atención integral de niños y niñas de 4 y 5 años | L2: 1 | M2: Dotar 40 centros de atención a la primera infancia | N2: 3-3-1-15-01-02-1383-00 | O2: Jugando por la paz | P2: DOTACIÓN | Q2: Suma | R2: 1 | S2: Dotar | T2: 40 | U2: centros | V2: de atención a la primera infancia | W2: =CONCATENATE(S2," ",T2," ",U2," ",V2) -> Dotar 40 centros de atención a la primera infancia | X2: =VLOOKUP(Y2,CODIGO_LINEA,2,0) -> 8 | Y2: Dotación | Z2: Dotación pedagógica y adecuación de jardines infantiles | AA2: =VLOOKUP(AB2,CODIGO_SECTOR,2,0) -> 92 | AB2: Sector Integración social | AC2: 2 | AD2: Adecuación , habilitación y dotación de jardines | AE2: =VLOOKUP(AF2,CODIGO_INDICADOR,2,0) -> 2 | AF2: Jardines infantiles dotados | AG2: 38 | AH2: Política Pública de Infancia y Adolescencia de Bogotá D.C. | AI2: 2. Bogotá construye ciudad con los niños y las niñas y los/las adolescentes | AJ2: 0.007707782548 | AK2: =IF(Q2="Constante",AVERAGE(BM2,BN2,BO2,BP2),IF(Q2="Suma",SUM(BM2,BN2,BO2,BP2),0)) -> 0 | AL2: =AK2/T2 -> 0 | AM2: =IF(AL2*AJ2>AJ2,AJ2,AJ2*AL2) -> 0 | AN2: =IF(Q2="Constante",AVERAGE(BQ2,BR2,BS2,BT2),IF(Q2="Suma",SUM(BQ2,BR2,BS2,BT2),0)) -> 0 | AO2: =AN2/T2 -> 0 | AP2: =IF(AO2*AJ2>AJ2,AJ2,AJ2*AO2) -> 0 | AQ2: =IF(AL2<=0.3,"Bajo",IF(AL2<0.7,"Medio",IF(AL2>=0.7,"Alto"))) -> Bajo | AR2: =IF(AO2<=0.3,"Bajo",IF(AO2<0.7,"Medio",IF(AO2>=0.7,"Alto"))) -> Bajo | AS2: =AJ2/SUMIF($F$2:$F$31,F2,$AJ$2:$AJ$31) -> 1 | AT2: =IF(AL2*AS2>AS2,AS2,AS2*AL2) -> 0 | AU2: =IF(AO2*AS2>AS2,AS2,AS2*AO2) -> 0 | AV2: =AJ2/SUMIF($D$2:$D$31,D2,$AJ$2:$AJ$31) -> 0.04982813039 | AW2: =IF(AL2*AV2>AV2,AV2,AV2*AL2) -> 0 | AX2: =IF(AO2*AV2>AV2,AV2,AV2*AO2) -> 0 | AY2: =AJ2/SUMIF($N$2:$N$31,N2,$AJ$2:$AJ$31) -> 1 | AZ2: =IF(AL2*AY2>AY2,AY2,AY2*AL2) -> 0 | BA2: =IF(AO2*AY2>AY2,AY2,AY2*AO2) -> 0 | BB2: 25 | BC2: 2017_1 | BE2: 0 | BF2: 0 | BG2: 0 | BH2: 10 | BI2: 10 | BJ2: 0 | BK2: 0 | BL2: 0 | BM2: 0 | BN2: 0 | BO2: 0 | BP2: 0 | BQ2: 0 | BR2: 0 | BS2: 0 | BT2: 0 | BY2: 257924000 | BZ2: 257924000 | CA2: 0 | CB2: 0 | CC2: 0 | CD2: 0 | CE2: 0 | CF2: 0 | CG2: 0 | CH2: =SUM(CD2:CG2) -> 0 | CI2: 0 | CJ2: 0 | CK2: 0 | CL2: 0 | CM2: 0 | CT2: Personas | CU2: 4 | CV2: Educación de calidad | CW2: 4.2 | CX2: De aquí a 2030, asegurar que todas las niñas y todos los niños tengan acceso a servicios de atención y desarrollo en la primera infancia y educación preescolar de calidad, a fin de que estén preparados para la enseñanza primaria. | CY2: 0.008016735422 | DG2: Anexo 2 (15%)
A3: 2 | B3: 1 | C3: Usaquén | D3: 1 | E3: Pilar Igualdad de calidad de vida | F3: 3 | G3: Igualdad y autonomía para una Bogotá incluyente | H3: 34 | I3: Incrementar a 2.000 personas con discapacidad con procesos de inclusión efectivos en el Distrito. | L3: 2 | M3: Beneficiar 836 personas con ayudas técnicas no POS | N3: 3-3-1-15-01-03-1566-00 | O3: Entre todos y todas nos cuidamos | P3: AYUDAS TÉCNICAS | Q3: Suma | R3: 1 | S3: Beneficiar | T3: 836 | U3: personas | V3: con ayudas técnicas no POS | W3: =CONCATENATE(S3," ",T3," ",U3," ",V3) -> Beneficiar 836 personas con ayudas técnicas no POS | X3: 7 | Y3: Atención a población vulnerable | Z3: Ayudas Técnicas a personas con discapacidad (no incluidas en el POS) | AA3: 91 | AB3: Sector Salud | AC3: 3 | AD3: Promoción, prevención e intervención en salud | AE3: 5 | AF3: Personas beneficiadas con ayudas técnicas no POS | AG3: 40 | AH3: Política Pública de Discapacidad para el Distrito Capital | AI3: 1. Desarrollo de capacidades y oportunidades | AJ3: 0.01452065677 | AK3: 0 | AL3: =AK3/T3 -> 0 | AM3: =IF(AL3*AJ3>AJ3,AJ3,AJ3*AL3) -> 0 | AN3: 0 | AO3: =AN3/T3 -> 0 | AP3: =IF(AO3*AJ3>AJ3,AJ3,AJ3*AO3) -> 0 | AQ3: Bajo | AR3: =IF(AO3<=0.3,"Bajo",IF(AO3<0.7,"Medio",IF(AO3>=0.7,"Alto"))) -> Bajo | AS3: =AJ3/SUMIF($F$2:$F$31,F3,$AJ$2:$AJ$31) -> 0.2120573673 | AT3: =IF(AL3*AS3>AS3,AS3,AS3*AL3) -> 0 | AU3: =IF(AO3*AS3>AS3,AS3,AS3*AO3) -> 0 | AV3: =AJ3/SUMIF($D$2:$D$31,D3,$AJ$2:$AJ$31) -> 0.09387099006 | AW3: =IF(AL3*AV3>AV3,AV3,AV3*AL3) -> 0 | AX3: =IF(AO3*AV3>AV3,AV3,AV3*AO3) -> 0 | AY3: =AJ3/SUMIF($N$2:$N$31,N3,$AJ$2:$AJ$31) -> 1 | AZ3: =IF(AL3*AY3>AY3,AY3,AY3*AL3) -> 0 | BA3: =IF(AO3*AY3>AY3,AY3,AY3*AO3) -> 0 | BB3: 730 | BC3: 2017_1 | BE3: 0 | BF3: 0 | BG3: 0 | BH3: 206 | BI3: 206 | BJ3: 0 | BK3: 0 | BL3: 0 | BM3: 0 | BN3: 0 | BO3: 0 | BP3: 0 | BQ3: 0 | BR3: 0 | BS3: 0 | BT3: 0 | BY3: 485902000 | BZ3: 485902000 | CA3: 0 | CB3: 0 | CC3: 0 | CD3: 0 | CE3: 0 | CF3: 0 | CG3: 0 | CH3: =SUM(CD3:CG3) -> 0 | CI3: 0 | CJ3: 0 | CK3: 0 | CL3: 0 | CM3: 0 | CT3: Personas | CU3: 1 | CV3: Fin de la pobreza | CW3: 1.3 | CX3: Implementar a nivel nacional sistemas y medidas apropiados de protección social para todos, incluidos niveles mínimos, y, de aquí a 2030, lograr una amplia cobertura de las personas pobres y vulnerables | CY3: 0.01510269605 | DG3: Anexo 2 (15%)
A4: 3 | B4: 1 | C4: Usaquén | D4: 1 | E4: Pilar Igualdad de calidad de vida | F4: 3 | G4: Igualdad y autonomía para una Bogotá incluyente | H4: 27 | I4: Incrementar en un 25% la vinculación de personas mayores en procesos de fortalecimiento de sus proyectos de vida a través de los servicios de la SDIS | J4: 306 | K4: Entregar a 90.318 personas mayores en situación de vulnerabilidad socioeconómica apoyos económicos | L4: 3 | M4: Beneficiar 950 personas de la tercera edad con subsidio tipo C | N4: 3-3-1-15-01-03-1571-00 | O4: Te reconozco | P4: SUBSIDIO TIPO C | Q4: Constante | R4: 1 | S4: Beneficiar | T4: 950 | U4: personas | V4: Adultos mayores con subsidio tipo C | W4: Beneficiar 950 personas Adultos mayores con subsidio tipo C | X4: 5 | Y4: Atención a población vulnerable_Subsidio C | Z4: Subsidio C a persona mayor | AA4: 92 | AB4: Sector Integración social | AC4: 2 | AD4: Protección integral a personas y familias en situación de vulneración | AE4: 4 | AF4: Personas con subsidio tipo C beneficiadas | AG4: 39 | AH4: Política Pública Social para el Envejecimiento y la Vejez en el D.C. 2010 - 2026 | AI4: 2. Vivir bien en la vejez | AJ4: 0.05395447784 | AK4: 237.5 | AL4: 0.25 | AM4: 0.01348861946 | AN4: 237.5 | AO4: 0.25 | AP4: 0.01348861946 | AQ4: Bajo | AR4: Bajo | AS4: 0.7879426327 | AT4: 0.1969856582 | AU4: 0.1969856582 | AV4: 0.3487969127 | AW4: 0.08719922818 | AX4: 0.08719922818 | AY4: 1 | AZ4: 0.25 | BA4: 0.25 | BB4: 950 | BC4: 2017_1 | BE4: 0 | BF4: 0 | BG4: 0 | BH4: 950 | BI4: 950 | BJ4: 0 | BK4: 0 | BL4: 0 | BM4: 950 | BN4: 0 | BO4: 0 | BP4: 0 | BQ4: 950 | BR4: 0 | BS4: 0 | BT4: 0 | BY4: 1805469000 | BZ4: 1805469000 | CA4: 0 | CB4: 0 | CC4: 0 | CD4: 931600000 | CE4: 0 | CF4: 0 | CG4: 0 | CH4: 931600000 | CI4: 343266242 | CJ4: 343266242 | CK4: 0 | CL4: 0 | CM4: 0 | CT4: Personas | CU4: 1 | CV4: Fin de la pobreza | CW4: 1.2 | CX4: De aquí a 2030, reducir al menos a la mitad la proporción de hombres, mujeres y niños de todas las edades que viven en la pobreza en todas sus dimensiones con arreglo a las definiciones nacionales | CY4: 0.05611717903 | DG4: Anexo 1 (85%)
A5: 4 | B5: 1 | C5: Usaquén | D5: 1 | E5: Pilar Igualdad de calidad de vida | F5: 4 | G5: Familias protegidas y adaptadas al cambio climático | H5: 50 | I5: Beneficiar a 8.750 familias localizadas en zonas de riesgo mitigable por fenómenos de remoción en masa, con obras de mitigación | J5: 432 | K5: Construcción de 16 obras de mitigación | L5: 4 | M5: Beneficiar 220 personas Incoporandolas a territorios seguros | N5: 3-3-1-15-01-04-1576-00 | O5: Edificando vidas | P5: REASENTAMIENTOS URBANOS | Q5: Suma | R5: 1 | S5: Beneficiar | T5: 220 | U5: personas | V5: Incoporandolas a territorios seguros | W5: Beneficiar 220 personas Incoporandolas a territorios seguros | X5: 15 | Y5: Proyecto estratégico | Z5: Proyecto estratégico | AA5: 94 | AB5: Sector Ambiente | AC5: 24 | AD5: Gestión para la prevención y mitigación del riesgo | AE5: 53 | AF5: Personas beneficiadas | AG5: 34 | AH5: Política Distrital Integral de Vivienda y Hábitat | AI5: 3. Asentamientos humanos y mejoramiento integral de barrios y vivienda | AJ5: 0.02505695345 | AK5: 0 | AL5: 0 | AM5: 0 | AN5: 0 | AO5: 0 | AP5: 0 | AQ5: Bajo | AR5: Bajo | AS5: 1 | AT5: 0 | AU5: 0 | AV5: 0.1619844795 | AW5: 0 | AX5: 0 | AY5: 1 | AZ5: 0 | BA5: 0 | BB5: 120 | BC5: 2017_1 | BE5: 0 | BF5: 0 | BG5: 0 | BH5: 20 | BI5: 20 | BJ5: 0 | BK5: 0 | BL5: 0 | BM5: 0 | BN5: 0 | BO5: 0 | BP5: 0 | BQ5: 0 | BR5: 0 | BS5: 0 | BT5: 0 | BY5: 838476000 | BZ5: 838476000 | CA5: 0 | CB5: 0 | CC5: 0 | CD5: 42000000 | CE5: 0 | CF5: 0 | CG5: 0 | CH5: 42000000 | CI5: 0 | CJ5: 0 | CK5: 0 | CL5: 0 | CM5: 0 | CT5: Personas | CU5: 11 | CV5: Ciudades y comunidades sostenibles | CW5: 11.5 | CX5: De aquí a 2030, reducir significativamente el número de muertes causadas por los desastres, incluidos los relacionados con el agua, y de personas afectadas por ellos, y reducir considerablemente las pérdidas económicas directas provocadas por los desastres en comparación con el producto interno bruto mundial, haciendo especial hincapié en la protección de los pobres y las personas en situaciones de vulnerabilidad | CY5: 0.02606132136 | DG5: Anexo 2 (15%)
A6: 5 | B6: 1 | C6: Usaquén | D6: 1 | E6: Pilar Igualdad de calidad de vida | F6: 7 | G6: Inclusión educativa para la equidad | H6: 105 | I6: Contar con 30 colegios nuevos correspondientes a: 3 en ejecución, 5 en diseño y 22 en gestión de predios. | J6: 407 | K6: 300 sedes de IED con mejoramientos de infraestructura | L6: 5 | M6: Dotar 12 centros De atención a personas en edad escolar | N6: 3-3-1-15-01-07-1565-00 | O6: Inclusión educativa para la paz | P6: DOTACIÓN | Q6: Suma | R6: 1 | S6: Dotar | T6: 12 | U6: centros | V6: De atención a personas en edad escolar a la primera infancia | W6: Dotar 12 centros De atención a personas en edad escolar a la primera infancia | X6: 8 | Y6: Dotación | Z6: Dotación pedagógica a colegios | AA6: 90 | AB6: Sector Educación | AC6: 5 | AD6: Infraestructura y dotación escolar | AE6: 7 | AF6: IED dotados con material pedagógico | AG6: 24 | AH6: Plan Sectorial de Educación 2012-2016 | AI6: 3. Educación Media fortalecida y mayor acceso a la educación superior | AJ6: 0.007511802681 | AK6: 0 | AL6: 0 | AM6: 0 | AN6: 0 | AO6: 0 | AP6: 0 | AQ6: Bajo | AR6: Bajo | AS6: 1 | AT6: 0 | AU6: 0 | AV6: 0.04856118879 | AW6: 0 | AX6: 0 | AY6: 1 | AZ6: 0 | BA6: 0 | BB6: 0 | BC6: 2017_1 | BE6: 0 | BF6: 0 | BG6: 0 | BH6: 3 | BI6: 3 | BJ6: 0 | BK6: 0 | BL6: 0 | BM6: 0 | BN6: 0 | BO6: 0 | BP6: 0 | BQ6: 0 | BR6: 0 | BS6: 0 | BT6: 0 | BY6: 251366000 | BZ6: 251366000 | CA6: 0 | CB6: 0 | CC6: 0 | CD6: 0 | CE6: 0 | CF6: 0 | CG6: 0 | CH6: 0 | CI6: 0 | CJ6: 0 | CK6: 0 | CL6: 0 | CM6: 0 | CT6: Personas | CU6: 4 | CV6: Educación de calidad | CW6: 4.a | CX6: Construir y adecuar instalaciones educativas que tengan en cuenta las necesidades de los niños y las personas con discapacidad y las diferencias de género, y que ofrezcan entornos de aprendizaje seguros, no violentos, inclusivos y eficaces para todos. | CY6: 0.007812901149 | DG6: Anexo 2 (15%)
A7: 6 | B7: 1 | C7: Usaquén | D7: 1 | E7: Pilar Igualdad de calidad de vida | F7: 11 | G7: Mejores oportunidades para el desarrollo a través de la cultura, la recreación y el deporte | H7: 159 | I7: Aumentar a 15% el porcentaje de la población que realiza prácticas culturales | L7: 6 | M7: Realizar 24 de eventos Artísticos y culturales locales | N7: 3-3-1-15-01-11-1570-00 | O7: Equidad en la cultura, recreación y deporte | P7: EVENTOS CULTURALES Y ARTISTICOS | Q7: Suma | R7: 1 | S7: Realizar | T7: 24 | U7: eventos | V7: Artísticos y culturales locales | W7: Realizar 24 eventos Artísticos y culturales locales | X7: 11 | Y7: Eventos artísticos, culturales y deportivos | Z7: Realización de eventos artísticos, culturales y deportivos | AA7: 93 | AB7: Sector Cultura, recreación y deporte | AC7: 12 | AD7: Espacios artísticos y culturales | AE7: 8 | AF7: Eventos artísticos y culturales realizados | AJ7: 0.01309733102 | AK7: 0 | AL7: 0 | AM7: 0 | AN7: 0 | AO7: 0 | AP7: 0 | AQ7: Bajo | AR7: Bajo | AS7: 0.2851231471 | AT7: 0 | AU7: 0 | AV7: 0.08466968465 | AW7: 0 | AX7: 0 | AY7: 0.2851231471 | AZ7: 0 | BA7: 0 | BB7: 21 | BC7: 2017_1 | BE7: 0 | BF7: 0 | BG7: 0 | BH7: 6 | BI7: 6 | BJ7: 0 | BK7: 0 | BL7: 0 | BM7: 0 | BN7: 0 | BO7: 0 | BP7: 0 | BQ7: 0 | BR7: 0 | BS7: 0 | BT7: 0 | BY7: 438274000 | BZ7: 438274000 | CA7: 0 | CB7: 0 | CC7: 0 | CD7: 0 | CE7: 0 | CF7: 0 | CG7: 0 | CH7: 0 | CI7: 0 | CJ7: 0 | CK7: 0 | CL7: 0 | CM7: 0 | CT7: Personas | CU7: 11 | CV7: Ciudades y comunidades sostenibles | CW7: 11.4 | CX7: Redoblar los esfuerzos para proteger y salvaguardar el patrimonio cultural y natural del mundo | CY7: 0.01362233332 | DG7: Anexo 2 (15%)
A8: 7 | B8: 1 | C8: Usaquén | D8: 1 | E8: Pilar Igualdad de calidad de vida | F8: 11 | G8: Mejores oportunidades para el desarrollo a través de la cultura, la recreación y el deporte | H8: 192 | I8: Aumentar a 36% el porcentaje de la población que practica algún deporte | J8: 350 | K8: Realizar torneos interbarriales en 4 deportes | L8: 7 | M8: Realizar 24 eventos De recreación y deporte en la localidad | N8: 3-3-1-15-01-11-1570-00 | O8: Equidad en la cultura, recreación y deporte | P8: EVENTOS RECREATIVOS Y DEPORTIVOS | Q8: Suma | R8: 2 | S8: Realizar | T8: 24 | U8: eventos | V8: De recreación y deporte en la localidad | W8: Realizar 24 eventos De recreación y deporte en la localidad | X8: 11 | Y8: Eventos artísticos, culturales y deportivos | Z8: Realización de eventos artísticos, culturales y deportivos | AA8: 93 | AB8: Sector Cultura, recreación y deporte | AC8: 16 | AD8: Eventos y actividades recreativas y deportivas | AE8: 9 | AF8: Eventos de recreación y deporte realizados | AG8: 9 | AH8: Política Pública de Deporte, Recreación , Actividad Física y Parques para Bogotá 2009-2019, denominada “Bogotá mas activa”. | AI8: 1. Aumentar la participación | AJ8: 0.01309733102 | AK8: 0 | AL8: 0 | AM8: 0 | AN8: 0 | AO8: 0 | AP8: 0 | AQ8: Bajo | AR8: Bajo | AS8: 0.2851231471 | AT8: 0 | AU8: 0 | AV8: 0.08466968465 | AW8: 0 | AX8: 0 | AY8: 0.2851231471 | AZ8: 0 | BA8: 0 | BB8: 24 | BC8: 2017_1 | BE8: 0 | BF8: 0 | BG8: 0 | BH8: 6 | BI8: 6 | BJ8: 0 | BK8: 0 | BL8: 0 | BM8: 0 | BN8: 0 | BO8: 0 | BP8: 0 | BQ8: 0 | BR8: 0 | BS8: 0 | BT8: 0 | BY8: 438274000 | BZ8: 438274000 | CA8: 0 | CB8: 0 | CC8: 0 | CD8: 0 | CE8: 0 | CF8: 0 | CG8: 0 | CH8: 0 | CI8: 0 | CJ8: 0 | CK8: 0 | CL8: 0 | CM8: 0 | CT8: Personas | CU8: 3 | CV8: Salud y Bienestar | CW8: 3.d | CX8: Reforzar la capacidad de todos los países, en particular los países en desarrollo, en materia de alerta temprana, reducción de riesgos y gestión de los riesgos para la salud nacional y mundial | CY8: 0.01362233332 | DG8: Anexo 2 (15%)
A9: 8 | B9: 1 | C9: Usaquén | D9: 1 | E9: Pilar Igualdad de calidad de vida | F9: 11 | G9: Mejores oportunidades para el desarrollo a través de la cultura, la recreación y el deporte | H9: 159 | I9: Aumentar a 15% el porcentaje de la población que realiza prácticas culturales | J9: 352 | K9: Implementar el Sistema Distrital de Formación Artística y Cultural (SIDFAC) | L9: 8 | M9: Vincular 500 personas en procesos de formación artísticos y culturales | N9: 3-3-1-15-01-11-1570-00 | O9: Equidad en la cultura, recreación y deporte | P9: PROCESOS DE FORMACIÓN ARTÍSTICA Y CULTURAL | Q9: Suma | R9: 3 | S9: Vincular | T9: 500 | U9: personas | V9: en procesos de formación artísticos y culturales | W9: Vincular 500 personas en procesos de formación artísticos y culturales | X9: 10 | Y9: Procesos de formación artística, cultural y deportiva | Z9: Procesos de formación en áreas artísticas, en cultura y disciplinas deportivas | AA9: 93 | AB9: Sector Cultura, recreación y deporte | AC9: 13 | AD9: Formación artística y cultural | AE9: 10 | AF9: Personas vinculadas a procesos de formación artística y cultural | AJ9: 0.009870518402 | AK9: 0 | AL9: 0 | AM9: 0 | AN9: 0 | AO9: 0 | AP9: 0 | AQ9: Bajo | AR9: Bajo | AS9: 0.2148768529 | AT9: 0 | AU9: 0 | AV9: 0.06380946464 | AW9: 0 | AX9: 0 | AY9: 0.2148768529 | AZ9: 0 | BA9: 0 | BB9: 1603 | BC9: 2017_1 | BE9: 0 | BF9: 0 | BG9: 0 | BH9: 150 | BI9: 150 | BJ9: 0 | BK9: 0 | BL9: 0 | BM9: 0 | BN9: 0 | BO9: 0 | BP9: 0 | BQ9: 0 | BR9: 0 | BS9: 0 | BT9: 0 | BY9: 330295000 | BZ9: 330295000 | CA9: 0 | CB9: 0 | CC9: 0 | CD9: 54083333 | CE9: 0 | CF9: 0 | CG9: 0 | CH9: 54083333 | CI9: 0 | CJ9: 0 | CK9: 0 | CL9: 0 | CM9: 0 | CT9: Personas | CU9: 4 | CV9: Educación de calidad | CW9: 4.3 | CX9: De aquí a 2030, asegurar el acceso igualitario de todos los hombres y las mujeres a una formación técnica, profesional y superior de calidad, incluida la enseñanza universitaria. | CY9: 0.01026615447 | DG9: Anexo 2 (15%)
A10: 9 | B10: 1 | C10: Usaquén | D10: 1 | E10: Pilar Igualdad de calidad de vida | F10: 11 | G10: Mejores oportunidades para el desarrollo a través de la cultura, la recreación y el deporte | H10: 192 | I10: Aumentar a 36% el porcentaje de la población que practica algún deporte | J10: 349 | K10: Garantizar la asistencia técnica del IDRD a las escuelas de formación deportiva por los Fondos de Desarrollo Local | L10: 9 | M10: Vincular 500 personas en procesos de formación deportiva | N10: 3-3-1-15-01-11-1570-00 | O10: Equidad en la cultura, recreación y deporte | P10: PROCESOS DE FORMACIÓN DEPORTIVA | Q10: Suma | R10: 4 | S10: Vincular | T10: 500 | U10: personas | V10: en procesos de formación deportiva | W10: Vincular 500 personas en procesos de formación deportiva | X10: 10 | Y10: Procesos de formación artística, cultural y deportiva | Z10: Procesos de formación en áreas artísticas, en cultura y disciplinas deportivas | AA10: 93 | AB10: Sector Cultura, recreación y deporte | AC10: 16 | AD10: Eventos y actividades recreativas y deportivas | AE10: 11 | AF10: Personas vinculadas a procesos de formación deportiva | AG10: 9 | AH10: Política Pública de Deporte, Recreación , Actividad Física y Parques para Bogotá 2009-2019, denominada “Bogotá mas activa”. | AI10: 1. Aumentar la participación | AJ10: 0.009870518402 | AK10: 0 | AL10: 0 | AM10: 0 | AN10: 0 | AO10: 0 | AP10: 0 | AQ10: Bajo | AR10: Bajo | AS10: 0.2148768529 | AT10: 0 | AU10: 0 | AV10: 0.06380946464 | AW10: 0 | AX10: 0 | AY10: 0.2148768529 | AZ10: 0 | BA10: 0 | BB10: 500 | BC10: 2017_1 | BE10: 0 | BF10: 0 | BG10: 0 | BH10: 150 | BI10: 150 | BJ10: 0 | BK10: 0 | BL10: 0 | BM10: 0 | BN10: 0 | BO10: 0 | BP10: 0 | BQ10: 0 | BR10: 0 | BS10: 0 | BT10: 0 | BY10: 330295000 | BZ10: 330295000 | CA10: 0 | CB10: 0 | CC10: 0 | CD10: 0 | CE10: 0 | CF10: 0 | CG10: 0 | CH10: 0 | CI10: 0 | CJ10: 0 | CK10: 0 | CL10: 0 | CM10: 0 | CT10: Personas | CU10: 11 | CV10: Ciudades y comunidades sostenibles | CW10: 11.4 | CX10: Redoblar los esfuerzos para proteger y salvaguardar el patrimonio cultural y natural del mundo | CY10: 0.01026615447 | DG10: Anexo 2 (15%)
A11: 10 | B11: 1 | C11: Usaquén | D11: 2 | E11: Pilar Democracia urbana | F11: 15 | G11: Recuperación, incorporación, vida urbana y control de la ilegalidad | H11: 258 | I11: 100% de polígonos identificados de control y prevención, monitoreados en áreas susceptibles de ocupación ilegal | J11: 176 | K11: Monitorear el 100% de polígonos identificados de control y prevención, en áreas susceptibles de ocupación ilegal | L11: 10 | M11: Presentar 600 demandas De titulación predial | N11: 3-3-1-15-02-15-1568-00 | O11: Legalízate | P11: DEMANDAS DE TITULACIÓN | Q11: Suma | R11: 1 | S11: Presentar | T11: 600 | U11: demandas | V11: De titulación predial | W11: Presentar 600 demandas De titulación predial | X11: 4 | Y11: Inspección, vigilancia y control - IVC | Z11: Asesoría para legalización de barrios y titulación de predios | AA11: 96 | AB11: Sector Hábitat | AC11: 19 | AD11: Regulación legalización de predios y apoyo a la vivienda | AE11: 12 | AF11: Demandas de titulación predial presentadas | AG11: 34 | AH11: Política Distrital Integral de Vivienda y Hábitat | AI11: 3. Asentamientos humanos y mejoramiento integral de barrios y vivienda | AJ11: 0.004840218924 | AK11: 0 | AL11: 0 | AM11: 0 | AN11: 0 | AO11: 0 | AP11: 0 | AQ11: Bajo | AR11: Bajo | AS11: 0.3333333333 | AT11: 0 | AU11: 0 | AV11: 0.008292454642 | AW11: 0 | AX11: 0 | AY11: 0.3333333333 | AZ11: 0 | BA11: 0 | BB11: 0 | BC11: 2017_1 | BE11: 0 | BF11: 0 | BG11: 0 | BH11: 0 | BI11: 0 | BJ11: 0 | BK11: 0 | BL11: 0 | BM11: 0 | BN11: 0 | BO11: 0 | BP11: 0 | BQ11: 0 | BR11: 0 | BS11: 0 | BT11: 0 | BY11: 161967000 | BZ11: 161967000 | CA11: 0 | CB11: 0 | CC11: 0 | CD11: 0 | CE11: 0 | CF11: 0 | CG11: 0 | CH11: 0 | CI11: 0 | CJ11: 0 | CK11: 0 | CL11: 0 | CM11: 0 | CT11: Personas | CU11: 11 | CV11: Ciudades y comunidades sostenibles | CW11: 11.1 | CX11: De aquí a 2030, asegurar el acceso de todas las personas a viviendas y servicios básicos adecuados, seguros y asequibles y mejorar los barrios marginales | CY11: 0.005034221655 | DG11: Anexo 1 (85%)
A12: 11 | B12: 1 | C12: Usaquén | D12: 2 | E12: Pilar Democracia urbana | F12: 15 | G12: Recuperación, incorporación, vida urbana y control de la ilegalidad | H12: 258 | I12: 100% de polígonos identificados de control y prevención, monitoreados en áreas susceptibles de ocupación ilegal | J12: 176 | K12: Monitorear el 100% de polígonos identificados de control y prevención, en áreas susceptibles de ocupación ilegal | L12: 11 | M12: Presentar 9 estudios Preliminares para la regularización urbanística | N12: 3-3-1-15-02-15-1568-00 | O12: Legalízate | P12: ESTUDIOS DE REGULARIZACIÓN | Q12: Suma | R12: 2 | S12: Presentar | T12: 9 | U12: estudios | V12: Preliminares para la regularización urbanística | W12: Presentar 9 estudios Preliminares para la regularización urbanística | X12: 4 | Y12: Inspección, vigilancia y control - IVC | Z12: Asesoría para legalización de barrios y titulación de predios | AA12: 96 | AB12: Sector Hábitat | AC12: 19 | AD12: Regulación legalización de predios y apoyo a la vivienda | AE12: 13 | AF12: Estudios preliminares para la regularización urbanística (levantamiento topográficos y análisis de los mismos) a asentamientos de origen informal previamente legalizados y priorizados en los territorios diagnosticados por la SDHT | AG12: 34 | AH12: Política Distrital Integral de Vivienda y Hábitat | AI12: 3. Asentamientos humanos y mejoramiento integral de barrios y vivienda | AJ12: 0.009680437848 | AK12: 0 | AL12: 0 | AM12: 0 | AN12: 0 | AO12: 0 | AP12: 0 | AQ12: Bajo | AR12: Bajo | AS12: 0.6666666667 | AT12: 0 | AU12: 0 | AV12: 0.01658490928 | AW12: 0 | AX12: 0 | AY12: 0.6666666667 | AZ12: 0 | BA12: 0 | BB12: 0 | BC12: 2017_1 | BE12: 0 | BF12: 0 | BG12: 0 | BH12: 9 | BI12: 9 | BJ12: 0 | BK12: 0 | BL12: 0 | BM12: 0 | BN12: 0 | BO12: 0 | BP12: 0 | BQ12: 0 | BR12: 0 | BS12: 0 | BT12: 0 | BY12: 323935000 | BZ12: 323935000 | CA12: 0 | CB12: 0 | CC12: 0 | CD12: 0 | CE12: 0 | CF12: 0 | CG12: 0 | CH12: 0 | CI12: 0 | CJ12: 0 | CK12: 0 | CL12: 0 | CM12: 0 | CT12: Personas | CU12: 11 | CV12: Ciudades y comunidades sostenibles | CW12: 11.1 | CX12: De aquí a 2030, asegurar el acceso de todas las personas a viviendas y servicios básicos adecuados, seguros y asequibles y mejorar los barrios marginales | CY12: 0.01006847439 | DG12: Anexo 1 (85%)
A13: 12 | B13: 1 | C13: Usaquén | D13: 2 | E13: Pilar Democracia urbana | F13: 17 | G13: Espacio público, derecho de todos | H13: 296 | I13: Disminuir a 11,21% el porcentaje de personas que considera que las canchas y escenarios deportivos han empeorado | J13: 368 | K13: Construcción y/o mejoramiento de 64 parques en todas las escalas, en los que se construirán cuatro xtreme parks | L13: 12 | M13: Construir 2 parques Vecinales y/o de bolsillo | N13: 3-3-1-15-02-17-1567-00 | O13: Parque para ti, para mi, para todos | P13: CONSTRUCCIÓN DE PARQUES | Q13: Suma | R13: 1 | S13: Construir | T13: 2 | U13: parques | V13: Vecinales y/o de bolsillo | W13: Construir 2 parques Vecinales y/o de bolsillo | X13: 2 | Y13: Parques | Z13: Construcción, mantenimiento y dotación de parques vecinales y/o de bolsillo | AA13: 93 | AB13: Sector Cultura, recreación y deporte | AC13: 17 | AD13: Parques y escenarios deportivos | AE13: 14 | AF13: Parques vecinales y/o de bolsillo construidos | AG13: 9 | AH13: Política Pública de Deporte, Recreación , Actividad Física y Parques para Bogotá 2009-2019, denominada “Bogotá mas activa”. | AI13: 5. Mejorar los parques, escenarios y entornos | AJ13: 0.02515623116 | AK13: 0 | AL13: 0 | AM13: 0 | AN13: 0 | AO13: 0 | AP13: 0 | AQ13: Bajo | AR13: Bajo | AS13: 0.2616458585 | AT13: 0 | AU13: 0 | AV13: 0.04309865093 | AW13: 0 | AX13: 0 | AY13: 0.2616458585 | AZ13: 0 | BA13: 0 | BB13: 0 | BC13: 2017_1 | BE13: 0 | BF13: 0 | BG13: 0 | BH13: 1 | BI13: 1 | BJ13: 0 | BK13: 0 | BL13: 0 | BM13: 0 | BN13: 0 | BO13: 0 | BP13: 0 | BQ13: 0 | BR13: 0 | BS13: 0 | BT13: 0 | BY13: 841798000 | BZ13: 841798000 | CA13: 0 | CB13: 0 | CC13: 0 | CD13: 42900000 | CE13: 0 | CF13: 0 | CG13: 0 | CH13: 42900000 | CI13: 0 | CJ13: 0 | CK13: 0 | CL13: 0 | CM13: 0 | CT13: Personas | CU13: 11 | CV13: Ciudades y comunidades sostenibles | CW13: 11.7 | CX13: De aquí a 2030, proporcionar acceso universal a zonas verdes y espacios públicos seguros, inclusivos y accesibles, en particular para las mujeres y los niños, las personas de edad y las personas con discapacidad | CY13: 0.02616457501 | DG13: Anexo 1 (85%)
A14: 13 | B14: 1 | C14: Usaquén | D14: 2 | E14: Pilar Democracia urbana | F14: 17 | G14: Espacio público, derecho de todos | H14: 296 | I14: Disminuir a 11,21% el porcentaje de personas que considera que las canchas y escenarios deportivos han empeorado | J14: 368 | K14: Construcción y/o mejoramiento de 64 parques en todas las escalas, en los que se construirán cuatro xtreme parks | L14: 13 | M14: Intervenir 150 parques Vecinales y/o de bolsillo | N14: 3-3-1-15-02-17-1567-00 | O14: Parque para ti, para mi, para todos | P14: INTERVENCIÓN DE PARQUES | Q14: Suma | R14: 2 | S14: Intervenir | T14: 150 | U14: parques | V14: Vecinales y/o de bolsillo | W14: Intervenir 150 parques Vecinales y/o de bolsillo | X14: 2 | Y14: Parques | Z14: Construcción, mantenimiento y dotación de parques vecinales y/o de bolsillo | AA14: 93 | AB14: Sector Cultura, recreación y deporte | AC14: 17 | AD14: Parques y escenarios deportivos | AE14: 15 | AF14: Parques vecinales y/o de bolsillo intervenidos | AG14: 9 | AH14: Política Pública de Deporte, Recreación , Actividad Física y Parques para Bogotá 2009-2019, denominada “Bogotá mas activa”. | AI14: 5. Mejorar los parques, escenarios y entornos | AJ14: 0.07098987757 | AK14: 0 | AL14: 0 | AM14: 0 | AN14: 0 | AO14: 0 | AP14: 0 | AQ14: Bajo | AR14: Bajo | AS14: 0.7383541415 | AT14: 0 | AU14: 0 | AV14: 0.1216226681 | AW14: 0 | AX14: 0 | AY14: 0.7383541415 | AZ14: 0 | BA14: 0 | BB14: 206 | BC14: 2017_1 | BE14: 0 | BF14: 0 | BG14: 0 | BH14: 35 | BI14: 35 | BJ14: 0 | BK14: 0 | BL14: 0 | BM14: 0 | BN14: 0 | BO14: 0 | BP14: 0 | BQ14: 0 | BR14: 0 | BS14: 0 | BT14: 0 | BY14: 2375521000 | BZ14: 2375521000 | CA14: 0 | CB14: 0 | CC14: 0 | CD14: 0 | CE14: 0 | CF14: 0 | CG14: 0 | CH14: 0 | CI14: 0 | CJ14: 0 | CK14: 0 | CL14: 0 | CM14: 0 | CT14: Personas | CU14: 11 | CV14: Ciudades y comunidades sostenibles | CW14: 11.7 | CX14: De aquí a 2030, proporcionar acceso universal a zonas verdes y espacios públicos seguros, inclusivos y accesibles, en particular para las mujeres y los niños, las personas de edad y las personas con discapacidad | CY14: 0.07383540634 | DG14: Anexo 1 (85%)
A15: 14 | B15: 1 | C15: Usaquén | D15: 2 | E15: Pilar Democracia urbana | F15: 18 | G15: Mejor movilidad para todos | H15: 300 | I15: Alcanzar 50% de malla vial en buen estado | J15: 225 | K15: Construir 30 km de nueva malla vial | L15: 14 | M15: Construir 11 km/carril de malla vial local | N15: 3-3-1-15-02-18-1572-00 | O15: Reparchando ando | P15: CONSTRUCCIÓN MALLA VIAL LOCAL | Q15: Suma | R15: 1 | S15: Construir | T15: 11 | U15: km/carril | V15: de malla vial local | W15: Construir 11 km/carril de malla vial local | X15: 1 | Y15: Malla vial, espacio público y peatonal | Z15: Construcción y/o mantenimiento de malla vial, espacio público y peatonal, y puentes peatonales y/o vehiculares sobre cuerpos de agua (de escala local: urbana y/o rural) | AA15: 95 | AB15: Sector Movilidad | AC15: 22 | AD15: Vías Locales | AE15: 17 | AF15: Km/carril de malla vial local construido | AJ15: 0.1487926294 | AK15: 0 | AL15: 0 | AM15: 0 | AN15: 0 | AO15: 0 | AP15: 0 | AQ15: Bajo | AR15: Bajo | AS15: 0.3145570184 | AT15: 0 | AU15: 0 | AV15: 0.254917422 | AW15: 0 | AX15: 0 | AY15: 0.3145570184 | AZ15: 0 | BA15: 0 | BB15: 0 | BC15: 2017_1 | BE15: 0 | BF15: 0 | BG15: 0 | BH15: 0 | BI15: 0 | BJ15: 0 | BK15: 0 | BL15: 0 | BM15: 0 | BN15: 0 | BO15: 0 | BP15: 0 | BQ15: 0 | BR15: 0 | BS15: 0 | BT15: 0 | BY15: 4979020000 | BZ15: 4979020000 | CA15: 0 | CB15: 0 | CC15: 0 | CD15: 0 | CE15: 0 | CF15: 0 | CG15: 0 | CH15: 0 | CI15: 0 | CJ15: 0 | CK15: 0 | CL15: 0 | CM15: 0 | CT15: Personas | CU15: 9 | CV15: Industria, innovación e infraestructura | CW15: 9.1 | CX15: Desarrollar infraestructuras fiables, sostenibles, resilientes y de calidad, incluidas infraestructuras regionales y transfronterizas, para apoyar el desarrollo económico y el bienestar humano, haciendo especial hincapié en el acceso asequible y equitativo para todos | CY15: 0.1547567733 | DG15: Anexo 1 (85%)
A16: 15 | B16: 1 | C16: Usaquén | D16: 2 | E16: Pilar Democracia urbana | F16: 18 | G16: Mejor movilidad para todos | H16: 300 | I16: Alcanzar 50% de malla vial en buen estado | J16: 229-226 | K16: Conservar y rehabilitar 1,083 km carril de la infraestructura vial local (por donde no circulan rutas de Transmilenio zonal)/ Conservar 750 km carril de malla vial arterial, troncal e intermedia y local (por donde circulan las rutas de Transmilenio troncal y zonal) circulan rutas de Transmilenio zonal) | L16: 15 | M16: Mantener 48 km/carril de malla vial local | N16: 3-3-1-15-02-18-1572-00 | O16: Reparchando ando | P16: MANTENIMIENTO MALLA VIAL LOCAL | Q16: Suma | R16: 2 | S16: Mantener | T16: 48 | U16: km/carril | V16: de malla vial local | W16: Mantener 48 km/carril de malla vial local | X16: 1 | Y16: Malla vial, espacio público y peatonal | Z16: Construcción y/o mantenimiento de malla vial, espacio público y peatonal, y puentes peatonales y/o vehiculares sobre cuerpos de agua (de escala local: urbana y/o rural) | AA16: 95 | AB16: Sector Movilidad | AC16: 22 | AD16: Vías Locales | AE16: 18 | AF16: Km/carril de malla vial local mantenido | AJ16: 0.3097740112 | AK16: 0 | AL16: 0 | AM16: 0 | AN16: 0 | AO16: 0 | AP16: 0 | AQ16: Bajo | AR16: Bajo | AS16: 0.6548818296 | AT16: 0 | AU16: 0 | AV16: 0.5307170972 | AW16: 0 | AX16: 0 | AY16: 0.6548818296 | AZ16: 0 | BA16: 0 | BB16: 66.3 | BC16: 2017_1 | BE16: 0 | BF16: 0 | BG16: 0 | BH16: 12 | BI16: 12 | BJ16: 0 | BK16: 0 | BL16: 0 | BM16: 0 | BN16: 0 | BO16: 0 | BP16: 0 | BQ16: 0 | BR16: 0 | BS16: 0 | BT16: 0 | BY16: 10365911000 | BZ16: 10365911000 | CA16: 0 | CB16: 0 | CC16: 0 | CD16: 168233333 | CE16: 0 | CF16: 0 | CG16: 0 | CH16: 168233333 | CI16: 1559999 | CJ16: 1559999 | CK16: 0 | CL16: 0 | CM16: 0 | CT16: Personas | CU16: 9 | CV16: Industria, innovación e infraestructura | CW16: 9.1 | CX16: Desarrollar infraestructuras fiables, sostenibles, resilientes y de calidad, incluidas infraestructuras regionales y transfronterizas, para apoyar el desarrollo económico y el bienestar humano, haciendo especial hincapié en el acceso asequible y equitativo para todos | CY16: 0.3221909008 | DG16: Anexo 1 (85%)
A17: 16 | B17: 1 | C17: Usaquén | D17: 2 | E17: Pilar Democracia urbana | F17: 18 | G17: Mejor movilidad para todos | H17: 313 | I17: Llevar a 20% la satisfacción con el viaje a pie | L17: 16 | M17: Construir 3350 m2 de espacio público | N17: 3-3-1-15-02-18-1572-00 | O17: Reparchando ando | P17: CONSTRUCCIÓN ESPACIO PÚBLICO | Q17: Suma | R17: 3 | S17: Construir | T17: 3350 | U17: m2 | V17: de espacio público | W17: Construir 3350 m2 de espacio público | X17: 1 | Y17: Malla vial, espacio público y peatonal | Z17: Construcción y/o mantenimiento de malla vial, espacio público y peatonal, y puentes peatonales y/o vehiculares sobre cuerpos de agua (de escala local: urbana y/o rural) | AA17: 95 | AB17: Sector Movilidad | AC17: 23 | AD17: Espacio Público | AE17: 20 | AF17: m2 de espacio público construidos | AJ17: 0.008002495287 | AK17: 0 | AL17: 0 | AM17: 0 | AN17: 0 | AO17: 0 | AP17: 0 | AQ17: Bajo | AR17: Bajo | AS17: 0.01691778059 | AT17: 0 | AU17: 0 | AV17: 0.01371019167 | AW17: 0 | AX17: 0 | AY17: 0.01691778059 | AZ17: 0 | BA17: 0 | BB17: 0 | BC17: 2017_1 | BE17: 0 | BF17: 0 | BG17: 0 | BH17: 0 | BI17: 0 | BJ17: 0 | BK17: 0 | BL17: 0 | BM17: 0 | BN17: 0 | BO17: 0 | BP17: 0 | BQ17: 0 | BR17: 0 | BS17: 0 | BT17: 0 | BY17: 267786000 | BZ17: 267786000 | CA17: 0 | CB17: 0 | CC17: 0 | CD17: 0 | CE17: 0 | CF17: 0 | CG17: 0 | CH17: 0 | CI17: 0 | CJ17: 0 | CK17: 0 | CL17: 0 | CM17: 0 | CT17: Personas | CU17: 9 | CV17: Industria, innovación e infraestructura | CW17: 9.1 | CX17: Desarrollar infraestructuras fiables, sostenibles, resilientes y de calidad, incluidas infraestructuras regionales y transfronterizas, para apoyar el desarrollo económico y el bienestar humano, haciendo especial hincapié en el acceso asequible y equitativo para todos | CY17: 0.008323263875 | DG17: Anexo 1 (85%)
A18: 17 | B18: 1 | C18: Usaquén | D18: 2 | E18: Pilar Democracia urbana | F18: 18 | G18: Mejor movilidad para todos | H18: 313 | I18: Llevar a 20% la satisfacción con el viaje a pie | L18: 17 | M18: Mantener 4400 m2 de espacio público | N18: 3-3-1-15-02-18-1572-00 | O18: Reparchando ando | P18: MANTENIMIENTO ESPACIO PÚBLICO | Q18: Suma | R18: 4 | S18: Mantener | T18: 4400 | U18: m2 | V18: de espacio público | W18: Mantener 4400 m2 de espacio público | X18: 1 | Y18: Malla vial, espacio público y peatonal | Z18: Construcción y/o mantenimiento de malla vial, espacio público y peatonal, y puentes peatonales y/o vehiculares sobre cuerpos de agua (de escala local: urbana y/o rural) | AA18: 95 | AB18: Sector Movilidad | AC18: 23 | AD18: Espacio Público | AE18: 21 | AF18: m2 de espacio público mantenidos | AJ18: 0.006453625232 | AK18: 0 | AL18: 0 | AM18: 0 | AN18: 0 | AO18: 0 | AP18: 0 | AQ18: Bajo | AR18: Bajo | AS18: 0.01364337145 | AT18: 0 | AU18: 0 | AV18: 0.01105660619 | AW18: 0 | AX18: 0 | AY18: 0.01364337145 | AZ18: 0 | BA18: 0 | BB18: 11007 | BC18: 2017_1 | BE18: 0 | BF18: 0 | BG18: 0 | BH18: 1100 | BI18: 1100 | BJ18: 0 | BK18: 0 | BL18: 0 | BM18: 0 | BN18: 0 | BO18: 0 | BP18: 0 | BQ18: 0 | BR18: 0 | BS18: 0 | BT18: 0 | BY18: 215957000 | BZ18: 215957000 | CA18: 0 | CB18: 0 | CC18: 0 | CD18: 0 | CE18: 0 | CF18: 0 | CG18: 0 | CH18: 0 | CI18: 0 | CJ18: 0 | CK18: 0 | CL18: 0 | CM18: 0 | CT18: Personas | CU18: 9 | CV18: Industria, innovación e infraestructura | CW18: 9.1 | CX18: Desarrollar infraestructuras fiables, sostenibles, resilientes y de calidad, incluidas infraestructuras regionales y transfronterizas, para apoyar el desarrollo económico y el bienestar humano, haciendo especial hincapié en el acceso asequible y equitativo para todos | CY18: 0.006712326621 | DG18: Anexo 1 (85%)
A19: 18 | B19: 1 | C19: Usaquén | D19: 3 | E19: Pilar Construcción de comunidad y cultura ciudadana | F19: 19 | G19: Seguridad y convivencia para todos | H19: 363 | I19: Aumentar en 17 puntos porcentuales las personas que consideran que el barrio en el que habitan es seguro | L19: 18 | M19: Ralizar 4 dotaciones de seguridad | N19: 3-3-1-15-03-19-1569-00 | O19: Usaquén tu casa segura | P19: DOTACIÓN | Q19: Suma | R19: 1 | S19: Realizar | T19: 4 | U19: dotaciones | V19: de seguridad | W19: Realizar 4 dotaciones de seguridad | X19: 3 | Y19: Seguridad y convivencia | Z19: Dotación con recursos tecnológicos para la seguridad | AA19: 102 | AB19: Sector Seguridad, Convivencia y Justicia | AC19: 31 | AD19: Infraestructura y dotaciones para seguridad | AE19: 23 | AF19: Dotaciones para seguridad realizadas | AG19: 31 | AH19: Política Pública Distrital de Convivencia y Seguridad Ciudadana | AJ19: 0.02954768834 | AK19: 0 | AL19: 0 | AM19: 0 | AN19: 0 | AO19: 0 | AP19: 0 | AQ19: Bajo | AR19: Bajo | AS19: 0.5703499681 | AT19: 0 | AU19: 0 | AV19: 0.4124142565 | AW19: 0 | AX19: 0 | AY19: 0.5703499681 | AZ19: 0 | BA19: 0 | BB19: 0 | BC19: 2017_1 | BE19: 0 | BF19: 0 | BG19: 0 | BH19: 1 | BI19: 1 | BJ19: 0 | BK19: 0 | BL19: 0 | BM19: 0 | BN19: 0 | BO19: 0 | BP19: 0 | BQ19: 0 | BR19: 0 | BS19: 0 | BT19: 0 | BY19: 988749000 | BZ19: 988749000 | CA19: 0 | CB19: 0 | CC19: 0 | CD19: 0 | CE19: 0 | CF19: 0 | CG19: 0 | CH19: 0 | CI19: 0 | CJ19: 0 | CK19: 0 | CL19: 0 | CM19: 0 | CT19: Alianza y justicia | CU19: 16 | CV19: Paz, justicia e instituciones sólidas | CW19: 16.1 | CX19: Garantizar el acceso público a la información y proteger las libertades fundamentales, de conformidad con las leyes nacionales y los acuerdos internacionales | CY19: 0.03073207275 | DG19: Anexo 1 (85%)
A20: 19 | B20: 1 | C20: Usaquén | D20: 3 | E20: Pilar Construcción de comunidad y cultura ciudadana | F20: 19 | G20: Seguridad y convivencia para todos | H20: 363 | I20: Aumentar en 17 puntos porcentuales las personas que consideran que el barrio en el que habitan es seguro | L20: 19 | M20: Vincualr 960 personas a ejercicios de convivencia, seguridad y seguridad vial | N20: 3-3-1-15-03-19-1569-00 | O20: Usaquén tu casa segura | P20: CONVIVENCIA CIUDADANA | Q20: Suma | R20: 2 | S20: Vincular | T20: 960 | U20: personas | V20: a ejercicios de convivencia, seguridad y seguridad vial | W20: Vincular 960 personas a ejercicios de convivencia, seguridad y seguridad vial | X20: 3 | Y20: Seguridad y convivencia | Z20: Promoción de la convivencia ciudadana | AA20: 102 | AB20: Sector Seguridad, Convivencia y Justicia | AC20: 11 | AD20: Prevención, atención y gestión del conflicto en la localidad | AE20: 24 | AF20: Personas vinculadas a ejercicios de convivencia ciudadana | AG20: 31 | AH20: Política Pública Distrital de Convivencia y Seguridad Ciudadana | AJ20: 0.02225855343 | AK20: 0 | AL20: 0 | AM20: 0 | AN20: 0 | AO20: 0 | AP20: 0 | AQ20: Bajo | AR20: Bajo | AS20: 0.4296500319 | AT20: 0 | AU20: 0 | AV20: 0.3106755648 | AW20: 0 | AX20: 0 | AY20: 0.4296500319 | AZ20: 0 | BA20: 0 | BB20: 45750 | BC20: 2017_1 | BE20: 0 | BF20: 0 | BG20: 0 | BH20: 180 | BI20: 180 | BJ20: 0 | BK20: 0 | BL20: 0 | BM20: 0 | BN20: 0 | BO20: 0 | BP20: 0 | BQ20: 0 | BR20: 0 | BS20: 0 | BT20: 0 | BY20: 744834000 | BZ20: 744834000 | CA20: 0 | CB20: 0 | CC20: 0 | CD20: 252544066 | CE20: 0 | CF20: 0 | CG20: 0 | CH20: 252544066 | CI20: 7449987 | CJ20: 7449987 | CK20: 0 | CL20: 0 | CM20: 0 | CT20: Alianza y justicia | CU20: 16 | CV20: Paz, justicia e instituciones sólidas | CW20: 16.1 | CX20: Garantizar el acceso público a la información y proteger las libertades fundamentales, de conformidad con las leyes nacionales y los acuerdos internacionales | CY20: 0.0231507619 | DG20: Anexo 1 (85%)
A21: 20 | B21: 1 | C21: Usaquén | D21: 3 | E21: Pilar Construcción de comunidad y cultura ciudadana | F21: 20 | G21: Fortalecimiento del Sistema de Protección Integral a Mujeres Víctimas de Violencia - SOFIA | H21: 3 | I21: Alcanzar una tasa de utilización del servicio de atención socio jurídica a mujeres correspondiente a dos puntos | L21: 20 | M21: Beneficiar 3840 personas con estrategias de empoderamiento de la mujer y construcción de nuevas masculinidades | N21: 3-3-1-15-03-20-1577-00 | O21: Usaca, mariposa violeta | P21: SOFIA | Q21: Suma | R21: 1 | S21: Beneficiar | T21: 3840 | U21: personas | V21: con estrategias de empoderamiento de la mujer y construcción de nuevas masculinidades, eliminacion de todas formas de violencia de genero y promocion del buen trato | W21: Beneficiar 3840 personas con estrategias de empoderamiento de la mujer y construcción de nuevas masculinidades, eliminacion de todas formas de violencia de genero y promocion del buen trato | X21: 15 | Y21: Proyecto estratégico | Z21: Proyecto estratégico | AA21: 100 | AB21: Sector Mujeres | AC21: 30 | AD21: No Aplica | AE21: 54 | AF21: Personas beneficiadas en estrategias para el cierre de brechas de género | AG21: 29 | AH21: Política Pública de Mujeres y Equidad de Género en el Distrito Capital | AI21: 1. Derechos de las mujeres. | AJ21: 0.01983941032 | AK21: 100 | AL21: 0.02604166667 | AM21: 0.0005166513105 | AN21: 100 | AO21: 0.02604166667 | AP21: 0.0005166513105 | AQ21: Bajo | AR21: Bajo | AS21: 1 | AT21: 0.02604166667 | AU21: 0.02604166667 | AV21: 0.2769101787 | AW21: 0.007211202571 | AX21: 0.007211202571 | AY21: 1 | AZ21: 0.02604166667 | BA21: 0.02604166667 | BB21: 400 | BC21: 2017_1 | BE21: 0 | BF21: 0 | BG21: 0 | BH21: 700 | BI21: 700 | BJ21: 0 | BK21: 0 | BL21: 0 | BM21: 100 | BN21: 0 | BO21: 0 | BP21: 0 | BQ21: 100 | BR21: 0 | BS21: 0 | BT21: 0 | BY21: 663883000 | BZ21: 663883000 | CA21: 0 | CB21: 0 | CC21: 0 | CD21: 66310583 | CE21: 0 | CF21: 0 | CG21: 0 | CH21: 66310583 | CI21: 0 | CJ21: 0 | CK21: 0 | CL21: 0 | CM21: 0 | CT21: Personas | CU21: 5 | CV21: Igualdad de género | CW21: 5.2 | CX21: Eliminar todas las formas de violencia contra todas las mujeres y las niñas en los ámbitos público y privado, incluidas la trata y la explotación sexual y otros tipos de explotación | CY21: 0.02063466123 | DG21: Anexo 2 (15%)
A22: 21 | B22: 1 | C22: Usaquén | D22: 6 | E22: Eje transversal Sostenibilidad ambiental basada en la eficiencia energética | F22: 38 | G22: Recuperación y manejo de la Estructura Ecológica Principal | H22: 597 | I22: Aumentar en valor real de la cobertura verde en el espacio público urbano de Bogotá D.C. (arbolado 7%, zonas verdes en 0,2% y jardinería en 20%) garantizando el mantenimiento de lo generado y lo existente. | J22: 453 | K22: Plantar 86.000 los árboles y arbustos en el espacio Público urbano | L22: 21 | M22: Sembrar y/o intervenir 1000 árboles En la localidad | N22: 3-3-1-15-06-38-1575-00 | O22: Todos somos guardabosques de ciudad | P22: ARBORIZACIÓN | Q22: Suma | R22: 1 | S22: Sembrar y/o intervenir | T22: 1000 | U22: árboles | V22: En la localidad | W22: Sembrar y/o intervenir 1000 árboles En la localidad | X22: 12 | Y22: Protección y recuperación de los recursos ambientales | Z22: Intervención física en renaturalización, ecourbanismo, arborización, coberturas vegetales, muros verdes, paisajismo y jardinería | AA22: 94 | AB22: Sector Ambiente | AC22: 26 | AD22: Plantación y mantenimiento de arboles, jardines y especies vegetales | AE22: 27 | AF22: Arboles sembrados o intervenidos | AG22: 2 | AH22: Política para la Gestión de la Conservación de la Biodiversidad en el Distrito Capital | AI22: 3. Restauración de los ecosistemas degradados en el territorio. | AJ22: 0.00346327412 | AK22: 0 | AL22: 0 | AM22: 0 | AN22: 0 | AO22: 0 | AP22: 0 | AQ22: Bajo | AR22: Bajo | AS22: 0.280358626 | AT22: 0 | AU22: 0 | AV22: 0.280358626 | AW22: 0 | AX22: 0 | AY22: 0.280358626 | AZ22: 0 | BA22: 0 | BB22: 825 | BC22: 2017_1 | BE22: 0 | BF22: 0 | BG22: 0 | BH22: 150 | BI22: 150 | BJ22: 0 | BK22: 0 | BL22: 0 | BM22: 0 | BN22: 0 | BO22: 0 | BP22: 0 | BQ22: 0 | BR22: 0 | BS22: 0 | BT22: 0 | BY22: 115891000 | BZ22: 115891000 | CA22: 0 | CB22: 0 | CC22: 0 | CD22: 0 | CE22: 0 | CF22: 0 | CG22: 0 | CH22: 0 | CI22: 0 | CJ22: 0 | CK22: 0 | CL22: 0 | CM22: 0 | CT22: Planeta | CU22: 11 | CV22: Ciudades y comunidades sostenibles | CW22: 11.7 | CX22: De aquí a 2030, proporcionar acceso universal a zonas verdes y espacios públicos seguros, inclusivos y accesibles, en particular para las mujeres y los niños, las personas de edad y las personas con discapacidad | CY22: 0.003602097846 | DG22: Anexo 2 (15%)
A23: 22 | B23: 1 | C23: Usaquén | D23: 6 | E23: Eje transversal Sostenibilidad ambiental basada en la eficiencia energética | F23: 38 | G23: Recuperación y manejo de la Estructura Ecológica Principal | H23: 554 | I23: Restaurar 200 hectáreas nuevas en Cerros Orientales, ríos y quebradas y/o zonas de riesgo no mitigable que aportan a la conectividad ecológica de la región | J23: 439 | K23: Aplicar acciones del protocolo de restauración ecológica (diagnóstico, diseño, implementación y mantenimiento) del Distrito en 200 has | L23: 22 | M23: Intervenir 10 hectáreas De espacio público con acciones de renaturalización y/o ecourbanismo | N23: 3-3-1-15-06-38-1575-00 | O23: Todos somos guardabosques de ciudad | P23: RESTAURACIÓN ECOLÓGICA | Q23: Suma | R23: 2 | S23: Intervenir | T23: 10 | U23: hectáreas | V23: De espacio público con acciones de renaturalización y/o ecourbanismo | W23: Intervenir 10 hectáreas De espacio público con acciones de renaturalización y/o ecourbanismo | X23: 12 | Y23: Protección y recuperación de los recursos ambientales | Z23: Intervención física en renaturalización, ecourbanismo, arborización, coberturas vegetales, muros verdes, paisajismo y jardinería | AA23: 94 | AB23: Sector Ambiente | AC23: 20 | AD23: Calidad ambiental y preservación del patrimonio natural | AE23: 28 | AF23: Hectáreas de espacio público intervenidas con acciones de renaturalización y/o ecourbanismo | AG23: 2 | AH23: Política para la Gestión de la Conservación de la Biodiversidad en el Distrito Capital | AI23: 3. Restauración de los ecosistemas degradados en el territorio. | AJ23: 0.004994374575 | AK23: 0 | AL23: 0 | AM23: 0 | AN23: 0 | AO23: 0 | AP23: 0 | AQ23: Bajo | AR23: Bajo | AS23: 0.4043041195 | AT23: 0 | AU23: 0 | AV23: 0.4043041195 | AW23: 0 | AX23: 0 | AY23: 0.4043041195 | AZ23: 0 | BA23: 0 | BB23: 0 | BC23: 2017_1 | BE23: 0 | BF23: 0 | BG23: 0 | BH23: 2.5 | BI23: 2.5 | BJ23: 0 | BK23: 0 | BL23: 0 | BM23: 0 | BN23: 0 | BO23: 0 | BP23: 0 | BQ23: 0 | BR23: 0 | BS23: 0 | BT23: 0 | BY23: 167126000 | BZ23: 167126000 | CA23: 0 | CB23: 0 | CC23: 0 | CD23: 62250000 | CE23: 0 | CF23: 0 | CG23: 0 | CH23: 62250000 | CI23: 7500000 | CJ23: 7500000 | CK23: 0 | CL23: 0 | CM23: 0 | CT23: Planeta | CU23: 15 | CV23: Vida de ecosistemas terrestres | CW23: 15.1 | CX23: De aquí a 2020, asegurar la conservación, el restablecimiento y el uso sostenible de los ecosistemas terrestres y los ecosistemas interiores de agua dulce y sus servicios, en particular los bosques, los humedales, las montañas y las zonas áridas, en consonancia con las obligaciones contraídas en virtud de acuerdos internacionales | CY23: 0.005194572526 | DG23: Anexo 2 (15%)
A24: 23 | B24: 1 | C24: Usaquén | D24: 6 | E24: Eje transversal Sostenibilidad ambiental basada en la eficiencia energética | F24: 38 | G24: Recuperación y manejo de la Estructura Ecológica Principal | H24: 597 | I24: Aumentar en valor real de la cobertura verde en el espacio público urbano de Bogotá D.C. (arbolado 7%, zonas verdes en 0,2% y jardinería en 20%) garantizando el mantenimiento de lo generado y lo existente. | J24: 454 | K24: Incrementar las zonas verdes de jardinería en 18.000 metros cuadrados nuevos | L24: 23 | M24: Intervenir 300 m2 De espacio público mediados con acciones de jardinería, muros verdes, paisajismo y/o agricultura urbana | N24: 3-3-1-15-06-38-1575-00 | O24: Todos somos guardabosques de ciudad | P24: COBERTURAS VERDES | Q24: Suma | R24: 3 | S24: Intervenir | T24: 300 | U24: m2 | V24: De espacio público con acciones de jardinería, muros verdes, paisajismo y/o agricultura urbana | W24: Intervenir 300 m2 De espacio público con acciones de jardinería, muros verdes, paisajismo y/o agricultura urbana | X24: 12 | Y24: Protección y recuperación de los recursos ambientales | Z24: Intervención física en renaturalización, ecourbanismo, arborización, coberturas vegetales, muros verdes, paisajismo y jardinería | AA24: 94 | AB24: Sector Ambiente | AC24: 20 | AD24: Calidad ambiental y preservación del patrimonio natural | AE24: 29 | AF24: m2 de espacio público intervenidos con acciones de jardinería, muros verdes y/o paisajismo | AG24: 2 | AH24: Política para la Gestión de la Conservación de la Biodiversidad en el Distrito Capital | AI24: 3. Restauración de los ecosistemas degradados en el territorio. | AJ24: 0.003124587364 | AK24: 0 | AL24: 0 | AM24: 0 | AN24: 0 | AO24: 0 | AP24: 0 | AQ24: Bajo | AR24: Bajo | AS24: 0.252941289 | AT24: 0 | AU24: 0 | AV24: 0.252941289 | AW24: 0 | AX24: 0 | AY24: 0.252941289 | AZ24: 0 | BA24: 0 | BB24: 0 | BC24: 2017_1 | BE24: 0 | BF24: 0 | BG24: 0 | BH24: 50 | BI24: 50 | BJ24: 0 | BK24: 0 | BL24: 0 | BM24: 0 | BN24: 0 | BO24: 0 | BP24: 0 | BQ24: 0 | BR24: 0 | BS24: 0 | BT24: 0 | BY24: 130351000 | BZ24: 130351000 | CA24: 0 | CB24: 0 | CC24: 0 | CD24: 0 | CE24: 0 | CF24: 0 | CG24: 0 | CH24: 0 | CI24: 0 | CJ24: 0 | CK24: 0 | CL24: 0 | CM24: 0 | CT24: Planeta | CU24: 11 | CV24: Ciudades y comunidades sostenibles | CW24: 11.7 | CX24: De aquí a 2030, proporcionar acceso universal a zonas verdes y espacios públicos seguros, inclusivos y accesibles, en particular para las mujeres y los niños, las personas de edad y las personas con discapacidad | CY24: 0.004051540295 | DG24: Anexo 2 (15%)
A25: 24 | B25: 1 | C25: Usaquén | D25: 6 | E25: Eje transversal Sostenibilidad ambiental basada en la eficiencia energética | F25: 38 | G25: Recuperación y manejo de la Estructura Ecológica Principal | H25: 587 | I25: Priorizar e implementar 16 proyectos del plan de acción de la Política de Bienestar Animal | J25: 449 | K25: Priorizar e implementar 16 proyectos del plan de acción de la Política de Bienestar Animal | L25: 24 | M25: Implementar 1 estrategia y ejecución de la política de bienestar animal | N25: 3-3-1-15-06-38-1575-00 | O25: Todos somos guardabosques de ciudad | P25: PROTECCION ANIMAL | Q25: Suma | R25: 4 | S25: Implementar | T25: 1 | U25: estrategia | V25: y ejecucion de la politica de protecion y bienestar animal | W25: Implementar 1 estrategia y ejecucion de la politica de protecion y bienestar animal | X25: 18 | Y25: SIN LINEA | Z25: SIN LINEA | AA25: 94 | AB25: Sector Ambiente | AC25: 30 | AD25: No Aplica | AE25: 58 | AF25: Estrategias implementadas del plan de acción de la política de bienestar animal | AG25: 8 | AH25: Política Pública Distrital de Protección y Bienestar Animal | AI25: 3. Gestión del conocimiento para la protección y el bienestar animal | AJ25: 0.0007707782548 | AK25: 0 | AL25: 0 | AM25: 0 | AN25: 0 | AO25: 0 | AP25: 0 | AQ25: Bajo | AR25: Bajo | AS25: 0.06239596549 | AT25: 0 | AU25: 0 | AV25: 0.06239596549 | AW25: 0 | AX25: 0 | AY25: 0.06239596549 | AZ25: 0 | BA25: 0 | BB25: 0 | BC25: 2017_1 | BE25: 0 | BF25: 0 | BG25: 0 | BH25: 0 | BI25: 0 | BJ25: 0 | BK25: 0 | BL25: 0 | BM25: 0 | BN25: 0 | BO25: 0 | BP25: 0 | BQ25: 0 | BR25: 0 | BS25: 0 | BT25: 0 | BY25: 0 | BZ25: 0 | CA25: 0 | CB25: 0 | CC25: 0 | CD25: 0 | CE25: 0 | CF25: 0 | CG25: 0 | CH25: 0 | CI25: 0 | CJ25: 0 | CK25: 0 | CL25: 0 | CM25: 0 | CT25: Prosperidad | CU25: 11 | CV25: Ciudades y comunidades sostenibles | CW25: 11.4 | CX25: Redoblar los esfuerzos para proteger y salvaguardar el patrimonio cultural y natural del mundo | CY25: 0 | DG25: Anexo 2 (15%)
A26: 25 | B26: 1 | C26: Usaquén | D26: 7 | E26: Eje transversal Gobierno legítimo, fortalecimiento local y eficiencia | F26: 45 | G26: Gobernanza e influencia local, regional e internacional | H26: 824-832 | I26: Llegar a un 50% de organizaciones comunales de primer grado fortalecidas en su capacidad institucional/ Fortalecer 20 organizaciones comunales de segundo grado en su capacidad institucional | L26: 25 | M26: Realizar 2 estrategias de participación y expresiones sociales ciudadanas | N26: 3-3-1-15-07-45-1573-00 | O26: Tejedores de sociedad | P26: FORTALECIMIENTO PARA LA PARTICIPACIÓN | Q26: Suma | R26: 1 | S26: Fortalecer | T26: 10 | U26: organizaciones, instancias y expresiones sociales | V26: ciudadanas | W26: Fortalecer 10 organizaciones, instancias y expresiones sociales ciudadanas | X26: 13 | Y26: Participación | Z26: Fomento a la participación | AA26: 98 | AB26: Sector Gobierno | AC26: 9 | AD26: Espacios y procesos de participación ciudadana fortalecidos | AE26: 35 | AF26: Organizaciones, instancias y expresiones sociales ciudadanas fortalecidas para la participación | AG26: 30 | AH26: Polìtica Pública de Participación Incidente para el Distrito Capital | AI26: 1. Fortalecimiento de la Participación Incidente de la Ciudadanía | AJ26: 0.01254800147 | AK26: 0 | AL26: 0 | AM26: 0 | AN26: 0 | AO26: 0 | AP26: 0 | AQ26: Bajo | AR26: Bajo | AS26: 0.07064344205 | AT26: 0 | AU26: 0 | AV26: 0.07064344205 | AW26: 0 | AX26: 0 | AY26: 0.6603645923 | AZ26: 0 | BA26: 0 | BB26: 162 | BC26: 2017_1 | BE26: 0 | BF26: 0 | BG26: 0 | BH26: 2 | BI26: 2 | BJ26: 0 | BK26: 0 | BL26: 0 | BM26: 0 | BN26: 0 | BO26: 0 | BP26: 0 | BQ26: 0 | BR26: 0 | BS26: 0 | BT26: 0 | BY26: 419891000 | BZ26: 419891000 | CA26: 0 | CB26: 0 | CC26: 0 | CD26: 48666666 | CE26: 0 | CF26: 0 | CG26: 0 | CH26: 48666666 | CI26: 0 | CJ26: 0 | CK26: 0 | CL26: 0 | CM26: 0 | CT26: Alianza y justicia | CU26: 16 | CV26: Paz, justicia e instituciones sólidas | CW26: 16.1 | CX26: Garantizar el acceso público a la información y proteger las libertades fundamentales, de conformidad con las leyes nacionales y los acuerdos internacionales | CY26: 0.01305095708 | DG26: Anexo 2 (15%)
A27: 26 | B27: 1 | C27: Usaquén | D27: 7 | E27: Eje transversal Gobierno legítimo, fortalecimiento local y eficiencia | F27: 45 | G27: Gobernanza e influencia local, regional e internacional | H27: 825 | I27: Realizar 350 Acciones de participación ciudadana desarrolladas por organizaciones comunales, sociales y comunitarias | J27: 148 | K27: Formar a 10.000 ciudadanos en participación | L27: 26 | M27: Vincular 400 personas En procesos de participación y control social | N27: 3-3-1-15-07-45-1573-00 | O27: Tejedores de sociedad | P27: PARTICIPACIÓN CIUDADANA Y CONTROL SOCIAL | Q27: Suma | R27: 2 | S27: Vincular | T27: 400 | U27: personas | V27: En procesos de participación y control social | W27: Vincular 400 personas En procesos de participación y control social | X27: 13 | Y27: Participación | Z27: Fomento a la participación | AA27: 98 | AB27: Sector Gobierno | AC27: 9 | AD27: Espacios y procesos de participación ciudadana fortalecidos | AE27: 36 | AF27: Personas vinculadas a procesos de participación ciudadana y/o control social | AG27: 30 | AH27: Polìtica Pública de Participación Incidente para el Distrito Capital | AI27: 1. Fortalecimiento de la Participación Incidente de la Ciudadanía | AJ27: 0.006453625232 | AK27: 0 | AL27: 0 | AM27: 0 | AN27: 0 | AO27: 0 | AP27: 0 | AQ27: Bajo | AR27: Bajo | AS27: 0.03633298108 | AT27: 0 | AU27: 0 | AV27: 0.03633298108 | AW27: 0 | AX27: 0 | AY27: 0.3396354077 | AZ27: 0 | BA27: 0 | BB27: 45000 | BC27: 2017_1 | BE27: 0 | BF27: 0 | BG27: 0 | BH27: 100 | BI27: 100 | BJ27: 0 | BK27: 0 | BL27: 0 | BM27: 0 | BN27: 0 | BO27: 0 | BP27: 0 | BQ27: 0 | BR27: 0 | BS27: 0 | BT27: 0 | BY27: 215956000 | BZ27: 215956000 | CA27: 0 | CB27: 0 | CC27: 0 | CD27: 0 | CE27: 0 | CF27: 0 | CG27: 0 | CH27: 0 | CI27: 0 | CJ27: 0 | CK27: 0 | CL27: 0 | CM27: 0 | CT27: Alianza y justicia | CU27: 16 | CV27: Paz, justicia e instituciones sólidas | CW27: 16.1 | CX27: Garantizar el acceso público a la información y proteger las libertades fundamentales, de conformidad con las leyes nacionales y los acuerdos internacionales | CY27: 0.006712295539 | DG27: Anexo 2 (15%)
A28: 27 | B28: 1 | C28: Usaquén | D28: 7 | E28: Eje transversal Gobierno legítimo, fortalecimiento local y eficiencia | F28: 45 | G28: Gobernanza e influencia local, regional e internacional | J28: 158 | K28: Implementar en un 100% en las Alcaldías Locales un nuevo modelo de gestión | L28: 27 | M28: Cubrir 11 ediles Con el pago de honorarios | N28: 3-3-1-15-07-45-1574-00 | O28: Buen gobierno para todos | P28: HONORARIOS A EDILES | Q28: Constante | R28: 1 | S28: Cubrir | T28: 11 | U28: ediles | V28: Con el pago de honorarios | W28: Cubrir 11 ediles Con el pago de honorarios | X28: 6 | Y28: Gestión pública local | Z28: Fortalecimiento institucional y pago de honorarios de ediles | AA28: 98 | AB28: Sector Gobierno | AC28: 29 | AD28: Fortalecimiento institucional | AE28: 32 | AF28: Ediles con pago de honorarios cubierto | AG28: 37 | AH28: Política Pública de transparencia, integridad y no tolerancia con la corrupción en Bogotá | AJ28: 0.03226812617 | AK28: 2.75 | AL28: 0.25 | AM28: 0.008067031542 | AN28: 2.75 | AO28: 0.25 | AP28: 0.008067031542 | AQ28: Bajo | AR28: Bajo | AS28: 0.1816649054 | AT28: 0.04541622636 | AU28: 0.04541622636 | AV28: 0.1816649054 | AW28: 0.04541622636 | AX28: 0.04541622636 | AY28: 0.2034267741 | AZ28: 0.05085669353 | BA28: 0.05085669353 | BB28: 11 | BC28: 2017_1 | BE28: 0 | BF28: 0 | BG28: 0 | BH28: 11 | BI28: 11 | BJ28: 0 | BK28: 0 | BL28: 0 | BM28: 11 | BN28: 0 | BO28: 0 | BP28: 0 | BQ28: 11 | BR28: 0 | BS28: 0 | BT28: 0 | BY28: 947364000 | BZ28: 947364000 | CA28: 0 | CB28: 0 | CC28: 0 | CD28: 829117386 | CE28: 0 | CF28: 0 | CG28: 0 | CH28: 829117386 | CI28: 142424780 | CJ28: 142424780 | CK28: 0 | CL28: 0 | CM28: 0 | CT28: Alianza y justicia | CU28: 16 | CV28: Paz, justicia e instituciones sólidas | CW28: 16.1 | CX28: Garantizar el acceso público a la información y proteger las libertades fundamentales, de conformidad con las leyes nacionales y los acuerdos internacionales | CY28: 0.02944575354 | DG28: Anexo 1 (85%)
A29: 28 | B29: 1 | C29: Usaquén | D29: 7 | E29: Eje transversal Gobierno legítimo, fortalecimiento local y eficiencia | F29: 45 | G29: Gobernanza e influencia local, regional e internacional | J29: 158 | K29: Implementar en un 100% en las Alcaldías Locales un nuevo modelo de gestión | L29: 28 | M29: Realizar 1 estrategia De fortalecimiento institucional | N29: 3-3-1-15-07-45-1574-00 | O29: Buen gobierno para todos | P29: FORTALECIMIENTO LOCAL | Q29: Constante | R29: 2 | S29: Realizar | T29: 1 | U29: estrategia | V29: De fortalecimiento institucional | W29: Realizar 1 estrategia De fortalecimiento institucional | X29: 6 | Y29: Gestión pública local | Z29: Fortalecimiento institucional y pago de honorarios de ediles | AA29: 98 | AB29: Sector Gobierno | AC29: 29 | AD29: Fortalecimiento institucional | AE29: 33 | AF29: Estrategias de fortalecimiento institucional realizadas | AG29: 37 | AH29: Política Pública de transparencia, integridad y no tolerancia con la corrupción en Bogotá | AJ29: 0.06387798256 | AK29: 0.0625 | AL29: 0.0625 | AM29: 0.00399237391 | AN29: 0.0625 | AO29: 0.0625 | AP29: 0.00399237391 | AQ29: Bajo | AR29: Bajo | AS29: 0.3596238468 | AT29: 0.02247649042 | AU29: 0.02247649042 | AV29: 0.3596238468 | AW29: 0.02247649042 | AX29: 0.02247649042 | AY29: 0.402703642 | AZ29: 0.02516897762 | BA29: 0.02516897762 | BB29: 1 | BC29: 2017_1 | BE29: 0 | BF29: 0 | BG29: 0 | BH29: 1 | BI29: 1 | BJ29: 0 | BK29: 0 | BL29: 0 | BM29: 0.25 | BN29: 0 | BO29: 0 | BP29: 0 | BQ29: 0.25 | BR29: 0 | BS29: 0 | BT29: 0 | BY29: 2269955000 | BZ29: 2269955000 | CA29: 0 | CB29: 0 | CC29: 0 | CD29: 1712337233 | CE29: 0 | CF29: 0 | CG29: 0 | CH29: 1712337233 | CI29: 63939930 | CJ29: 63939930 | CK29: 0 | CL29: 0 | CM29: 0 | CT29: Alianza y justicia | CU29: 16 | CV29: Paz, justicia e instituciones sólidas | CW29: 16.1 | CX29: Garantizar el acceso público a la información y proteger las libertades fundamentales, de conformidad con las leyes nacionales y los acuerdos internacionales | CY29: 0.07055422781 | DG29: Anexo 1 (85%)
A30: 29 | B30: 1 | C30: Usaquén | D30: 7 | E30: Eje transversal Gobierno legítimo, fortalecimiento local y eficiencia | F30: 45 | G30: Gobernanza e influencia local, regional e internacional | J30: 160 | K30: Disminuir el número de actuaciones administrativas activas y las represadas a 21.513 | L30: 29 | M30: Realizar 4 estrategias De inspección, vigilancia y control | N30: 3-3-1-15-07-45-1574-00 | O30: Buen gobierno para todos | P30: IVC | Q30: Suma | R30: 3 | S30: Realizar | T30: 4 | U30: estrategias | V30: De inspección, vigilancia y control | W30: Realizar 4 estrategias De inspección, vigilancia y control | X30: 4 | Y30: Inspección, vigilancia y control - IVC | Z30: Acciones de fortalecimiento para la inspección, vigilancia y control – IVC | AA30: 98 | AB30: Sector Gobierno | AC30: 32 | AD30: Inspección, vigilancia y control (IVC) | AE30: 34 | AF30: Acciones de inspección, vigilancia y control realizadas | AG30: 31 | AH30: Política Pública Distrital de Convivencia y Seguridad Ciudadana | AJ30: 0.02393778672 | AK30: 0.25 | AL30: 0.0625 | AM30: 0.00149611167 | AN30: 0.25 | AO30: 0.0625 | AP30: 0.00149611167 | AQ30: Bajo | AR30: Bajo | AS30: 0.1347662935 | AT30: 0.008422893341 | AU30: 0.008422893341 | AV30: 0.1347662935 | AW30: 0.008422893341 | AX30: 0.008422893341 | AY30: 0.1509101181 | AZ30: 0.009431882382 | BA30: 0.009431882382 | BB30: 0 | BC30: 2017_1 | BE30: 0 | BF30: 0 | BG30: 0 | BH30: 1 | BI30: 1 | BJ30: 0 | BK30: 0 | BL30: 0 | BM30: 0.25 | BN30: 0 | BO30: 0 | BP30: 0 | BQ30: 0.25 | BR30: 0 | BS30: 0 | BT30: 0 | BY30: 801026000 | BZ30: 801026000 | CA30: 0 | CB30: 0 | CC30: 0 | CD30: 145200000 | CE30: 0 | CF30: 0 | CG30: 0 | CH30: 145200000 | CI30: 0 | CJ30: 0 | CK30: 0 | CL30: 0 | CM30: 0 | CT30: Alianza y justicia | CU30: 16 | CV30: Paz, justicia e instituciones sólidas | CW30: 16.1 | CX30: Garantizar el acceso público a la información y proteger las libertades fundamentales, de conformidad con las leyes nacionales y los acuerdos internacionales | CY30: 0.02489730893 | DG30: Anexo 1 (85%)
A31: 30 | B31: 1 | C31: Usaquén | D31: 7 | E31: Eje transversal Gobierno legítimo, fortalecimiento local y eficiencia | F31: 45 | G31: Gobernanza e influencia local, regional e internacional | J31: 155-156 | K31: Actualizar Tecnológicamente 5 Sedes administrativas de Alcaldías Locales/Construir 5 sedes administrativas de Alcaldías Locales | L31: 30 | M31: Construir 1 sede administrativa local | N31: 3-3-1-15-07-45-1574-00 | O31: Buen gobierno para todos | P31: SEDE ADMINISTRATIVA | Q31: Suma | R31: 4 | S31: Construir | T31: 1 | U31: sede | V31: administrativa local | W31: Construir 1 sede administrativa local | X31: 16 | Y31: Proyecto estratégico (Sede administrativa) | Z31: Proyecto estratégico | AA31: 98 | AB31: Sector Gobierno | AC31: 28 | AD31: Infraestructura para la atención de servicio al ciudadano | AE31: 37 | AF31: Sede administrativa local adecuada | AG31: 37 | AH31: Política Pública de transparencia, integridad y no tolerancia con la corrupción en Bogotá | AJ31: 0.03853891274 | AK31: 0 | AL31: 0 | AM31: 0 | AN31: 0 | AO31: 0 | AP31: 0 | AQ31: Bajo | AR31: Bajo | AS31: 0.2169685312 | AT31: 0 | AU31: 0 | AV31: 0.2169685312 | AW31: 0 | AX31: 0 | AY31: 0.2429594658 | AZ31: 0 | BA31: 0 | BB31: 0 | BC31: 2017_1 | BE31: 0 | BF31: 0 | BG31: 0 | BH31: 0.25 | BI31: 0.25 | BJ31: 0 | BK31: 0 | BL31: 0 | BM31: 0 | BN31: 0 | BO31: 0 | BP31: 0 | BQ31: 0 | BR31: 0 | BS31: 0 | BT31: 0 | BY31: 1349728000 | BZ31: 1349728000 | CA31: 0 | CB31: 0 | CC31: 0 | CD31: 0 | CE31: 0 | CF31: 0 | CG31: 0 | CH31: 0 | CI31: 0 | CJ31: 0 | CK31: 0 | CL31: 0 | CM31: 0 | CT31: Alianza y justicia | CU31: 16 | CV31: Paz, justicia e instituciones sólidas | CW31: 16.1 | CX31: Garantizar el acceso público a la información y proteger las libertades fundamentales, de conformidad con las leyes nacionales y los acuerdos internacionales | CY31: 0.04026283626 | DG31: Anexo 3 (Construcción Sedes, CAI)
A32: 31 | B32: =VLOOKUP(C32,NUMERO_LOCALIDAD,2,0) -> 2 | C32: Chapinero | D32: =VLOOKUP(E32,RANGO_EJE_PILAR,2,0) -> 1 | E32: Pilar Igualdad de calidad de vida | F32: =VLOOKUP(G32,CODIGO_PROGRAMAS,2,0) -> 2 | G32: Desarrollo integral desde la gestación hasta la adolescencia | H32: 10 | I32: Alcanzar 159.054 cupos para la atención integral de niños y niñas de primera infancia con estándares de calidad superiores al 80% en el ámbito institucional. | J32: 382 | K32: 83.000 cupos para la atención integral de niños y niñas de 4 y 5 años | L32: 31 | M32: Adecuar 1 jardín para la atención integral de la primera infancia. | N32: 3-3-1-15-01-02-1293-00 | O32: Contribuir en el desarrollo de la primera infancia y la eliminación de las violencias | P32: ADECUACIÓN DE ESPACIOS | Q32: Suma | R32: 1 | S32: Adecuar | T32: 1 | U32: Jardín | V32: Para la atención integral de la primera infancia | W32: Adecuar 1 Jardín Para la atención integral de la primera infancia | X32: 8 | Y32: Dotación | Z32: Dotación pedagógica y adecuación de jardines infantiles | AA32: =VLOOKUP(AB32,CODIGO_SECTOR,2,0) -> 92 | AB32: Sector Integración social | AC32: 2 | AD32: Adecuación , habilitación y dotación de jardines | AE32: =VLOOKUP(AF32,CODIGO_INDICADOR,2,0) -> 1 | AF32: Jardines infantiles adecuados | AG32: 38 | AH32: Política Pública de Infancia y Adolescencia de Bogotá D.C. | AI32: 2. Bogotá construye ciudad con los niños y las niñas y los/las adolescentes | AJ32: 0.0009266156725 | AK32: 0 | AL32: 0 | AM32: 0 | AN32: 0 | AO32: 0 | AP32: 0 | AQ32: Bajo | AR32: Bajo | AS32: =AJ32/SUMIF($F$32:$F$61,F32,$AJ$32:$AJ$61) -> 0.0534591195 | AT32: 0 | AU32: 0 | AV32: =AJ32/SUMIF($D$32:$D$61,D32,$AJ$32:$AJ$61) -> 0.00529705027 | AW32: 0 | AX32: 0 | AY32: =AJ32/SUMIF($N$32:$N$61,N32,$AJ$32:$AJ$61) -> 0.0534591195 | AZ32: 0 | BA32: 0 | BB32: 0 | BC32: 2017_1 | BE32: 0 | BF32: 0 | BG32: 0 | BH32: 0 | BI32: 0 | BJ32: 0 | BK32: 0 | BL32: 0 | BM32: 0 | BN32: 0 | BO32: 0 | BP32: 0 | BQ32: 0 | BR32: 0 | BS32: 0 | BT32: 0 | BY32: 0 | BZ32: 0 | CA32: 0 | CB32: 0 | CC32: 0 | CD32: 0 | CE32: 0 | CF32: 0 | CG32: 0 | CH32: 0 | CI32: 0 | CJ32: 0 | CK32: 0 | CL32: 0 | CM32: 0 | CT32: Personas | CU32: 4 | CV32: Educación de calidad | CW32: 4.2 | CX32: De aquí a 2030, asegurar que todas las niñas y todos los niños tengan acceso a servicios de atención y desarrollo en la primera infancia y educación preescolar de calidad, a fin de que estén preparados para la enseñanza primaria. | CY32: 0 | DG32: Anexo 2 (15%)
A33: 32 | B33: 2 | C33: Chapinero | D33: 1 | E33: Pilar Igualdad de calidad de vida | F33: 2 | G33: Desarrollo integral desde la gestación hasta la adolescencia | H33: 10 | I33: Alcanzar 159.054 cupos para la atención integral de niños y niñas de primera infancia con estándares de calidad superiores al 80% en el ámbito institucional. | J33: 382 | K33: 83.000 cupos para la atención integral de niños y niñas de 4 y 5 años | L33: 32 | M33: Dotar 3 jardines determinados para la atención integral a la primera infancia existente en la localidad. | N33: 3-3-1-15-01-02-1293-00 | O33: Contribuir en el desarrollo de la primera infancia y la eliminación de las violencias | P33: DOTACIÓN | Q33: Suma | R33: 2 | S33: Dotar | T33: 3 | U33: Jardines | V33: Para la atención integral a la primera infancia existente en la localidad | W33: Dotar 3 Jardines Para la atención integral a la primera infancia existente en la localidad | X33: 8 | Y33: Dotación | Z33: Dotación pedagógica y adecuación de jardines infantiles | AA33: 92 | AB33: Sector Integración social | AC33: 2 | AD33: Adecuación , habilitación y dotación de jardines | AE33: 2 | AF33: Jardines infantiles dotados | AG33: 38 | AH33: Política Pública de Infancia y Adolescencia de Bogotá D.C. | AI33: 2. Bogotá construye ciudad con los niños y las niñas y los/las adolescentes | AJ33: 0.00668616799 | AK33: 0 | AL33: 0 | AM33: 0 | AN33: 0 | AO33: 0 | AP33: 0 | AQ33: Bajo | AR33: Bajo | AS33: =AJ33/SUMIF($F$32:$F$61,F33,$AJ$32:$AJ$61) -> 0.3857442348 | AT33: 0 | AU33: 0 | AV33: =AJ33/SUMIF($D$32:$D$61,D33,$AJ$32:$AJ$61) -> 0.03822185293 | AW33: 0 | AX33: 0 | AY33: =AJ33/SUMIF($N$32:$N$61,N33,$AJ$32:$AJ$61) -> 0.3857442348 | AZ33: 0 | BA33: 0 | BB33: 3 | BC33: 2017_1 | BE33: 0 | BF33: 0 | BG33: 0 | BH33: 1 | BI33: 1 | BJ33: 0 | BK33: 0 | BL33: 0 | BM33: 0 | BN33: 0 | BO33: 0 | BP33: 0 | BQ33: 0 | BR33: 0 | BS33: 0 | BT33: 0 | BY33: 130000000 | BZ33: 130000000 | CA33: 0 | CB33: 0 | CC33: 0 | CD33: 0 | CE33: 0 | CF33: 0 | CG33: 0 | CH33: 0 | CI33: 0 | CJ33: 0 | CK33: 0 | CL33: 0 | CM33: 0 | CT33: Personas | CU33: 4 | CV33: Educación de calidad | CW33: 4.2 | CX33: De aquí a 2030, asegurar que todas las niñas y todos los niños tengan acceso a servicios de atención y desarrollo en la primera infancia y educación preescolar de calidad, a fin de que estén preparados para la enseñanza primaria. | CY33: 0.008803016591 | DG33: Anexo 2 (15%)
A34: 33 | B34: 2 | C34: Chapinero | D34: 1 | E34: Pilar Igualdad de calidad de vida | F34: 2 | G34: Desarrollo integral desde la gestación hasta la adolescencia | H34: 6 | I34: Alcanzar 232.687 cupos de ámbitos institucionales y de los programas del orden nacional relacionados con la atención integral de niños, niñas y de primera infancia, en el marco de la RIA. | J34: 298 | K34: 76.241 cupos para atender niños y niñas de 0 a 5 años en el marco de la Ruta Integral de Atenciones | L34: 33 | M34: Vincular 2.400 personas a través de acciones de prevención y promoción del buen trato infantil y eliminación de distintas formas de violencia con enfoque diferencial, poblacional y de derechos. | N34: 3-3-1-15-01-02-1293-00 | O34: Contribuir en el desarrollo de la primera infancia y la eliminación de las violencias | P34: BUEN TRATO INFANTIL | Q34: Suma | R34: 3 | S34: Vincular | T34: 2400 | U34: personas | V34: través de las acciones de prevención y promoción del buen trato infantil y eliminación de las distintas formas de violencia con enfoque diferencial, poblacional y de derechos | W34: Vincular 2400 personas través de las acciones de prevención y promoción del buen trato infantil y eliminación de las distintas formas de violencia con enfoque diferencial, poblacional y de derechos | X34: 7 | Y34: Atención a población vulnerable | Z34: Prevención de violencia infantil y promoción del buen trato | AA34: 92 | AB34: Sector Integración social | AC34: 1 | AD34: Protección integral a niños y niñas y adolescentes | AE34: 3 | AF34: Personas vinculadas a acciones de promoción del buen trato infantil | AG34: 38 | AH34: Política Pública de Infancia y Adolescencia de Bogotá D.C. | AI34: 1. Niños, niñas y adolescentes en ciudadanía plena | AJ34: 0.009720380094 | AK34: 0 | AL34: 0 | AM34: 0 | AN34: 0 | AO34: 0 | AP34: 0 | AQ34: Bajo | AR34: Bajo | AS34: 0.5607966457 | AT34: 0 | AU34: 0 | AV34: 0.05556709597 | AW34: 0 | AX34: 0 | AY34: 0.5607966457 | AZ34: 0 | BA34: 0 | BB34: 1984 | BC34: 2017_1 | BE34: 0 | BF34: 0 | BG34: 0 | BH34: 600 | BI34: 600 | BJ34: 0 | BK34: 0 | BL34: 0 | BM34: 0 | BN34: 0 | BO34: 0 | BP34: 0 | BQ34: 0 | BR34: 0 | BS34: 0 | BT34: 0 | BY34: 125000000 | BZ34: 125000000 | CA34: 0 | CB34: 0 | CC34: 0 | CD34: 49500000 | CE34: 0 | CF34: 0 | CG34: 0 | CH34: 49500000 | CI34: 2250000 | CJ34: 2250000 | CK34: 0 | CL34: 0 | CM34: 0 | CT34: Personas | CU34: 4 | CV34: Educación de calidad | CW34: 4.2 | CX34: De aquí a 2030, asegurar que todas las niñas y todos los niños tengan acceso a servicios de atención y desarrollo en la primera infancia y educación preescolar de calidad, a fin de que estén preparados para la enseñanza primaria. | CY34: 0.008464439029 | DG34: Anexo 2 (15%)
A35: 34 | B35: 2 | C35: Chapinero | D35: 1 | E35: Pilar Igualdad de calidad de vida | F35: 3 | G35: Igualdad y autonomía para una Bogotá incluyente | H35: 27 | I35: Incrementar en un 25% la vinculación de personas mayores en procesos de fortalecimiento de sus proyectos de vida a través de los servicios de la SDIS | J35: 306 | K35: Entregar a 90.318 personas mayores en situación de vulnerabilidad socioeconómica apoyos económicos | L35: 34 | M35: Beneficiar 431 personas mayores mensualmente mediante la entrega de subsidios tipo C con enfoque diferencial, poblacional y de derecho. | N35: 3-3-1-15-01-03-1294-00 | O35: Fortalecimiento a las personas mayores | P35: SUBSIDIO TIPO C | Q35: Constante | R35: 1 | S35: Beneficiar | T35: 431 | U35: Personas mayores | V35: Mediante la entrega de subsidios tipo C con enfoque diferencial, poblacional y de derechos | W35: Beneficiar 431 Personas mayores Mediante la entrega de subsidios tipo C con enfoque diferencial, poblacional y de derechos | X35: 5 | Y35: Atención a población vulnerable_Subsidio C | Z35: Subsidio C a persona mayor | AA35: 92 | AB35: Sector Integración social | AC35: 2 | AD35: Protección integral a personas y familias en situación de vulneración | AE35: 4 | AF35: Personas con subsidio tipo C beneficiadas | AG35: 39 | AH35: Política Pública Social para el Envejecimiento y la Vejez en el D.C. 2010 - 2026 | AI35: 2. Vivir bien en la vejez | AJ35: 0.05403441196 | AK35: 107.75 | AL35: 0.25 | AM35: 0.01350860299 | AN35: 107.75 | AO35: 0.25 | AP35: 0.01350860299 | AQ35: Bajo | AR35: Bajo | AS35: 0.8309583683 | AT35: 0.2077395921 | AU35: 0.2077395921 | AV35: 0.3088907354 | AW35: 0.07722268384 | AX35: 0.07722268384 | AY35: 1 | AZ35: 0.25 | BA35: 0.25 | BB35: 431 | BC35: 2017_1 | BE35: 0 | BF35: 0 | BG35: 0 | BH35: 431 | BI35: 431 | BJ35: 0 | BK35: 0 | BL35: 0 | BM35: 431 | BN35: 0 | BO35: 0 | BP35: 0 | BQ35: 431 | BR35: 0 | BS35: 0 | BT35: 0 | BY35: 712197000 | BZ35: 712197000 | CA35: 0 | CB35: 0 | CC35: 0 | CD35: 66600000 | CE35: 0 | CF35: 0 | CG35: 0 | CH35: 66600000 | CI35: 0 | CJ35: 0 | CK35: 0 | CL35: 0 | CM35: 0 | CT35: Personas | CU35: 1 | CV35: Fin de la pobreza | CW35: 1.2 | CX35: De aquí a 2030, reducir al menos a la mitad la proporción de hombres, mujeres y niños de todas las edades que viven en la pobreza en todas sus dimensiones con arreglo a las definiciones nacionales | CY35: 0.04822678467 | DG35: Anexo 1 (85%)
A36: 35 | B36: 2 | C36: Chapinero | D36: 1 | E36: Pilar Igualdad de calidad de vida | F36: 3 | G36: Igualdad y autonomía para una Bogotá incluyente | H36: 34 | I36: Incrementar a 2.000 personas con discapacidad con procesos de inclusión efectivos en el Distrito. | L36: 35 | M36: Beneficiar 400 personas con discapacidad a través del Banco de Ayudas técnicas no POS de la localidad con ayudas técnicas y el mantenimiento de las ayudas entregadas en vigencias anteriores, así como acciones complementarias a cuidadores y cuidadoras de la localidad. | N36: 3-3-1-15-01-03-1295-00 | O36: Brindar acciones integrales, para personas con discapacidad y sus respectivos cuidadores | P36: AYUDAS TÉCNICAS | Q36: Suma | R36: 1 | S36: Beneficiar | T36: 400 | U36: Personas | V36: Con discapacidad a través del Banco de Ayudas técnicas no POS de la localidad con ayudas técnicas y el mantenimiento de las ayudas entregadas en vigencias anteriores, así como acciones complementarias a cuidadores y cuidadoras de la localidad | W36: Beneficiar 400 Personas Con discapacidad a través del Banco de Ayudas técnicas no POS de la localidad con ayudas técnicas y el mantenimiento de las ayudas entregadas en vigencias anteriores, así como acciones complementarias a cuidadores y cuidadoras de la localidad | X36: 7 | Y36: Atención a población vulnerable | Z36: Ayudas Técnicas a personas con discapacidad (no incluidas en el POS) | AA36: 91 | AB36: Sector Salud | AC36: 3 | AD36: Promoción, prevención e intervención en salud | AE36: 5 | AF36: Personas beneficiadas con ayudas técnicas no POS | AG36: 40 | AH36: Política Pública de Discapacidad para el Distrito Capital | AI36: 1. Desarrollo de capacidades y oportunidades | AJ36: 0.01099220553 | AK36: 0 | AL36: 0 | AM36: 0 | AN36: 0 | AO36: 0 | AP36: 0 | AQ36: Bajo | AR36: Bajo | AS36: 0.1690416317 | AT36: 0 | AU36: 0 | AV36: 0.06283755713 | AW36: 0 | AX36: 0 | AY36: 1 | AZ36: 0 | BA36: 0 | BB36: 102 | BC36: 2017_1 | BE36: 0 | BF36: 0 | BG36: 0 | BH36: 100 | BI36: 100 | BJ36: 0 | BK36: 0 | BL36: 0 | BM36: 0 | BN36: 0 | BO36: 0 | BP36: 0 | BQ36: 0 | BR36: 0 | BS36: 0 | BT36: 0 | BY36: 155000000 | BZ36: 155000000 | CA36: 0 | CB36: 0 | CC36: 0 | CD36: 44000000 | CE36: 0 | CF36: 0 | CG36: 0 | CH36: 44000000 | CI36: 2000000 | CJ36: 2000000 | CK36: 0 | CL36: 0 | CM36: 0 | CT36: Personas | CU36: 1 | CV36: Fin de la pobreza | CW36: 1.3 | CX36: Implementar a nivel nacional sistemas y medidas apropiados de protección social para todos, incluidos niveles mínimos, y, de aquí a 2030, lograr una amplia cobertura de las personas pobres y vulnerables | CY36: 0.0104959044 | DG36: Anexo 2 (15%)
A37: 36 | B37: 2 | C37: Chapinero | D37: 1 | E37: Pilar Igualdad de calidad de vida | F37: 4 | G37: Familias protegidas y adaptadas al cambio climático | H37: 50 | I37: Beneficiar a 8.750 familias localizadas en zonas de riesgo mitigable por fenómenos de remoción en masa, con obras de mitigación | J37: 432 | K37: Construcción de 16 obras de mitigación | L37: 36 | M37: Realizar 1 obra, de mitigación de riesgos en la localidad (incluye, estudios, diseños y/o mantenimiento). | N37: 3-3-1-15-01-04-1296-00 | O37: Reducción y mitigación del riesgo frente al cambio climático | P37: OBRAS DE MITIGACIÓN | Q37: Constante | R37: 1 | S37: Realizar | T37: 1 | U37: obra | V37: de mitigación de riesgos en la Localidad (incluye, estudios diseños y/o mantenimiento) | W37: Realizar 1 obra de mitigación de riesgos en la Localidad (incluye, estudios diseños y/o mantenimiento) | X37: 9 | Y37: Obras prioritarias de mitigación o prevención de riesgo | Z37: Obras de intervención de puntos críticos identificados con problemas de inundación, deslizamiento y remoción en masa | AA37: 94 | AB37: Sector Ambiente | AC37: 24 | AD37: Gestión para la prevención y mitigación del riesgo | AE37: 6 | AF37: Obras de mitigación de riesgo realizadas | AG37: 32 | AH37: Plan Distrital para la Prevención y Atención de Emergencias para Bogotá D.C." | AI37: 3. Mitigación de riesgos | AJ37: 0.02136666727 | AK37: 0 | AL37: 0 | AM37: 0 | AN37: 0 | AO37: 0 | AP37: 0 | AQ37: Bajo | AR37: Bajo | AS37: 0.5951417004 | AT37: 0 | AU37: 0 | AV37: 0.1221437474 | AW37: 0 | AX37: 0 | AY37: 0.5951417004 | AZ37: 0 | BA37: 0 | BB37: 5 | BC37: 2017_1 | BE37: 0 | BF37: 0 | BG37: 0 | BH37: 0 | BI37: 0 | BJ37: 0 | BK37: 0 | BL37: 0 | BM37: 0 | BN37: 0 | BO37: 0 | BP37: 0 | BQ37: 0 | BR37: 0 | BS37: 0 | BT37: 0 | BY37: 0 | BZ37: 0 | CA37: 0 | CB37: 0 | CC37: 0 | CD37: 0 | CE37: 0 | CF37: 0 | CG37: 0 | CH37: 0 | CI37: 0 | CJ37: 0 | CK37: 0 | CL37: 0 | CM37: 0 | CT37: Personas | CU37: 11 | CV37: Ciudades y comunidades sostenibles | CW37: 11.5 | CX37: De aquí a 2030, reducir significativamente el número de muertes causadas por los desastres, incluidos los relacionados con el agua, y de personas afectadas por ellos, y reducir considerablemente las pérdidas económicas directas provocadas por los desastres en comparación con el producto interno bruto mundial, haciendo especial hincapié en la protección de los pobres y las personas en situaciones de vulnerabilidad | CY37: 0 | DG37: Anexo 2 (15%)
A38: 37 | B38: 2 | C38: Chapinero | D38: 1 | E38: Pilar Igualdad de calidad de vida | F38: 4 | G38: Familias protegidas y adaptadas al cambio climático | H38: 45 | I38: Reasentar a 4286 familias localizadas en zonas de riesgo no mitigable (286 a cargo del IDIGER) | J38: 431 | K38: Atender al 100% de la población afectada por emergencias y desastres con respuesta integral y cordinada del SDGR - CC | L38: 37 | M38: Destinar recursos para adquirir 1 camión de bomberos 4*4 para atender las diferentes situaciones de riesgo en la Localidad | N38: 3-3-1-15-01-04-1296-00 | O38: Reducción y mitigación del riesgo frente al cambio climático | P38: DOTACIÓN | Q38: Suma | R38: 2 | S38: Adquirir | T38: 1 | U38: camión | V38: De bomberos 4x4 para atender las diferentes situaciones de riesgo de la Localidad | W38: Adquirir 1 camión De bomberos 4x4 para atender las diferentes situaciones de riesgo de la Localidad | X38: 15 | Y38: Proyecto estratégico | Z38: Proyecto estratégico | AA38: 94 | AB38: Sector Ambiente | AC38: 30 | AD38: No Aplica | AE38: 38 | AF38: Camión de bomberos adquirido | AG38: 32 | AH38: Plan Distrital para la Prevención y Atención de Emergencias para Bogotá D.C." | AI38: 2. Prevención de nuevos riesgos (generación y acumulación del riesgo). | AJ38: 0.0145351478 | AK38: 0 | AL38: 0 | AM38: 0 | AN38: 0 | AO38: 0 | AP38: 0 | AQ38: Bajo | AR38: Bajo | AS38: 0.4048582996 | AT38: 0 | AU38: 0 | AV38: 0.08309098463 | AW38: 0 | AX38: 0 | AY38: 0.4048582996 | AZ38: 0 | BA38: 0 | BB38: 0 | BC38: 2017_1 | BE38: 0 | BF38: 0 | BG38: 0 | BH38: 1 | BI38: 1 | BJ38: 0 | BK38: 0 | BL38: 0 | BM38: 0 | BN38: 0 | BO38: 0 | BP38: 0 | BQ38: 0 | BR38: 0 | BS38: 0 | BT38: 0 | BY38: 800000000 | BZ38: 800000000 | CA38: 0 | CB38: 0 | CC38: 0 | CD38: 0 | CE38: 0 | CF38: 0 | CG38: 0 | CH38: 0 | CI38: 0 | CJ38: 0 | CK38: 0 | CL38: 0 | CM38: 0 | CT38: Personas | CU38: 11 | CV38: Ciudades y comunidades sostenibles | CW38: 11.5 | CX38: De aquí a 2030, reducir significativamente el número de muertes causadas por los desastres, incluidos los relacionados con el agua, y de personas afectadas por ellos, y reducir considerablemente las pérdidas económicas directas provocadas por los desastres en comparación con el producto interno bruto mundial, haciendo especial hincapié en la protección de los pobres y las personas en situaciones de vulnerabilidad | CY38: 0.05417240979 | DG38: Anexo 2 (15%)
A39: 38 | B39: 2 | C39: Chapinero | D39: 1 | E39: Pilar Igualdad de calidad de vida | F39: 7 | G39: Inclusión educativa para la equidad | H39: 105 | I39: Contar con 30 colegios nuevos correspondientes a: 3 en ejecución, 5 en diseño y 22 en gestión de predios. | J39: 407 | K39: 300 sedes de IED con mejoramientos de infraestructura | L39: 38 | M39: Dotar 3 colegios de material pedagógico. | N39: 3-3-1-15-01-07-1297-00 | O39: Por un territorio educado, incluyente y diverso | P39: DOTACIÓN | Q39: Constante | R39: 1 | S39: Dotar | T39: 3 | U39: colegios | V39: de material pedagógico | W39: Dotar 3 colegios de material pedagógico | X39: 8 | Y39: Dotación | Z39: Dotación pedagógica a colegios | AA39: 90 | AB39: Sector Educación | AC39: 5 | AD39: Infraestructura y dotación escolar | AE39: 7 | AF39: IED dotados con material pedagógico | AG39: 24 | AH39: Plan Sectorial de Educación 2012-2016 | AI39: 3. Educación Media fortalecida y mayor acceso a la educación superior | AJ39: 0.007594614728 | AK39: 0 | AL39: 0 | AM39: 0 | AN39: 0 | AO39: 0 | AP39: 0 | AQ39: Bajo | AR39: Bajo | AS39: 1 | AT39: 0 | AU39: 0 | AV39: 0.04341503947 | AW39: 0 | AX39: 0 | AY39: 1 | AZ39: 0 | BA39: 0 | BB39: 9 | BC39: 2017_1 | BE39: 0 | BF39: 0 | BG39: 0 | BH39: 3 | BI39: 3 | BJ39: 0 | BK39: 0 | BL39: 0 | BM39: 0 | BN39: 0 | BO39: 0 | BP39: 0 | BQ39: 0 | BR39: 0 | BS39: 0 | BT39: 0 | BY39: 120000000 | BZ39: 120000000 | CA39: 0 | CB39: 0 | CC39: 0 | CD39: 0 | CE39: 0 | CF39: 0 | CG39: 0 | CH39: 0 | CI39: 0 | CJ39: 0 | CK39: 0 | CL39: 0 | CM39: 0 | CT39: Personas | CU39: 4 | CV39: Educación de calidad | CW39: 4.a | CX39: Construir y adecuar instalaciones educativas que tengan en cuenta las necesidades de los niños y las personas con discapacidad y las diferencias de género, y que ofrezcan entornos de aprendizaje seguros, no violentos, inclusivos y eficaces para todos. | CY39: 0.008125861468 | DG39: Anexo 2 (15%)
A40: 39 | B40: 2 | C40: Chapinero | D40: 1 | E40: Pilar Igualdad de calidad de vida | F40: 11 | G40: Mejores oportunidades para el desarrollo a través de la cultura, la recreación y el deporte | H40: 159 | I40: Aumentar a 15% el porcentaje de la población que realiza prácticas culturales | L40: 39 | M40: Realizar 8 eventos artísticos en los que se fortalezca la oferta que desarrollan las diferentes organizaciones culturales y sociales de la localidad para generar circulación y promoción que visibilice las prácticas de las poblaciones con enfoque diferencial y de derechos. | N40: 3-3-1-15-01-11-1298-00 | O40: Cultura y deporte: transformando vidas y haciendo ciudadanos felices | P40: EVENTOS CULTURALES Y ARTISTICOS | Q40: Suma | R40: 1 | S40: Realizar | T40: 8 | U40: eventos | V40: Artísticos en los que se fortalezca la oferta que desarrollan las diferentes organizaciones culturales y sociales de la localidad para generar circulación y promoción que visibilice las prácticas de las poblaciones con enfoque diferencial y de derechos | W40: Realizar 8 eventos Artísticos en los que se fortalezca la oferta que desarrollan las diferentes organizaciones culturales y sociales de la localidad para generar circulación y promoción que visibilice las prácticas de las poblaciones con enfoque diferencial y de derechos | X40: 11 | Y40: Eventos artísticos, culturales y deportivos | Z40: Realización de eventos artísticos, culturales y deportivos | AA40: 93 | AB40: Sector Cultura, recreación y deporte | AC40: 12 | AD40: Espacios artísticos y culturales | AE40: 8 | AF40: Eventos artísticos y culturales realizados | AJ40: 0.01353585639 | AK40: 0 | AL40: 0 | AM40: 0 | AN40: 0 | AO40: 0 | AP40: 0 | AQ40: Bajo | AR40: Bajo | AS40: 0.275823769 | AT40: 0 | AU40: 0 | AV40: 0.07737847943 | AW40: 0 | AX40: 0 | AY40: 0.275823769 | AZ40: 0 | BA40: 0 | BB40: 2.5 | BC40: 2017_1 | BE40: 0 | BF40: 0 | BG40: 0 | BH40: 2 | BI40: 2 | BJ40: 0 | BK40: 0 | BL40: 0 | BM40: 0 | BN40: 0 | BO40: 0 | BP40: 0 | BQ40: 0 | BR40: 0 | BS40: 0 | BT40: 0 | BY40: 137000000 | BZ40: 137000000 | CA40: 0 | CB40: 0 | CC40: 0 | CD40: 27000000 | CE40: 0 | CF40: 0 | CG40: 0 | CH40: 27000000 | CI40: 0 | CJ40: 0 | CK40: 0 | CL40: 0 | CM40: 0 | CT40: Personas | CU40: 11 | CV40: Ciudades y comunidades sostenibles | CW40: 11.4 | CX40: Redoblar los esfuerzos para proteger y salvaguardar el patrimonio cultural y natural del mundo | CY40: 0.009277025176 | DG40: Anexo 2 (15%)
A41: 40 | B41: 2 | C41: Chapinero | D41: 1 | E41: Pilar Igualdad de calidad de vida | F41: 11 | G41: Mejores oportunidades para el desarrollo a través de la cultura, la recreación y el deporte | H41: 192 | I41: Aumentar a 36% el porcentaje de la población que practica algún deporte | J41: 350 | K41: Realizar torneos interbarriales en 4 deportes | L41: 40 | M41: Realizar 8 eventos de recreación y deporte que promuevan la práctica de actividad física o deportiva en los diferentes grupos poblacionales de la localidad con enfoque diferencial y de derechos. | N41: 3-3-1-15-01-11-1298-00 | O41: Cultura y deporte: transformando vidas y haciendo ciudadanos felices | P41: EVENTOS RECREATIVOS Y DEPORTIVOS | Q41: Suma | R41: 2 | S41: Realizar | T41: 8 | U41: eventos | V41: De recreación y deporte que promuevan la práctica de actividad física o deportiva en los diferentes grupos poblacionales de la localidad con enfoque diferencial y de derechos | W41: Realizar 8 eventos De recreación y deporte que promuevan la práctica de actividad física o deportiva en los diferentes grupos poblacionales de la localidad con enfoque diferencial y de derechos | X41: 11 | Y41: Eventos artísticos, culturales y deportivos | Z41: Realización de eventos artísticos, culturales y deportivos | AA41: 93 | AB41: Sector Cultura, recreación y deporte | AC41: 16 | AD41: Eventos y actividades recreativas y deportivas | AE41: 9 | AF41: Eventos de recreación y deporte realizados | AG41: 9 | AH41: Política Pública de Deporte, Recreación , Actividad Física y Parques para Bogotá 2009-2019, denominada “Bogotá mas activa”. | AI41: 1. Aumentar la participación | AJ41: 0.01220952416 | AK41: 0 | AL41: 0 | AM41: 0 | AN41: 0 | AO41: 0 | AP41: 0 | AQ41: Bajo | AR41: Bajo | AS41: 0.2487967419 | AT41: 0 | AU41: 0 | AV41: 0.06979642709 | AW41: 0 | AX41: 0 | AY41: 0.2487967419 | AZ41: 0 | BA41: 0 | BB41: 0 | BC41: 2017_1 | BE41: 0 | BF41: 0 | BG41: 0 | BH41: 2 | BI41: 2 | BJ41: 0 | BK41: 0 | BL41: 0 | BM41: 0 | BN41: 0 | BO41: 0 | BP41: 0 | BQ41: 0 | BR41: 0 | BS41: 0 | BT41: 0 | BY41: 180000000 | BZ41: 180000000 | CA41: 0 | CB41: 0 | CC41: 0 | CD41: 66000000 | CE41: 0 | CF41: 0 | CG41: 0 | CH41: 66000000 | CI41: 3000000 | CJ41: 3000000 | CK41: 0 | CL41: 0 | CM41: 0 | CT41: Personas | CU41: 3 | CV41: Salud y Bienestar | CW41: 3.d | CX41: Reforzar la capacidad de todos los países, en particular los países en desarrollo, en materia de alerta temprana, reducción de riesgos y gestión de los riesgos para la salud nacional y mundial | CY41: 0.0121887922 | DG41: Anexo 2 (15%)
A42: 41 | B42: 2 | C42: Chapinero | D42: 1 | E42: Pilar Igualdad de calidad de vida | F42: 11 | G42: Mejores oportunidades para el desarrollo a través de la cultura, la recreación y el deporte | H42: 159 | I42: Aumentar a 15% el porcentaje de la población que realiza prácticas culturales | J42: 352 | K42: Implementar el Sistema Distrital de Formación Artística y Cultural (SIDFAC) | L42: 41 | M42: Vincular 900 personas a procesos de formación artística y cultural que permitan el desarrollo humano, para todas las poblaciones de la localidad con enfoque diferencial y de derecho. | N42: 3-3-1-15-01-11-1298-00 | O42: Cultura y deporte: transformando vidas y haciendo ciudadanos felices | P42: PROCESOS DE FORMACIÓN ARTÍSTICA Y CULTURAL | Q42: Suma | R42: 3 | S42: Vincular | T42: 900 | U42: personas | V42: a procesos de formación artística y cultural que permitan el desarrollo humano, para todas las poblaciones de la localidad con enfoque diferencial y de derechos | W42: Vincular 900 personas a procesos de formación artística y cultural que permitan el desarrollo humano, para todas las poblaciones de la localidad con enfoque diferencial y de derechos | X42: 10 | Y42: Procesos de formación artística, cultural y deportiva | Z42: Procesos de formación en áreas artísticas, en cultura y disciplinas deportivas | AA42: 93 | AB42: Sector Cultura, recreación y deporte | AC42: 13 | AD42: Formación artística y cultural | AE42: 10 | AF42: Personas vinculadas a procesos de formación artística y cultural | AJ42: 0.01166445611 | AK42: 0 | AL42: 0 | AM42: 0 | AN42: 0 | AO42: 0 | AP42: 0 | AQ42: Bajo | AR42: Bajo | AS42: 0.2376897445 | AT42: 0 | AU42: 0 | AV42: 0.06668051516 | AW42: 0 | AX42: 0 | AY42: 0.2376897445 | AZ42: 0 | BA42: 0 | BB42: 1207 | BC42: 2017_1 | BE42: 0 | BF42: 0 | BG42: 0 | BH42: 225 | BI42: 225 | BJ42: 0 | BK42: 0 | BL42: 0 | BM42: 0 | BN42: 0 | BO42: 0 | BP42: 0 | BQ42: 0 | BR42: 0 | BS42: 0 | BT42: 0 | BY42: 150000000 | BZ42: 150000000 | CA42: 0 | CB42: 0 | CC42: 0 | CD42: 0 | CE42: 0 | CF42: 0 | CG42: 0 | CH42: 0 | CI42: 0 | CJ42: 0 | CK42: 0 | CL42: 0 | CM42: 0 | CT42: Personas | CU42: 4 | CV42: Educación de calidad | CW42: 4.3 | CX42: De aquí a 2030, asegurar el acceso igualitario de todos los hombres y las mujeres a una formación técnica, profesional y superior de calidad, incluida la enseñanza universitaria. | CY42: 0.01015732684 | DG42: Anexo 2 (15%)
A43: 42 | B43: 2 | C43: Chapinero | D43: 1 | E43: Pilar Igualdad de calidad de vida | F43: 11 | G43: Mejores oportunidades para el desarrollo a través de la cultura, la recreación y el deporte | H43: 192 | I43: Aumentar a 36% el porcentaje de la población que practica algún deporte | J43: 349 | K43: Garantizar la asistencia técnica del IDRD a las escuelas de formación deportiva por los Fondos de Desarrollo Local | L43: 42 | M43: Vincular 600 personas a procesos de formación deportiva en disciplinas deportivas que permitan capacitar a las distintas poblaciones de la localidad con enfoque diferencial y de derecho. | N43: 3-3-1-15-01-11-1298-00 | O43: Cultura y deporte: transformando vidas y haciendo ciudadanos felices | P43: PROCESOS DE FORMACIÓN DEPORTIVA | Q43: Suma | R43: 4 | S43: Vincular | T43: 600 | U43: personas | V43: a procesos de formación deportiva en disciplinas deportivas que permitan capacitar a las distintas poblaciones de la localidad con enfoque diferencial y de derechos | W43: Vincular 600 personas a procesos de formación deportiva en disciplinas deportivas que permitan capacitar a las distintas poblaciones de la localidad con enfoque diferencial y de derechos | X43: 10 | Y43: Procesos de formación artística, cultural y deportiva | Z43: Procesos de formación en áreas artísticas, en cultura y disciplinas deportivas | AA43: 93 | AB43: Sector Cultura, recreación y deporte | AC43: 16 | AD43: Eventos y actividades recreativas y deportivas | AE43: 11 | AF43: Personas vinculadas a procesos de formación deportiva | AG43: 9 | AH43: Política Pública de Deporte, Recreación , Actividad Física y Parques para Bogotá 2009-2019, denominada “Bogotá mas activa”. | AI43: 1. Aumentar la participación | AJ43: 0.01166445611 | AK43: 0 | AL43: 0 | AM43: 0 | AN43: 0 | AO43: 0 | AP43: 0 | AQ43: Bajo | AR43: Bajo | AS43: 0.2376897445 | AT43: 0 | AU43: 0 | AV43: 0.06668051516 | AW43: 0 | AX43: 0 | AY43: 0.2376897445 | AZ43: 0 | BA43: 0 | BB43: 3579 | BC43: 2017_1 | BE43: 0 | BF43: 0 | BG43: 0 | BH43: 150 | BI43: 150 | BJ43: 0 | BK43: 0 | BL43: 0 | BM43: 0 | BN43: 0 | BO43: 0 | BP43: 0 | BQ43: 0 | BR43: 0 | BS43: 0 | BT43: 0 | BY43: 150000000 | BZ43: 150000000 | CA43: 0 | CB43: 0 | CC43: 0 | CD43: 0 | CE43: 0 | CF43: 0 | CG43: 0 | CH43: 0 | CI43: 0 | CJ43: 0 | CK43: 0 | CL43: 0 | CM43: 0 | CT43: Personas | CU43: 11 | CV43: Ciudades y comunidades sostenibles | CW43: 11.4 | CX43: Redoblar los esfuerzos para proteger y salvaguardar el patrimonio cultural y natural del mundo | CY43: 0.01015732684 | DG43: Anexo 2 (15%)
A44: 43 | B44: 2 | C44: Chapinero | D44: 2 | E44: Pilar Democracia urbana | F44: 15 | G44: Recuperación, incorporación, vida urbana y control de la ilegalidad | H44: 258 | I44: 100% de polígonos identificados de control y prevención, monitoreados en áreas susceptibles de ocupación ilegal | J44: 176 | K44: Monitorear el 100% de polígonos identificados de control y prevención, en áreas susceptibles de ocupación ilegal | L44: 43 | M44: Acompañamiento a los procesos de titularización predial. | N44: 3-3-1-15-02-15-1299-00 | O44: Asesoría para legalización de barrios y titulación de predios | P44: DEMANDAS DE TITULACIÓN | Q44: Suma | R44: 1 | S44: Realizar | T44: 3 | U44: acompañamientos | V44: a los procesos de titularización predial | W44: Realizar 3 acompañamientos a los procesos de titularización predial | X44: 4 | Y44: Inspección, vigilancia y control - IVC | Z44: Asesoría para legalización de barrios y titulación de predios | AA44: 96 | AB44: Sector Hábitat | AC44: 19 | AD44: Regulación legalización de predios y apoyo a la vivienda | AE44: 12 | AF44: Demandas de titulación predial presentadas | AG44: 34 | AH44: Política Distrital Integral de Vivienda y Hábitat | AI44: 3. Asentamientos humanos y mejoramiento integral de barrios y vivienda | AJ44: 0.00145351478 | AK44: 0 | AL44: 0 | AM44: 0 | AN44: 0 | AO44: 0 | AP44: 0 | AQ44: Bajo | AR44: Bajo | AS44: 0.5 | AT44: 0 | AU44: 0 | AV44: 0.002537829521 | AW44: 0 | AX44: 0 | AY44: 0.5 | AZ44: 0 | BA44: 0 | BB44: 0 | BC44: 2017_1 | BE44: 0 | BF44: 0 | BG44: 0 | BH44: 0 | BI44: 0 | BJ44: 0 | BK44: 0 | BL44: 0 | BM44: 0 | BN44: 0 | BO44: 0 | BP44: 0 | BQ44: 0 | BR44: 0 | BS44: 0 | BT44: 0 | BY44: 0 | BZ44: 0 | CA44: 0 | CB44: 0 | CC44: 0 | CD44: 0 | CE44: 0 | CF44: 0 | CG44: 0 | CH44: 0 | CI44: 0 | CJ44: 0 | CK44: 0 | CL44: 0 | CM44: 0 | CT44: Personas | CU44: 11 | CV44: Ciudades y comunidades sostenibles | CW44: 11.1 | CX44: De aquí a 2030, asegurar el acceso de todas las personas a viviendas y servicios básicos adecuados, seguros y asequibles y mejorar los barrios marginales | CY44: 0 | DG44: Anexo 1 (85%)
A45: 44 | B45: 2 | C45: Chapinero | D45: 2 | E45: Pilar Democracia urbana | F45: 15 | G45: Recuperación, incorporación, vida urbana y control de la ilegalidad | H45: 258 | I45: 100% de polígonos identificados de control y prevención, monitoreados en áreas susceptibles de ocupación ilegal | J45: 176 | K45: Monitorear el 100% de polígonos identificados de control y prevención, en áreas susceptibles de ocupación ilegal | L45: 44 | M45: Realizar 4 estudios preliminares para la regularización urbanística. | N45: 3-3-1-15-02-15-1299-00 | O45: Asesoría para legalización de barrios y titulación de predios | P45: ESTUDIOS DE REGULARIZACIÓN | Q45: Suma | R45: 2 | S45: Realizar | T45: 4 | U45: estudios | V45: preliminares para la regularización urbanística | W45: Realizar 4 estudios preliminares para la regularización urbanística | X45: 4 | Y45: Inspección, vigilancia y control - IVC | Z45: Asesoría para legalización de barrios y titulación de predios | AA45: 96 | AB45: Sector Hábitat | AC45: 19 | AD45: Regulación legalización de predios y apoyo a la vivienda | AE45: 13 | AF45: Estudios preliminares para la regularización urbanística (levantamiento topográficos y análisis de los mismos) a asentamientos de origen informal previamente legalizados y priorizados en los territorios diagnosticados por la SDHT | AG45: 34 | AH45: Política Distrital Integral de Vivienda y Hábitat | AI45: 3. Asentamientos humanos y mejoramiento integral de barrios y vivienda | AJ45: 0.00145351478 | AK45: 0 | AL45: 0 | AM45: 0 | AN45: 0 | AO45: 0 | AP45: 0 | AQ45: Bajo | AR45: Bajo | AS45: 0.5 | AT45: 0 | AU45: 0 | AV45: 0.002537829521 | AW45: 0 | AX45: 0 | AY45: 0.5 | AZ45: 0 | BA45: 0 | BB45: 0 | BC45: 2017_1 | BE45: 0 | BF45: 0 | BG45: 0 | BH45: 0 | BI45: 0 | BJ45: 0 | BK45: 0 | BL45: 0 | BM45: 0 | BN45: 0 | BO45: 0 | BP45: 0 | BQ45: 0 | BR45: 0 | BS45: 0 | BT45: 0 | BY45: 0 | BZ45: 0 | CA45: 0 | CB45: 0 | CC45: 0 | CD45: 0 | CE45: 0 | CF45: 0 | CG45: 0 | CH45: 0 | CI45: 0 | CJ45: 0 | CK45: 0 | CL45: 0 | CM45: 0 | CT45: Personas | CU45: 11 | CV45: Ciudades y comunidades sostenibles | CW45: 11.1 | CX45: De aquí a 2030, asegurar el acceso de todas las personas a viviendas y servicios básicos adecuados, seguros y asequibles y mejorar los barrios marginales | CY45: 0 | DG45: Anexo 1 (85%)
A46: 45 | B46: 2 | C46: Chapinero | D46: 2 | E46: Pilar Democracia urbana | F46: 17 | G46: Espacio público, derecho de todos | H46: 296 | I46: Disminuir a 11,21% el porcentaje de personas que considera que las canchas y escenarios deportivos han empeorado | J46: 368 | K46: Construcción y/o mejoramiento de 64 parques en todas las escalas, en los que se construirán cuatro xtreme parks | L46: 45 | M46: Construir 2 parques vecinales y/o de bolsillo y 4 muros verdes. | N46: 3-3-1-15-02-17-1300-00 | O46: Adecuación y mantenimiento de parques | P46: CONSTRUCCIÓN DE PARQUES | Q46: Suma | R46: 1 | S46: Construir | T46: 2 | U46: Parques | V46: Vecinales y/o de bolsillo | W46: Construir 2 Parques Vecinales y/o de bolsillo | X46: 2 | Y46: Parques | Z46: Construcción, mantenimiento y dotación de parques vecinales y/o de bolsillo | AA46: 93 | AB46: Sector Cultura, recreación y deporte | AC46: 17 | AD46: Parques y escenarios deportivos | AE46: 14 | AF46: Parques vecinales y/o de bolsillo construidos | AG46: 9 | AH46: Política Pública de Deporte, Recreación , Actividad Física y Parques para Bogotá 2009-2019, denominada “Bogotá mas activa”. | AI46: 5. Mejorar los parques, escenarios y entornos | AJ46: 0.03684659968 | AK46: 0 | AL46: 0 | AM46: 0 | AN46: 0 | AO46: 0 | AP46: 0 | AQ46: Bajo | AR46: Bajo | AS46: 0.3684593023 | AT46: 0 | AU46: 0 | AV46: 0.06433397837 | AW46: 0 | AX46: 0 | AY46: 0.3684593023 | AZ46: 0 | BA46: 0 | BB46: 0 | BC46: 2017_1 | BE46: 0 | BF46: 0 | BG46: 0 | BH46: 0 | BI46: 0 | BJ46: 0 | BK46: 0 | BL46: 0 | BM46: 0 | BN46: 0 | BO46: 0 | BP46: 0 | BQ46: 0 | BR46: 0 | BS46: 0 | BT46: 0 | BY46: 0 | BZ46: 0 | CA46: 0 | CB46: 0 | CC46: 0 | CD46: 0 | CE46: 0 | CF46: 0 | CG46: 0 | CH46: 0 | CI46: 0 | CJ46: 0 | CK46: 0 | CL46: 0 | CM46: 0 | CT46: Personas | CU46: 11 | CV46: Ciudades y comunidades sostenibles | CW46: 11.7 | CX46: De aquí a 2030, proporcionar acceso universal a zonas verdes y espacios públicos seguros, inclusivos y accesibles, en particular para las mujeres y los niños, las personas de edad y las personas con discapacidad | CY46: 0 | DG46: Anexo 1 (85%)
A47: 46 | B47: 2 | C47: Chapinero | D47: 2 | E47: Pilar Democracia urbana | F47: 17 | G47: Espacio público, derecho de todos | H47: 296 | I47: Disminuir a 11,21% el porcentaje de personas que considera que las canchas y escenarios deportivos han empeorado | J47: 368 | K47: Construcción y/o mejoramiento de 64 parques en todas las escalas, en los que se construirán cuatro xtreme parks | L47: 46 | M47: Intervención de 20 parques vecinales y/o de bolsillo y 5 muros y techos verdes | N47: 3-3-1-15-02-17-1300-00 | O47: Adecuación y mantenimiento de parques | P47: INTERVENCIÓN DE PARQUES | Q47: Suma | R47: 2 | S47: Intervenir | T47: 20 | U47: Parques | V47: Vecinales y/o de bolsillo | W47: Intervenir 20 Parques Vecinales y/o de bolsillo | X47: 2 | Y47: Parques | Z47: Construcción, mantenimiento y dotación de parques vecinales y/o de bolsillo | AA47: 93 | AB47: Sector Cultura, recreación y deporte | AC47: 17 | AD47: Parques y escenarios deportivos | AE47: 15 | AF47: Parques vecinales y/o de bolsillo intervenidos | AG47: 9 | AH47: Política Pública de Deporte, Recreación , Actividad Física y Parques para Bogotá 2009-2019, denominada “Bogotá mas activa”. | AI47: 5. Mejorar los parques, escenarios y entornos | AJ47: 0.06315521721 | AK47: 0 | AL47: 0 | AM47: 0 | AN47: 0 | AO47: 0 | AP47: 0 | AQ47: Bajo | AR47: Bajo | AS47: 0.6315406977 | AT47: 0 | AU47: 0 | AV47: 0.1102686927 | AW47: 0 | AX47: 0 | AY47: 0.6315406977 | AZ47: 0 | BA47: 0 | BB47: 29 | BC47: 2017_1 | BE47: 0 | BF47: 0 | BG47: 0 | BH47: 5 | BI47: 5 | BJ47: 0 | BK47: 0 | BL47: 0 | BM47: 0 | BN47: 0 | BO47: 0 | BP47: 0 | BQ47: 0 | BR47: 0 | BS47: 0 | BT47: 0 | BY47: 1476767000 | BZ47: 1476767000 | CA47: 0 | CB47: 0 | CC47: 0 | CD47: 66000000 | CE47: 0 | CF47: 0 | CG47: 0 | CH47: 66000000 | CI47: 3000000 | CJ47: 3000000 | CK47: 0 | CL47: 0 | CM47: 0 | CT47: Personas | CU47: 11 | CV47: Ciudades y comunidades sostenibles | CW47: 11.7 | CX47: De aquí a 2030, proporcionar acceso universal a zonas verdes y espacios públicos seguros, inclusivos y accesibles, en particular para las mujeres y los niños, las personas de edad y las personas con discapacidad | CY47: 0.1000000339 | DG47: Anexo 1 (85%)
A48: 47 | B48: 2 | C48: Chapinero | D48: 2 | E48: Pilar Democracia urbana | F48: 18 | G48: Mejor movilidad para todos | H48: 300 | I48: Alcanzar 50% de malla vial en buen estado | J48: 229-226 | K48: Conservar y rehabilitar 1,083 km carril de la infraestructura vial local (por donde no circulan rutas de Transmilenio zonal)/ Conservar 750 km carril de malla vial arterial, troncal e intermedia y local (por donde circulan las rutas de Transmilenio troncal y zonal) circulan rutas de Transmilenio zonal) | L48: 47 | M48: Mantener 9,4 km/carril de malla vial local. | N48: 3-3-1-15-02-18-1301-00 | O48: Mejorar la calidad de la movilidad | P48: MANTENIMIENTO MALLA VIAL LOCAL | Q48: Suma | R48: 1 | S48: Mantener | T48: 9.4 | U48: Km/Carril | V48: de malla vial local | W48: Mantener 9,4 Km/Carril de malla vial local | X48: 1 | Y48: Malla vial, espacio público y peatonal | Z48: Construcción y/o mantenimiento de malla vial, espacio público y peatonal, y puentes peatonales y/o vehiculares sobre cuerpos de agua (de escala local: urbana y/o rural) | AA48: 95 | AB48: Sector Movilidad | AC48: 22 | AD48: Vías Locales | AE48: 18 | AF48: Km/carril de malla vial local mantenido | AJ48: 0.2626319519 | AK48: 0 | AL48: 0 | AM48: 0 | AN48: 0 | AO48: 0 | AP48: 0 | AQ48: Bajo | AR48: Bajo | AS48: 0.5589930005 | AT48: 0 | AU48: 0 | AV48: 0.4585540716 | AW48: 0 | AX48: 0 | AY48: 0.5589930005 | AZ48: 0 | BA48: 0 | BB48: 29 | BC48: 2017_1 | BE48: 0 | BF48: 0 | BG48: 0 | BH48: 2 | BI48: 2 | BJ48: 0 | BK48: 0 | BL48: 0 | BM48: 0 | BN48: 0 | BO48: 0 | BP48: 0 | BQ48: 0 | BR48: 0 | BS48: 0 | BT48: 0 | BY48: 3874067000 | BZ48: 3874067000 | CA48: 0 | CB48: 0 | CC48: 0 | CD48: 196000000 | CE48: 0 | CF48: 0 | CG48: 0 | CH48: 196000000 | CI48: 3000000 | CJ48: 3000000 | CK48: 0 | CL48: 0 | CM48: 0 | CT48: Personas | CU48: 9 | CV48: Industria, innovación e infraestructura | CW48: 9.1 | CX48: Desarrollar infraestructuras fiables, sostenibles, resilientes y de calidad, incluidas infraestructuras regionales y transfronterizas, para apoyar el desarrollo económico y el bienestar humano, haciendo especial hincapié en el acceso asequible y equitativo para todos | CY48: 0.2623344313 | DG48: Anexo 1 (85%)
A49: 48 | B49: 2 | C49: Chapinero | D49: 2 | E49: Pilar Democracia urbana | F49: 18 | G49: Mejor movilidad para todos | H49: 300 | I49: Alcanzar 50% de malla vial en buen estado | J49: 228 | K49: Mantener periódicamente de 50 km carril de malla vial rural | L49: 48 | M49: Mantener 3,8 km/carril de malla vial rural. | N49: 3-3-1-15-02-18-1301-00 | O49: Mejorar la calidad de la movilidad | P49: MANTENIMIENTO MALLA VIAL RURAL | Q49: Suma | R49: 2 | S49: Mantener | T49: 3.8 | U49: Km/Carril | V49: de malla vial rural | W49: Mantener 3,8 Km/Carril de malla vial rural | X49: 1 | Y49: Malla vial, espacio público y peatonal | Z49: Construcción y/o mantenimiento de malla vial, espacio público y peatonal, y puentes peatonales y/o vehiculares sobre cuerpos de agua (de escala local: urbana y/o rural) | AA49: 95 | AB49: Sector Movilidad | AC49: 22 | AD49: Vías Locales | AE49: 19 | AF49: Km/carril de malla vial rural mantenidos | AJ49: 0.0379003979 | AK49: 0 | AL49: 0 | AM49: 0 | AN49: 0 | AO49: 0 | AP49: 0 | AQ49: Bajo | AR49: Bajo | AS49: 0.0806682393 | AT49: 0 | AU49: 0 | AV49: 0.06617390477 | AW49: 0 | AX49: 0 | AY49: 0.0806682393 | AZ49: 0 | BA49: 0 | BB49: 4 | BC49: 2017_1 | BE49: 0 | BF49: 0 | BG49: 0 | BH49: 1 | BI49: 1 | BJ49: 0 | BK49: 0 | BL49: 0 | BM49: 0 | BN49: 0 | BO49: 0 | BP49: 0 | BQ49: 0 | BR49: 0 | BS49: 0 | BT49: 0 | BY49: 474307000 | BZ49: 474307000 | CA49: 0 | CB49: 0 | CC49: 0 | CD49: 0 | CE49: 0 | CF49: 0 | CG49: 0 | CH49: 0 | CI49: 0 | CJ49: 0 | CK49: 0 | CL49: 0 | CM49: 0 | CT49: Personas | CU49: 9 | CV49: Industria, innovación e infraestructura | CW49: 9.1 | CX49: Desarrollar infraestructuras fiables, sostenibles, resilientes y de calidad, incluidas infraestructuras regionales y transfronterizas, para apoyar el desarrollo económico y el bienestar humano, haciendo especial hincapié en el acceso asequible y equitativo para todos | CY49: 0.03211794146 | DG49: Anexo 1 (85%)
A50: 49 | B50: 2 | C50: Chapinero | D50: 2 | E50: Pilar Democracia urbana | F50: 18 | G50: Mejor movilidad para todos | H50: 313 | I50: Llevar a 20% la satisfacción con el viaje a pie | L50: 49 | M50: Construir 2.820 m2 de espacio público teniendo en cuenta muros y techos verdes. | N50: 3-3-1-15-02-18-1301-00 | O50: Mejorar la calidad de la movilidad | P50: CONSTRUCCIÓN ESPACIO PÚBLICO | Q50: Suma | R50: 3 | S50: Construir | T50: 2820 | U50: M2 | V50: de espacio público teniendo en cuenta muros y techos verdes | W50: Construir 2820 M2 de espacio público teniendo en cuenta muros y techos verdes | X50: 1 | Y50: Malla vial, espacio público y peatonal | Z50: Construcción y/o mantenimiento de malla vial, espacio público y peatonal, y puentes peatonales y/o vehiculares sobre cuerpos de agua (de escala local: urbana y/o rural) | AA50: 95 | AB50: Sector Movilidad | AC50: 23 | AD50: Espacio Público | AE50: 20 | AF50: m2 de espacio público construidos | AJ50: 0.08526681081 | AK50: 0 | AL50: 0 | AM50: 0 | AN50: 0 | AO50: 0 | AP50: 0 | AQ50: Bajo | AR50: Bajo | AS50: 0.1814842028 | AT50: 0 | AU50: 0 | AV50: 0.1488754243 | AW50: 0 | AX50: 0 | AY50: 0.1814842028 | AZ50: 0 | BA50: 0 | BB50: 0 | BC50: 2017_1 | BE50: 0 | BF50: 0 | BG50: 0 | BH50: 705 | BI50: 705 | BJ50: 0 | BK50: 0 | BL50: 0 | BM50: 0 | BN50: 0 | BO50: 0 | BP50: 0 | BQ50: 0 | BR50: 0 | BS50: 0 | BT50: 0 | BY50: 1264818000 | BZ50: 1264818000 | CA50: 0 | CB50: 0 | CC50: 0 | CD50: 0 | CE50: 0 | CF50: 0 | CG50: 0 | CH50: 0 | CI50: 0 | CJ50: 0 | CK50: 0 | CL50: 0 | CM50: 0 | CT50: Personas | CU50: 9 | CV50: Industria, innovación e infraestructura | CW50: 9.1 | CX50: Desarrollar infraestructuras fiables, sostenibles, resilientes y de calidad, incluidas infraestructuras regionales y transfronterizas, para apoyar el desarrollo económico y el bienestar humano, haciendo especial hincapié en el acceso asequible y equitativo para todos | CY50: 0.08564779875 | DG50: Anexo 1 (85%)
A51: 50 | B51: 2 | C51: Chapinero | D51: 2 | E51: Pilar Democracia urbana | F51: 18 | G51: Mejor movilidad para todos | H51: 313 | I51: Llevar a 20% la satisfacción con el viaje a pie | L51: 50 | M51: Mantener 7.520 m2 de espacio público. | N51: 3-3-1-15-02-18-1301-00 | O51: Mejorar la calidad de la movilidad | P51: MANTENIMIENTO ESPACIO PÚBLICO | Q51: Suma | R51: 4 | S51: Mantener | T51: 7520 | U51: M2 | V51: de espacio público | W51: Mantener 7520 M2 de espacio público | X51: 1 | Y51: Malla vial, espacio público y peatonal | Z51: Construcción y/o mantenimiento de malla vial, espacio público y peatonal, y puentes peatonales y/o vehiculares sobre cuerpos de agua (de escala local: urbana y/o rural) | AA51: 95 | AB51: Sector Movilidad | AC51: 23 | AD51: Espacio Público | AE51: 21 | AF51: m2 de espacio público mantenidos | AJ51: 0.07850796708 | AK51: 0 | AL51: 0 | AM51: 0 | AN51: 0 | AO51: 0 | AP51: 0 | AQ51: Bajo | AR51: Bajo | AS51: 0.1670984957 | AT51: 0 | AU51: 0 | AV51: 0.137074517 | AW51: 0 | AX51: 0 | AY51: 0.1670984957 | AZ51: 0 | BA51: 0 | BB51: 4668 | BC51: 2017_1 | BE51: 0 | BF51: 0 | BG51: 0 | BH51: 1880 | BI51: 1880 | BJ51: 0 | BK51: 0 | BL51: 0 | BM51: 0 | BN51: 0 | BO51: 0 | BP51: 0 | BQ51: 0 | BR51: 0 | BS51: 0 | BT51: 0 | BY51: 1159417000 | BZ51: 1159417000 | CA51: 0 | CB51: 0 | CC51: 0 | CD51: 0 | CE51: 0 | CF51: 0 | CG51: 0 | CH51: 0 | CI51: 0 | CJ51: 0 | CK51: 0 | CL51: 0 | CM51: 0 | CT51: Personas | CU51: 9 | CV51: Industria, innovación e infraestructura | CW51: 9.1 | CX51: Desarrollar infraestructuras fiables, sostenibles, resilientes y de calidad, incluidas infraestructuras regionales y transfronterizas, para apoyar el desarrollo económico y el bienestar humano, haciendo especial hincapié en el acceso asequible y equitativo para todos | CY51: 0.07851051605 | DG51: Anexo 1 (85%)
A52: 51 | B52: 2 | C52: Chapinero | D52: 2 | E52: Pilar Democracia urbana | F52: 18 | G52: Mejor movilidad para todos | H52: 313 | I52: Llevar a 20% la satisfacción con el viaje a pie | L52: 51 | M52: Intervenir 2 puentes vehiculares y/o peatonales, de la localidad sobre cuerpos de agua. | N52: 3-3-1-15-02-18-1301-00 | O52: Mejorar la calidad de la movilidad | P52: INTERVENCIÓN PUENTES | Q52: Suma | R52: 5 | S52: Intervenir | T52: 2 | U52: Puentes | V52: Vehiculares y/o peatonales, de la localidad sobre cuerpos de agua | W52: Intervenir 2 Puentes Vehiculares y/o peatonales, de la localidad sobre cuerpos de agua | X52: 1 | Y52: Malla vial, espacio público y peatonal | Z52: Construcción y/o mantenimiento de malla vial, espacio público y peatonal, y puentes peatonales y/o vehiculares sobre cuerpos de agua (de escala local: urbana y/o rural) | AA52: 95 | AB52: Sector Movilidad | AC52: 23 | AD52: Espacio Público | AE52: 22 | AF52: Puentes vehiculares y/o peatonales, de escala local sobre cuerpos de agua intervenidos | AJ52: 0.005523356166 | AK52: 0 | AL52: 0 | AM52: 0 | AN52: 0 | AO52: 0 | AP52: 0 | AQ52: Bajo | AR52: Bajo | AS52: 0.01175606172 | AT52: 0 | AU52: 0 | AV52: 0.009643752181 | AW52: 0 | AX52: 0 | AY52: 0.01175606172 | AZ52: 0 | BA52: 0 | BB52: 0 | BC52: 2017_1 | BE52: 0 | BF52: 0 | BG52: 0 | BH52: 1 | BI52: 1 | BJ52: 0 | BK52: 0 | BL52: 0 | BM52: 0 | BN52: 0 | BO52: 0 | BP52: 0 | BQ52: 0 | BR52: 0 | BS52: 0 | BT52: 0 | BY52: 168194000 | BZ52: 168194000 | CA52: 0 | CB52: 0 | CC52: 0 | CD52: 0 | CE52: 0 | CF52: 0 | CG52: 0 | CH52: 0 | CI52: 0 | CJ52: 0 | CK52: 0 | CL52: 0 | CM52: 0 | CT52: Personas | CU52: 9 | CV52: Industria, innovación e infraestructura | CW52: 9.1 | CX52: Desarrollar infraestructuras fiables, sostenibles, resilientes y de calidad, incluidas infraestructuras regionales y transfronterizas, para apoyar el desarrollo económico y el bienestar humano, haciendo especial hincapié en el acceso asequible y equitativo para todos | CY52: 0.01138934286 | DG52: Anexo 1 (85%)
A53: 52 | B53: 2 | C53: Chapinero | D53: 3 | E53: Pilar Construcción de comunidad y cultura ciudadana | F53: 19 | G53: Seguridad y convivencia para todos | H53: 363 | I53: Aumentar en 17 puntos porcentuales las personas que consideran que el barrio en el que habitan es seguro | L53: 52 | M53: Realizar 4 dotaciones para seguridad. | N53: 3-3-1-15-03-19-1302-00 | O53: Entornos seguros para la ciudadanía | P53: DOTACIÓN | Q53: Suma | R53: 1 | S53: Realizar | T53: 4 | U53: dotaciones | V53: para seguridad | W53: Realizar 4 dotaciones para seguridad | X53: 3 | Y53: Seguridad y convivencia | Z53: Dotación con recursos tecnológicos para la seguridad | AA53: 102 | AB53: Sector Seguridad, Convivencia y Justicia | AC53: 31 | AD53: Infraestructura y dotaciones para seguridad | AE53: 23 | AF53: Dotaciones para seguridad realizadas | AG53: 31 | AH53: Política Pública Distrital de Convivencia y Seguridad Ciudadana | AJ53: 0.03499336834 | AK53: 0 | AL53: 0 | AM53: 0 | AN53: 0 | AO53: 0 | AP53: 0 | AQ53: Bajo | AR53: Bajo | AS53: 0.6998546512 | AT53: 0 | AU53: 0 | AV53: 0.6998546512 | AW53: 0 | AX53: 0 | AY53: 0.6998546512 | AZ53: 0 | BA53: 0 | BB53: 0 | BC53: 2017_1 | BE53: 0 | BF53: 0 | BG53: 0 | BH53: 1 | BI53: 1 | BJ53: 0 | BK53: 0 | BL53: 0 | BM53: 0 | BN53: 0 | BO53: 0 | BP53: 0 | BQ53: 0 | BR53: 0 | BS53: 0 | BT53: 0 | BY53: 516868000 | BZ53: 516868000 | CA53: 0 | CB53: 0 | CC53: 0 | CD53: 0 | CE53: 0 | CF53: 0 | CG53: 0 | CH53: 0 | CI53: 0 | CJ53: 0 | CK53: 0 | CL53: 0 | CM53: 0 | CT53: Alianza y justicia | CU53: 16 | CV53: Paz, justicia e instituciones sólidas | CW53: 16.1 | CX53: Garantizar el acceso público a la información y proteger las libertades fundamentales, de conformidad con las leyes nacionales y los acuerdos internacionales | CY53: 0.03499998138 | DG53: Anexo 1 (85%)
A54: 53 | B54: 2 | C54: Chapinero | D54: 3 | E54: Pilar Construcción de comunidad y cultura ciudadana | F54: 19 | G54: Seguridad y convivencia para todos | H54: 363 | I54: Aumentar en 17 puntos porcentuales las personas que consideran que el barrio en el que habitan es seguro | L54: 53 | M54: Vincular a 3.200 personas en ejercicios de convivencia ciudadana, teniendo en cuenta una perspectiva poblacional y diferencial. | N54: 3-3-1-15-03-19-1302-00 | O54: Entornos seguros para la ciudadanía | P54: CONVIVENCIA CIUDADANA | Q54: Suma | R54: 2 | S54: Vincular | T54: 3200 | U54: personas | V54: en ejercicios de convivencia ciudadana, teniendo en cuenta una perspectiva poblacional y diferencial | W54: Vincular 3200 personas en ejercicios de convivencia ciudadana, teniendo en cuenta una perspectiva poblacional y diferencial | X54: 3 | Y54: Seguridad y convivencia | Z54: Promoción de la convivencia ciudadana | AA54: 102 | AB54: Sector Seguridad, Convivencia y Justicia | AC54: 11 | AD54: Prevención, atención y gestión del conflicto en la localidad | AE54: 24 | AF54: Personas vinculadas a ejercicios de convivencia ciudadana | AG54: 31 | AH54: Política Pública Distrital de Convivencia y Seguridad Ciudadana | AJ54: 0.01500754011 | AK54: 0 | AL54: 0 | AM54: 0 | AN54: 0 | AO54: 0 | AP54: 0 | AQ54: Bajo | AR54: Bajo | AS54: 0.3001453488 | AT54: 0 | AU54: 0 | AV54: 0.3001453488 | AW54: 0 | AX54: 0 | AY54: 0.3001453488 | AZ54: 0 | BA54: 0 | BB54: 6413 | BC54: 2017_1 | BE54: 0 | BF54: 0 | BG54: 0 | BH54: 800 | BI54: 800 | BJ54: 0 | BK54: 0 | BL54: 0 | BM54: 0 | BN54: 0 | BO54: 0 | BP54: 0 | BQ54: 0 | BR54: 0 | BS54: 0 | BT54: 0 | BY54: 221515000 | BZ54: 221515000 | CA54: 0 | CB54: 0 | CC54: 0 | CD54: 35550000 | CE54: 0 | CF54: 0 | CG54: 0 | CH54: 35550000 | CI54: 0 | CJ54: 0 | CK54: 0 | CL54: 0 | CM54: 0 | CT54: Alianza y justicia | CU54: 16 | CV54: Paz, justicia e instituciones sólidas | CW54: 16.1 | CX54: Garantizar el acceso público a la información y proteger las libertades fundamentales, de conformidad con las leyes nacionales y los acuerdos internacionales | CY54: 0.01500000169 | DG54: Anexo 1 (85%)
A55: 54 | B55: 2 | C55: Chapinero | D55: 6 | E55: Eje transversal Sostenibilidad ambiental basada en la eficiencia energética | F55: 41 | G55: Desarrollo rural sostenible | H55: 642 | I55: Alcanzar un aumento del 20% en al menos uno de los componentes del índice de sostenibilidad de las unidades productivas intervenidas | J55: 280 | K55: Implementar en 80 unidades agrícolas familiares procesos de reconversión productiva | L55: 54 | M55: Beneficiar Directamente 140 personas a través de emprendimientos rurales con enfoque diferencial y de derechos. | N55: 3-3-1-15-06-41-1303-00 | O55: Apoyo y asesoría a la ruralidad | P55: EMPRENDIMIENTO RURAL | Q55: Suma | R55: 1 | S55: Beneficiar | T55: 140 | U55: personas | V55: a través de emprendimientos rurales con enfoque diferencial y de derechos | W55: Beneficiar 140 personas a través de emprendimientos rurales con enfoque diferencial y de derechos | X55: 12 | Y55: Protección y recuperación de los recursos ambientales | Z55: Apoyo a emprendimientos productivos rurales | AA55: 94 | AB55: Sector Ambiente | AC55: 30 | AD55: No Aplica | AE55: 30 | AF55: Personas beneficiadas a través de emprendimientos rurales | AG55: 6 | AH55: Política Pública Distrital de Ruralidad | AI55: 2. Desarrollo Humano Sostenible, Productividad y Seguridad Alimentaria. | AJ55: 0.00519631534 | AK55: 0 | AL55: 0 | AM55: 0 | AN55: 0 | AO55: 0 | AP55: 0 | AQ55: Bajo | AR55: Bajo | AS55: 0.5 | AT55: 0 | AU55: 0 | AV55: 0.5 | AW55: 0 | AX55: 0 | AY55: 0.5 | AZ55: 0 | BA55: 0 | BB55: 0 | BC55: 2017_1 | BE55: 0 | BF55: 0 | BG55: 0 | BH55: 0 | BI55: 0 | BJ55: 0 | BK55: 0 | BL55: 0 | BM55: 0 | BN55: 0 | BO55: 0 | BP55: 0 | BQ55: 0 | BR55: 0 | BS55: 0 | BT55: 0 | BY55: 0 | BZ55: 0 | CA55: 0 | CB55: 0 | CC55: 0 | CD55: 0 | CE55: 0 | CF55: 0 | CG55: 0 | CH55: 0 | CI55: 0 | CJ55: 0 | CK55: 0 | CL55: 0 | CM55: 0 | CT55: Prosperidad | CU55: 8 | CV55: Poner fin al hambre, lograr la seguridad alimentaria y la mejora de la nutrición y promover la agricultura sostenible | CW55: 8.2 | CX55: De aquí a 2030, asegurar la sostenibilidad de los sistemas de producción de alimentos y aplicar prácticas agrícolas resilientes que aumenten la productividad y la producción, contribuyan al mantenimiento de los ecosistemas, fortalezcan la capacidad de adaptación al cambio climático, los fenómenos meteorológicos extremos, las sequías, las inundaciones y otros desastres, y mejoren progresivamente la calidad de la tierra y el suelo | CY55: 0 | DG55: Anexo 2 (15%)
A56: 55 | B56: 2 | C56: Chapinero | D56: 6 | E56: Eje transversal Sostenibilidad ambiental basada en la eficiencia energética | F56: 41 | G56: Desarrollo rural sostenible | H56: 639 | I56: Duplicar el número de predios con adopción de buenas prácticas productivas que contribuyan a la adaptación y reducción de la vulnerabilidad frente al cambio climático y la promoción del desarrollo sostenible. | J56: 468 | K56: Duplicar el número de predios con adopción de buenas prácticas productivas que contribuyan a la adaptación y reducción de la vulnerabilidad frente al cambio climático y la promoción del desarrollo sostenible. | L56: 55 | M56: Beneficiar Directamente 140 personas a través de emprendimientos rurales, con acciones de asesoría técnica agropecuaria y/o asistencia en tecnologías ambientales sostenibles con enfoque diferencial y de derechos. | N56: 3-3-1-15-06-41-1303-00 | O56: Apoyo y asesoría a la ruralidad | P56: ASESORÍA Y ASISTENCIA TÉCNICA RURAL | Q56: Suma | R56: 2 | S56: Beneficiar | T56: 140 | U56: personas | V56: a través de emprendimientos rurales, con acciones de asesoría técnica agropecuaria y/o asistencia en tecnologías ambientales sostenibles con enfoque diferencial y de derechos | W56: Beneficiar 140 personas a través de emprendimientos rurales, con acciones de asesoría técnica agropecuaria y/o asistencia en tecnologías ambientales sostenibles con enfoque diferencial y de derechos | X56: 12 | Y56: Protección y recuperación de los recursos ambientales | Z56: Asesoría técnica agropecuaria, asistencia en tecnologías ambientales sostenibles y temas de productividad rural | AA56: 94 | AB56: Sector Ambiente | AC56: 30 | AD56: No Aplica | AE56: 31 | AF56: Personas beneficiadas con acciones de asesoría técnica agropecuaria y/o asistencia en tecnologías ambientales sostenibles | AG56: 6 | AH56: Política Pública Distrital de Ruralidad | AI56: 2. Desarrollo Humano Sostenible, Productividad y Seguridad Alimentaria. | AJ56: 0.00519631534 | AK56: 0 | AL56: 0 | AM56: 0 | AN56: 0 | AO56: 0 | AP56: 0 | AQ56: Bajo | AR56: Bajo | AS56: 0.5 | AT56: 0 | AU56: 0 | AV56: 0.5 | AW56: 0 | AX56: 0 | AY56: 0.5 | AZ56: 0 | BA56: 0 | BB56: 0 | BC56: 2017_1 | BE56: 0 | BF56: 0 | BG56: 0 | BH56: 0 | BI56: 0 | BJ56: 0 | BK56: 0 | BL56: 0 | BM56: 0 | BN56: 0 | BO56: 0 | BP56: 0 | BQ56: 0 | BR56: 0 | BS56: 0 | BT56: 0 | BY56: 0 | BZ56: 0 | CA56: 0 | CB56: 0 | CC56: 0 | CD56: 0 | CE56: 0 | CF56: 0 | CG56: 0 | CH56: 0 | CI56: 0 | CJ56: 0 | CK56: 0 | CL56: 0 | CM56: 0 | CT56: Planeta | CU56: 13 | CV56: Acción por el Clima | CW56: 13.1 | CX56: Fortalecer la resiliencia y la capacidad de adaptación a los riesgos relacionados con el clima y los desastres naturales en todos los países. | CY56: 0 | DG56: Anexo 2 (15%)
A57: 56 | B57: 2 | C57: Chapinero | D57: 7 | E57: Eje transversal Gobierno legítimo, fortalecimiento local y eficiencia | F57: 45 | G57: Gobernanza e influencia local, regional e internacional | J57: 158 | K57: Implementar en un 100% en las Alcaldías Locales un nuevo modelo de gestión | L57: 56 | M57: Cubrir 7 ediles anuales, a través del pago de seguridad social y honorarios. | N57: 3-3-1-15-07-45-1304-00 | O57: Gobernanza y fortalecimiento del desarrollo institucional | P57: HONORARIOS A EDILES | Q57: Constante | R57: 1 | S57: Cubrir | T57: 7 | U57: Ediles | V57: anuales, a través del pago de seguridad social y honorarios | W57: Cubrir 7 Ediles anuales, a través del pago de seguridad social y honorarios | X57: 6 | Y57: Gestión pública local | Z57: Fortalecimiento institucional y pago de honorarios de ediles | AA57: 98 | AB57: Sector Gobierno | AC57: 29 | AD57: Fortalecimiento institucional | AE57: 32 | AF57: Ediles con pago de honorarios cubierto | AG57: 37 | AH57: Política Pública de transparencia, integridad y no tolerancia con la corrupción en Bogotá | AJ57: 0.04120714403 | AK57: 1.75 | AL57: 0.25 | AM57: 0.01030178601 | AN57: 1.75 | AO57: 0.25 | AP57: 0.01030178601 | AQ57: Bajo | AR57: Bajo | AS57: 0.2146914048 | AT57: 0.05367285119 | AU57: 0.05367285119 | AV57: 0.2146914048 | AW57: 0.05367285119 | AX57: 0.05367285119 | AY57: 0.2881097561 | AZ57: 0.07202743902 | BA57: 0.07202743902 | BB57: 7 | BC57: 2017_1 | BE57: 0 | BF57: 0 | BG57: 0 | BH57: 7 | BI57: 7 | BJ57: 0 | BK57: 0 | BL57: 0 | BM57: 7 | BN57: 0 | BO57: 0 | BP57: 0 | BQ57: 7 | BR57: 0 | BS57: 0 | BT57: 0 | BY57: 530156000 | BZ57: 530156000 | CA57: 0 | CB57: 0 | CC57: 0 | CD57: 88335216 | CE57: 0 | CF57: 0 | CG57: 0 | CH57: 88335216 | CI57: 88335216 | CJ57: 88335216 | CK57: 0 | CL57: 0 | CM57: 0 | CT57: Alianza y justicia | CU57: 16 | CV57: Paz, justicia e instituciones sólidas | CW57: 16.1 | CX57: Garantizar el acceso público a la información y proteger las libertades fundamentales, de conformidad con las leyes nacionales y los acuerdos internacionales | CY57: 0.0358997851 | DG57: Anexo 1 (85%)
A58: 57 | B58: 2 | C58: Chapinero | D58: 7 | E58: Eje transversal Gobierno legítimo, fortalecimiento local y eficiencia | F58: 45 | G58: Gobernanza e influencia local, regional e internacional | J58: 158 | K58: Implementar en un 100% en las Alcaldías Locales un nuevo modelo de gestión | L58: 57 | M58: Realizar 4 estrategias para fortalecer la capacidad operativa y administrativa de la localidad. | N58: 3-3-1-15-07-45-1304-00 | O58: Gobernanza y fortalecimiento del desarrollo institucional | P58: FORTALECIMIENTO LOCAL | Q58: Suma | R58: 2 | S58: Realizar | T58: 4 | U58: estrategias | V58: para fortalecer la capacidad operativa y administrativa de la localidad | W58: Realizar 4 estrategias para fortalecer la capacidad operativa y administrativa de la localidad | X58: 6 | Y58: Gestión pública local | Z58: Fortalecimiento institucional y pago de honorarios de ediles | AA58: 98 | AB58: Sector Gobierno | AC58: 29 | AD58: Fortalecimiento institucional | AE58: 33 | AF58: Estrategias de fortalecimiento institucional realizadas | AG58: 37 | AH58: Política Pública de transparencia, integridad y no tolerancia con la corrupción en Bogotá | AJ58: 0.06473591453 | AK58: 1 | AL58: 0.25 | AM58: 0.01618397863 | AN58: 1 | AO58: 0.25 | AP58: 0.01618397863 | AQ58: Bajo | AR58: Bajo | AS58: 0.3372775464 | AT58: 0.0843193866 | AU58: 0.0843193866 | AV58: 0.3372775464 | AW58: 0.0843193866 | AX58: 0.0843193866 | AY58: 0.4526168699 | AZ58: 0.1131542175 | BA58: 0.1131542175 | BB58: 4 | BC58: 2017_1 | BE58: 0 | BF58: 0 | BG58: 0 | BH58: 1 | BI58: 1 | BJ58: 0 | BK58: 0 | BL58: 0 | BM58: 1 | BN58: 0 | BO58: 0 | BP58: 0 | BQ58: 1 | BR58: 0 | BS58: 0 | BT58: 0 | BY58: 1120473000 | BZ58: 1120473000 | CA58: 0 | CB58: 0 | CC58: 0 | CD58: 905713400 | CE58: 0 | CF58: 0 | CG58: 0 | CH58: 905713400 | CI58: 15701734 | CJ58: 15701734 | CK58: 0 | CL58: 0 | CM58: 0 | CT58: Alianza y justicia | CU58: 16 | CV58: Paz, justicia e instituciones sólidas | CW58: 16.1 | CX58: Garantizar el acceso público a la información y proteger las libertades fundamentales, de conformidad con las leyes nacionales y los acuerdos internacionales | CY58: 0.07587340314 | DG58: Anexo 1 (85%)
A59: 58 | B59: 2 | C59: Chapinero | D59: 7 | E59: Eje transversal Gobierno legítimo, fortalecimiento local y eficiencia | F59: 45 | G59: Gobernanza e influencia local, regional e internacional | J59: 160 | K59: Disminuir el número de actuaciones administrativas activas y las represadas a 21.513 | L59: 58 | M59: Realizar 4 acciones de control urbanístico anual. | N59: 3-3-1-15-07-45-1304-00 | O59: Gobernanza y fortalecimiento del desarrollo institucional | P59: IVC | Q59: Suma | R59: 3 | S59: Realizar | T59: 4 | U59: Acciones | V59: de control urbanístico | W59: Realizar 4 Acciones de control urbanístico | X59: 4 | Y59: Inspección, vigilancia y control - IVC | Z59: Acciones de fortalecimiento para la inspección, vigilancia y control – IVC | AA59: 98 | AB59: Sector Gobierno | AC59: 32 | AD59: Inspección, vigilancia y control (IVC) | AE59: 34 | AF59: Acciones de inspección, vigilancia y control realizadas | AG59: 31 | AH59: Política Pública Distrital de Convivencia y Seguridad Ciudadana | AJ59: 0.03708279584 | AK59: 1 | AL59: 0.25 | AM59: 0.009270698959 | AN59: 1 | AO59: 0.25 | AP59: 0.009270698959 | AQ59: Bajo | AR59: Bajo | AS59: 0.1932033321 | AT59: 0.04830083302 | AU59: 0.04830083302 | AV59: 0.1932033321 | AW59: 0.04830083302 | AX59: 0.04830083302 | AY59: 0.259273374 | AZ59: 0.0648183435 | BA59: 0.0648183435 | BB59: 0 | BC59: 2017_1 | BE59: 0 | BF59: 0 | BG59: 0 | BH59: 1 | BI59: 1 | BJ59: 0 | BK59: 0 | BL59: 0 | BM59: 1 | BN59: 0 | BO59: 0 | BP59: 0 | BQ59: 1 | BR59: 0 | BS59: 0 | BT59: 0 | BY59: 590706000 | BZ59: 590706000 | CA59: 0 | CB59: 0 | CC59: 0 | CD59: 410580000 | CE59: 0 | CF59: 0 | CG59: 0 | CH59: 410580000 | CI59: 6133333 | CJ59: 6133333 | CK59: 0 | CL59: 0 | CM59: 0 | CT59: Alianza y justicia | CU59: 16 | CV59: Paz, justicia e instituciones sólidas | CW59: 16.1 | CX59: Garantizar el acceso público a la información y proteger las libertades fundamentales, de conformidad con las leyes nacionales y los acuerdos internacionales | CY59: 0.03999995937 | DG59: Anexo 1 (85%)
A60: 59 | B60: 2 | C60: Chapinero | D60: 7 | E60: Eje transversal Gobierno legítimo, fortalecimiento local y eficiencia | F60: 45 | G60: Gobernanza e influencia local, regional e internacional | H60: 824-832 | I60: Llegar a un 50% de organizaciones comunales de primer grado fortalecidas en su capacidad institucional/ Fortalecer 20 organizaciones comunales de segundo grado en su capacidad institucional | L60: 59 | M60: Fortalecer 15 organizaciones, instancias de participación y organizaciones sociales a los procesos de fortalecimiento de la participación ciudadana, gobernabilidad y gobernanza en la localidad. | N60: 3-3-1-15-07-45-1305-00 | O60: En Chapinero participamos todos | P60: FORTALECIMIENTO PARA LA PARTICIPACIÓN | Q60: Suma | R60: 1 | S60: Fortalecer | T60: 15 | U60: Organizaciones, instancias y organizaciones sociales | V60: a los procesos de fortalecimiento de la participación ciudadana, gobernabilidad y gobernanza en la localidad, teniendo en cuenta una perspectiva diferencial y poblacional | W60: Fortalecer 15 Organizaciones, instancias y organizaciones sociales a los procesos de fortalecimiento de la participación ciudadana, gobernabilidad y gobernanza en la localidad, teniendo en cuenta una perspectiva diferencial y poblacional | X60: 13 | Y60: Participación | Z60: Fomento a la participación | AA60: 98 | AB60: Sector Gobierno | AC60: 9 | AD60: Espacios y procesos de participación ciudadana fortalecidos | AE60: 35 | AF60: Organizaciones, instancias y expresiones sociales ciudadanas fortalecidas para la participación | AG60: 30 | AH60: Polìtica Pública de Participación Incidente para el Distrito Capital | AI60: 1. Fortalecimiento de la Participación Incidente de la Ciudadanía | AJ60: 0.0375370192 | AK60: 0 | AL60: 0 | AM60: 0 | AN60: 0 | AO60: 0 | AP60: 0 | AQ60: Bajo | AR60: Bajo | AS60: 0.1955698599 | AT60: 0 | AU60: 0 | AV60: 0.1955698599 | AW60: 0 | AX60: 0 | AY60: 0.7674591382 | AZ60: 0 | BA60: 0 | BB60: 36 | BC60: 2017_1 | BE60: 0 | BF60: 0 | BG60: 0 | BH60: 4 | BI60: 4 | BJ60: 0 | BK60: 0 | BL60: 0 | BM60: 0 | BN60: 0 | BO60: 0 | BP60: 0 | BQ60: 0 | BR60: 0 | BS60: 0 | BT60: 0 | BY60: 561180000 | BZ60: 561180000 | CA60: 0 | CB60: 0 | CC60: 0 | CD60: 36000000 | CE60: 0 | CF60: 0 | CG60: 0 | CH60: 36000000 | CI60: 0 | CJ60: 0 | CK60: 0 | CL60: 0 | CM60: 0 | CT60: Alianza y justicia | CU60: 16 | CV60: Paz, justicia e instituciones sólidas | CW60: 16.1 | CX60: Garantizar el acceso público a la información y proteger las libertades fundamentales, de conformidad con las leyes nacionales y los acuerdos internacionales | CY60: 0.03800059116 | DG60: Anexo 2 (15%)
A61: 60 | B61: 2 | C61: Chapinero | D61: 7 | E61: Eje transversal Gobierno legítimo, fortalecimiento local y eficiencia | F61: 45 | G61: Gobernanza e influencia local, regional e internacional | H61: 825 | I61: Realizar 350 Acciones de participación ciudadana desarrolladas por organizaciones comunales, sociales y comunitarias | J61: 148 | K61: Formar a 10.000 ciudadanos en participación | L61: 60 | M61: Vincular 2.400 personas a los procesos de fortalecimiento de la participación ciudadana, gobernabilidad y gobernanza en la localidad. | N61: 3-3-1-15-07-45-1305-00 | O61: En Chapinero participamos todos | P61: PARTICIPACIÓN CIUDADANA Y CONTROL SOCIAL | Q61: Suma | R61: 2 | S61: Vincular | T61: 2400 | U61: personas | V61: a los procesos de fortalecimiento de la participación ciudadana, gobernabilidad y gobernanza en la localidad, teniendo en cuenta una perspectiva diferencial y poblacional | W61: Vincular 2400 personas a los procesos de fortalecimiento de la participación ciudadana, gobernabilidad y gobernanza en la localidad, teniendo en cuenta una perspectiva diferencial y poblacional | X61: 13 | Y61: Participación | Z61: Fomento a la participación | AA61: 98 | AB61: Sector Gobierno | AC61: 9 | AD61: Espacios y procesos de participación ciudadana fortalecidos | AE61: 36 | AF61: Personas vinculadas a procesos de participación ciudadana y/o control social | AG61: 30 | AH61: Polìtica Pública de Participación Incidente para el Distrito Capital | AI61: 1. Fortalecimiento de la Participación Incidente de la Ciudadanía | AJ61: 0.01137375316 | AK61: 0 | AL61: 0 | AM61: 0 | AN61: 0 | AO61: 0 | AP61: 0 | AQ61: Bajo | AR61: Bajo | AS61: 0.05925785687 | AT61: 0 | AU61: 0 | AV61: 0.05925785687 | AW61: 0 | AX61: 0 | AY61: 0.2325408618 | AZ61: 0 | BA61: 0 | BB61: 1363 | BC61: 2017_1 | BE61: 0 | BF61: 0 | BG61: 0 | BH61: 600 | BI61: 600 | BJ61: 0 | BK61: 0 | BL61: 0 | BM61: 0 | BN61: 0 | BO61: 0 | BP61: 0 | BQ61: 0 | BR61: 0 | BS61: 0 | BT61: 0 | BY61: 150000000 | BZ61: 150000000 | CA61: 0 | CB61: 0 | CC61: 0 | CD61: 0 | CE61: 0 | CF61: 0 | CG61: 0 | CH61: 0 | CI61: 0 | CJ61: 0 | CK61: 0 | CL61: 0 | CM61: 0 | CT61: Alianza y justicia | CU61: 16 | CV61: Paz, justicia e instituciones sólidas | CW61: 16.1 | CX61: Garantizar el acceso público a la información y proteger las libertades fundamentales, de conformidad con las leyes nacionales y los acuerdos internacionales | CY61: 0.01015732684 | DG61: Anexo 2 (15%)
A62: 61 | B62: =VLOOKUP(C62,NUMERO_LOCALIDAD,2,0) -> 3 | C62: Santa Fe | D62: =VLOOKUP(E62,RANGO_EJE_PILAR,2,0) -> 1 | E62: Pilar Igualdad de calidad de vida | F62: =VLOOKUP(G62,CODIGO_PROGRAMAS,2,0) -> 2 | G62: Desarrollo integral desde la gestación hasta la adolescencia | H62: 10 | I62: Alcanzar 159.054 cupos para la atención integral de niños y niñas de primera infancia con estándares de calidad superiores al 80% en el ámbito institucional. | J62: 382 | K62: 83.000 cupos para la atención integral de niños y niñas de 4 y 5 años | L62: 61 | M62: Dotar 40 jardines infantiles con material pedagógico para la atención integral a la primera infancia | N62: 3-3-1-15-01-02-1314-00 | O62: CUIDANDO MIS PRIMEROS PASOS | P62: DOTACIÓN | Q62: Suma | R62: 1 | S62: Dotar | T62: 40 | U62: Jardines Infantiles | V62: con material pedagógico para la atención integral a la primera infancia | W62: Dotar 40 Jardines Infantiles con material pedagógico para la atención integral a la primera infancia | X62: 8 | Y62: Dotación | Z62: Dotación pedagógica y adecuación de jardines infantiles | AA62: =VLOOKUP(AB62,CODIGO_SECTOR,2,0) -> 92 | AB62: Sector Integración social | AC62: 2 | AD62: Adecuación , habilitación y dotación de jardines | AE62: =VLOOKUP(AF62,CODIGO_INDICADOR,2,0) -> 1 | AF62: Jardines infantiles adecuados | AG62: 38 | AH62: Política Pública de Infancia y Adolescencia de Bogotá D.C. | AI62: 2. Bogotá construye ciudad con los niños y las niñas y los/las adolescentes | AJ62: 0.004655058343 | AK62: 0 | AL62: 0 | AM62: 0 | AN62: 0 | AO62: 0 | AP62: 0 | AQ62: Bajo | AR62: Bajo | AS62: =AJ62/SUMIF($F$62:$F$87,F62,$AJ$62:$AJ$87) -> 0.2702703377 | AT62: 0 | AU62: 0 | AV62: =AJ62/SUMIF($D$62:$D$87,D62,$AJ$62:$AJ$87) -> 0.01872369752 | AW62: 0 | AX62: 0 | AY62: =AJ62/SUMIF($N$62:$N$87,N62,$AJ$62:$AJ$87) -> 0.2702703377 | AZ62: 0 | BA62: 0 | BB62: 31 | BC62: 2017_1 | BE62: 0 | BF62: 0 | BG62: 0 | BH62: 10 | BI62: 10 | BJ62: 0 | BK62: 0 | BL62: 0 | BM62: 0 | BN62: 0 | BO62: 0 | BP62: 0 | BQ62: 0 | BR62: 0 | BS62: 0 | BT62: 0 | BY62: 292688000 | BZ62: 292688000 | CA62: 0 | CB62: 0 | CC62: 0 | CD62: 0 | CE62: 0 | CF62: 0 | CG62: 0 | CH62: 0 | CI62: 0 | CJ62: 0 | CK62: 0 | CL62: 0 | CM62: 0 | CT62: Personas | CU62: 4 | CV62: Educación de calidad | CW62: 4.2 | CX62: De aquí a 2030, asegurar que todas las niñas y todos los niños tengan acceso a servicios de atención y desarrollo en la primera infancia y educación preescolar de calidad, a fin de que estén preparados para la enseñanza primaria. | CY62: 0.01256865323 | DG62: Anexo 2 (15%)
A63: 62 | B63: 3 | C63: Santa Fe | D63: 1 | E63: Pilar Igualdad de calidad de vida | F63: 2 | G63: Desarrollo integral desde la gestación hasta la adolescencia | H63: 6 | I63: Alcanzar 232.687 cupos de ámbitos institucionales y de los programas del orden nacional relacionados con la atención integral de niños, niñas y de primera infancia, en el marco de la RIA. | J63: 298 | K63: 76.241 cupos para atender niños y niñas de 0 a 5 años en el marco de la Ruta Integral de Atenciones | L63: 62 | M63: Vincular 400 personas mediante acciones de promoción del buen trato infantil | N63: 3-3-1-15-01-02-1314-00 | O63: CUIDANDO MIS PRIMEROS PASOS | P63: BUEN TRATO INFANTIL | Q63: Suma | R63: 2 | S63: Vincular | T63: 400 | U63: Personas | V63: mediante acciones de promoción del buen trato infantil | W63: Vincular 400 Personas mediante acciones de promoción del buen trato infantil | X63: 7 | Y63: Atención a población vulnerable | Z63: Prevención de violencia infantil y promoción del buen trato | AA63: 92 | AB63: Sector Integración social | AC63: 1 | AD63: Protección integral a niños y niñas y adolescentes | AE63: 3 | AF63: Personas vinculadas a acciones de promoción del buen trato infantil | AG63: 38 | AH63: Política Pública de Infancia y Adolescencia de Bogotá D.C. | AI63: 1. Niños, niñas y adolescentes en ciudadanía plena | AJ63: 0.01256865323 | AK63: 0 | AL63: 0 | AM63: 0 | AN63: 0 | AO63: 0 | AP63: 0 | AQ63: Bajo | AR63: Bajo | AS63: =AJ63/SUMIF($F$62:$F$87,F63,$AJ$62:$AJ$87) -> 0.7297296623 | AT63: 0 | AU63: 0 | AV63: =AJ63/SUMIF($D$62:$D$87,D63,$AJ$62:$AJ$87) -> 0.05055396602 | AW63: 0 | AX63: 0 | AY63: =AJ63/SUMIF($N$62:$N$87,N63,$AJ$62:$AJ$87) -> 0.7297296623 | AZ63: 0 | BA63: 0 | BB63: 1846 | BC63: 2017_1 | BE63: 0 | BF63: 0 | BG63: 0 | BH63: 100 | BI63: 100 | BJ63: 0 | BK63: 0 | BL63: 0 | BM63: 0 | BN63: 0 | BO63: 0 | BP63: 0 | BQ63: 0 | BR63: 0 | BS63: 0 | BT63: 0 | BY63: 108403000 | BZ63: 108403000 | CA63: 0 | CB63: 0 | CC63: 0 | CD63: 0 | CE63: 0 | CF63: 0 | CG63: 0 | CH63: 0 | CI63: 0 | CJ63: 0 | CK63: 0 | CL63: 0 | CM63: 0 | CT63: Personas | CU63: 4 | CV63: Educación de calidad | CW63: 4.2 | CX63: De aquí a 2030, asegurar que todas las niñas y todos los niños tengan acceso a servicios de atención y desarrollo en la primera infancia y educación preescolar de calidad, a fin de que estén preparados para la enseñanza primaria. | CY63: 0.004655058343 | DG63: Anexo 2 (15%)
A64: 63 | B64: 3 | C64: Santa Fe | D64: 1 | E64: Pilar Igualdad de calidad de vida | F64: 3 | G64: Igualdad y autonomía para una Bogotá incluyente | H64: 27 | I64: Incrementar en un 25% la vinculación de personas mayores en procesos de fortalecimiento de sus proyectos de vida a través de los servicios de la SDIS | J64: 306 | K64: Entregar a 90.318 personas mayores en situación de vulnerabilidad socioeconómica apoyos económicos | L64: 63 | M64: Beneficiar 2500 adultos mayores anualmente mediante la entrega del Bono de Subsidio Tipo C | N64: 3-3-1-15-01-03-1315-00 | O64: SANTA FE POR UNA VEJEZ DIGNA | P64: SUBSIDIO TIPO C | Q64: Constante | R64: 1 | S64: Beneficiar | T64: 2500 | U64: Adultos mayores | V64: Beneficiados anualmente mediante la entrega del subsidio C | W64: Beneficiar 2500 Adultos mayores Beneficiados anualmente mediante la entrega del subsidio C | X64: 5 | Y64: Atención a población vulnerable_Subsidio C | Z64: Subsidio C a persona mayor | AA64: 92 | AB64: Sector Integración social | AC64: 2 | AD64: Protección integral a personas y familias en situación de vulneración | AE64: 4 | AF64: Personas con subsidio tipo C beneficiadas | AG64: 39 | AH64: Política Pública Social para el Envejecimiento y la Vejez en el D.C. 2010 - 2026 | AI64: 2. Vivir bien en la vejez | AJ64: 0.1699478695 | AK64: 625 | AL64: 0.25 | AM64: 0.04248696738 | AN64: 625 | AO64: 0.25 | AP64: 0.04248696738 | AQ64: Bajo | AR64: Bajo | AS64: 0.9681754165 | AT64: 0.2420438541 | AU64: 0.2420438541 | AV64: 0.6835687693 | AW64: 0.1708921923 | AX64: 0.1708921923 | AY64: 1 | AZ64: 0.25 | BA64: 0.25 | BB64: 1825 | BC64: 2017_1 | BE64: 0 | BF64: 0 | BG64: 0 | BH64: 2500 | BI64: 2500 | BJ64: 0 | BK64: 0 | BL64: 0 | BM64: 2500 | BN64: 0 | BO64: 0 | BP64: 0 | BQ64: 2500 | BR64: 0 | BS64: 0 | BT64: 0 | BY64: 3957600000 | BZ64: 3957600000 | CA64: 0 | CB64: 0 | CC64: 0 | CD64: 217163760 | CE64: 0 | CF64: 0 | CG64: 0 | CH64: 217163760 | CI64: 0 | CJ64: 0 | CK64: 0 | CL64: 0 | CM64: 0 | CT64: Personas | CU64: 1 | CV64: Fin de la pobreza | CW64: 1.2 | CX64: De aquí a 2030, reducir al menos a la mitad la proporción de hombres, mujeres y niños de todas las edades que viven en la pobreza en todas sus dimensiones con arreglo a las definiciones nacionales | CY64: 0.1699478695 | DG64: Anexo 1 (85%)
A65: 64 | B65: 3 | C65: Santa Fe | D65: 1 | E65: Pilar Igualdad de calidad de vida | F65: 3 | G65: Igualdad y autonomía para una Bogotá incluyente | H65: 34 | I65: Incrementar a 2.000 personas con discapacidad con procesos de inclusión efectivos en el Distrito. | L65: 64 | M65: Beneficiar 320 personas en condición de discapacidad mediante la entrega de ayudas técnicas no POS a través del BAT | N65: 3-3-1-15-01-03-1316-00 | O65: SANTA FE INCLUYENTE | P65: AYUDAS TÉCNICAS | Q65: Suma | R65: 1 | S65: Beneficiar | T65: 320 | U65: Personas | V65: En condición de discapacidad mediante la entrega de ayudas técnicas no a través del BAT | W65: Beneficiar 320 Personas En condición de discapacidad mediante la entrega de ayudas técnicas no a través del BAT | X65: 7 | Y65: Atención a población vulnerable | Z65: Ayudas Técnicas a personas con discapacidad (no incluidas en el POS) | AA65: 91 | AB65: Sector Salud | AC65: 3 | AD65: Promoción, prevención e intervención en salud | AE65: 5 | AF65: Personas beneficiadas con ayudas técnicas no POS | AG65: 40 | AH65: Política Pública de Discapacidad para el Distrito Capital | AI65: 1. Desarrollo de capacidades y oportunidades | AJ65: 0.005586301899 | AK65: 0 | AL65: 0 | AM65: 0 | AN65: 0 | AO65: 0 | AP65: 0 | AQ65: =IF(AL65<=0.3,"Bajo",IF(AL65<0.7,"Medio",IF(AL65>=0.7,"Alto"))) -> Bajo | AR65: Bajo | AS65: 0.03182458352 | AT65: 0 | AU65: 0 | AV65: 0.02246936972 | AW65: 0 | AX65: 0 | AY65: 1 | AZ65: 0 | BA65: 0 | BB65: 416 | BC65: 2017_1 | BE65: 0 | BF65: 0 | BG65: 0 | BH65: 80 | BI65: 80 | BJ65: 0 | BK65: 0 | BL65: 0 | BM65: 0 | BN65: 0 | BO65: 0 | BP65: 0 | BQ65: 0 | BR65: 0 | BS65: 0 | BT65: 0 | BY65: 130089000 | BZ65: 130089000 | CA65: 0 | CB65: 0 | CC65: 0 | CD65: 0 | CE65: 0 | CF65: 0 | CG65: 0 | CH65: 0 | CI65: 0 | CJ65: 0 | CK65: 0 | CL65: 0 | CM65: 0 | CT65: Personas | CU65: 1 | CV65: Fin de la pobreza | CW65: 1.3 | CX65: Implementar a nivel nacional sistemas y medidas apropiados de protección social para todos, incluidos niveles mínimos, y, de aquí a 2030, lograr una amplia cobertura de las personas pobres y vulnerables | CY65: 0.005586301899 | DG65: Anexo 2 (15%)
A66: 65 | B66: 3 | C66: Santa Fe | D66: 1 | E66: Pilar Igualdad de calidad de vida | F66: 7 | G66: Inclusión educativa para la equidad | H66: 105 | I66: Contar con 30 colegios nuevos correspondientes a: 3 en ejecución, 5 en diseño y 22 en gestión de predios. | J66: 407 | K66: 300 sedes de IED con mejoramientos de infraestructura | L66: 65 | M66: Dotar Nueve (9) Instituciones Educativas Distritales con material pedagógico | N66: 3-3-1-15-01-07-1317-00 | O66: MEJORANDO AMBIENTES DE APRENDIZAJE PARA TODOS | P66: DOTACIÓN | Q66: Suma | R66: 1 | S66: Dotar | T66: 9 | U66: Instituciones educativas | V66: Con material pedagógico | W66: Dotar 9 Instituciones educativas Con material pedagógico | X66: =VLOOKUP(Y66,CODIGO_LINEA,2,0) -> 8 | Y66: Dotación | Z66: Dotación pedagógica a colegios | AA66: 90 | AB66: Sector Educación | AC66: 5 | AD66: Infraestructura y dotación escolar | AE66: 7 | AF66: IED dotados con material pedagógico | AG66: 24 | AH66: Plan Sectorial de Educación 2012-2016 | AI66: 3. Educación Media fortalecida y mayor acceso a la educación superior | AJ66: 0.005586044246 | AK66: =IF(Q66="Constante",AVERAGE(BM66,BN66,BO66,BP66),IF(Q66="Suma",SUM(BM66,BN66,BO66,BP66),0)) -> 0 | AL66: 0 | AM66: 0 | AN66: =IF(Q66="Constante",AVERAGE(BQ66,BR66,BS66,BT66),IF(Q66="Suma",SUM(BQ66,BR66,BS66,BT66),0)) -> 0 | AO66: 0 | AP66: 0 | AQ66: Bajo | AR66: Bajo | AS66: 1 | AT66: 0 | AU66: 0 | AV66: 0.02246833339 | AW66: 0 | AX66: 0 | AY66: 1 | AZ66: 0 | BA66: 0 | BB66: 9 | BC66: 2017_1 | BE66: 0 | BF66: 0 | BG66: 0 | BH66: 3 | BI66: 3 | BJ66: 0 | BK66: 0 | BL66: 0 | BM66: 0 | BN66: 0 | BO66: 0 | BP66: 0 | BQ66: 0 | BR66: 0 | BS66: 0 | BT66: 0 | BY66: 130083000 | BZ66: 130083000 | CA66: 0 | CB66: 0 | CC66: 0 | CD66: 0 | CE66: 0 | CF66: 0 | CG66: 0 | CH66: 0 | CI66: 0 | CJ66: 0 | CK66: 0 | CL66: 0 | CM66: 0 | CT66: Personas | CU66: 4 | CV66: Educación de calidad | CW66: 4.a | CX66: Construir y adecuar instalaciones educativas que tengan en cuenta las necesidades de los niños y las personas con discapacidad y las diferencias de género, y que ofrezcan entornos de aprendizaje seguros, no violentos, inclusivos y eficaces para todos. | CY66: 0.005586044246 | DG66: Anexo 2 (15%)
A67: 66 | B67: 3 | C67: Santa Fe | D67: 1 | E67: Pilar Igualdad de calidad de vida | F67: 11 | G67: Mejores oportunidades para el desarrollo a través de la cultura, la recreación y el deporte | H67: 159 | I67: Aumentar a 15% el porcentaje de la población que realiza prácticas culturales | L67: 66 | M67: Realizar 20 eventos artísticos y culturales en los que se evidencien las prácticas artísticas y culturales de la localidad | N67: 3-3-1-15-01-11-1318-00 | O67: UNA LOCALIDAD ARTÍSTICA, DEPORTIVA, CULTURAL Y VITAL PARA TODOS | P67: EVENTOS CULTURALES Y ARTISTICOS | Q67: Suma | R67: 1 | S67: Realizar | T67: 20 | U67: Eventos | V67: Artísticos y culturales en los que se evidencien las prácticas artísticas culturales de la localidad | W67: =CONCATENATE(S67," ",T67," ",U67," ",V67) -> Realizar 20 Eventos Artísticos y culturales en los que se evidencien las prácticas artísticas culturales de la localidad | X67: 11 | Y67: Eventos artísticos, culturales y deportivos | Z67: Realización de eventos artísticos, culturales y deportivos | AA67: 93 | AB67: Sector Cultura, recreación y deporte | AC67: 12 | AD67: Espacios artísticos y culturales | AE67: 8 | AF67: Eventos artísticos y culturales realizados | AJ67: 0.00605158014 | AK67: 0 | AL67: =AK67/T67 -> 0 | AM67: =IF(AL67*AJ67>AJ67,AJ67,AJ67*AL67) -> 0 | AN67: 0 | AO67: =AN67/T67 -> 0 | AP67: =IF(AO67*AJ67>AJ67,AJ67,AJ67*AO67) -> 0 | AQ67: Bajo | AR67: =IF(AO67<=0.3,"Bajo",IF(AO67<0.7,"Medio",IF(AO67>=0.7,"Alto"))) -> Bajo | AS67: 0.1203704969 | AT67: =IF(AL67*AS67>AS67,AS67,AS67*AL67) -> 0 | AU67: =IF(AO67*AS67>AS67,AS67,AS67*AO67) -> 0 | AV67: 0.02434082404 | AW67: =IF(AL67*AV67>AV67,AV67,AV67*AL67) -> 0 | AX67: =IF(AO67*AV67>AV67,AV67,AV67*AO67) -> 0 | AY67: 0.1203704969 | AZ67: =IF(AL67*AY67>AY67,AY67,AY67*AL67) -> 0 | BA67: =IF(AO67*AY67>AY67,AY67,AY67*AO67) -> 0 | BB67: 9 | BC67: 2017_1 | BE67: 0 | BF67: 0 | BG67: 0 | BH67: 5 | BI67: 5 | BJ67: 0 | BK67: 0 | BL67: 0 | BM67: 0 | BN67: 0 | BO67: 0 | BP67: 0 | BQ67: 0 | BR67: 0 | BS67: 0 | BT67: 0 | BY67: 140924000 | BZ67: 140924000 | CA67: 0 | CB67: 0 | CC67: 0 | CD67: 0 | CE67: 0 | CF67: 0 | CG67: 0 | CH67: =SUM(CD67:CG67) -> 0 | CI67: 0 | CJ67: 0 | CK67: 0 | CL67: 0 | CM67: 0 | CT67: Personas | CU67: 11 | CV67: Ciudades y comunidades sostenibles | CW67: 11.4 | CX67: Redoblar los esfuerzos para proteger y salvaguardar el patrimonio cultural y natural del mundo | CY67: 0.00605158014 | DG67: Anexo 2 (15%)
A68: 67 | B68: 3 | C68: Santa Fe | D68: 1 | E68: Pilar Igualdad de calidad de vida | F68: 11 | G68: Mejores oportunidades para el desarrollo a través de la cultura, la recreación y el deporte | H68: 192 | I68: Aumentar a 36% el porcentaje de la población que practica algún deporte | J68: 350 | K68: Realizar torneos interbarriales en 4 deportes | L68: 67 | M68: Realizar 4 eventos de recreación y deporte en el que se visibilicen las prácticas deportivas de la localidad | N68: 3-3-1-15-01-11-1318-00 | O68: UNA LOCALIDAD ARTÍSTICA, DEPORTIVA, CULTURAL Y VITAL PARA TODOS | P68: EVENTOS RECREATIVOS Y DEPORTIVOS | Q68: Suma | R68: 3 | S68: Realizar | T68: 4 | U68: Eventos | V68: De recreación y deporte en el que se visibilicen las prácticas de la localidad | W68: Realizar 4 Eventos De recreación y deporte en el que se visibilicen las prácticas de la localidad | X68: 11 | Y68: Eventos artísticos, culturales y deportivos | Z68: Realización de eventos artísticos, culturales y deportivos | AA68: 93 | AB68: Sector Cultura, recreación y deporte | AC68: 16 | AD68: Eventos y actividades recreativas y deportivas | AE68: 9 | AF68: Eventos de recreación y deporte realizados | AG68: 9 | AH68: Política Pública de Deporte, Recreación , Actividad Física y Parques para Bogotá 2009-2019, denominada “Bogotá mas activa”. | AI68: 1. Aumentar la participación | AJ68: 0.004655058343 | AK68: 0 | AL68: 0 | AM68: 0 | AN68: 0 | AO68: 0 | AP68: 0 | AQ68: Bajo | AR68: Bajo | AS68: 0.09259262423 | AT68: 0 | AU68: 0 | AV68: 0.01872369752 | AW68: 0 | AX68: 0 | AY68: 0.09259262423 | AZ68: 0 | BA68: 0 | BC68: 2017_1 | BE68: 0 | BF68: 0 | BG68: 0 | BH68: 1 | BI68: 1 | BJ68: 0 | BK68: 0 | BL68: 0 | BM68: 0 | BN68: 0 | BO68: 0 | BP68: 0 | BQ68: 0 | BR68: 0 | BS68: 0 | BT68: 0 | BY68: 108403000 | BZ68: 108403000 | CA68: 0 | CB68: 0 | CC68: 0 | CD68: 0 | CE68: 0 | CF68: 0 | CG68: 0 | CH68: 0 | CI68: 0 | CJ68: 0 | CK68: 0 | CL68: 0 | CM68: 0 | CT68: Personas | CU68: 3 | CV68: Salud y Bienestar | CW68: 3.d | CX68: Reforzar la capacidad de todos los países, en particular los países en desarrollo, en materia de alerta temprana, reducción de riesgos y gestión de los riesgos para la salud nacional y mundial | CY68: 0.004655058343 | DG68: Anexo 2 (15%)
A69: 68 | B69: 3 | C69: Santa Fe | D69: 1 | E69: Pilar Igualdad de calidad de vida | F69: 11 | G69: Mejores oportunidades para el desarrollo a través de la cultura, la recreación y el deporte | H69: 159 | I69: Aumentar a 15% el porcentaje de la población que realiza prácticas culturales | J69: 352 | K69: Implementar el Sistema Distrital de Formación Artística y Cultural (SIDFAC) | L69: 68 | M69: Vincular 1200 personas en procesos de formación artística y cultural que integre las diferentes poblaciones de la localidad | N69: 3-3-1-15-01-11-1318-00 | O69: UNA LOCALIDAD ARTÍSTICA, DEPORTIVA, CULTURAL Y VITAL PARA TODOS | P69: PROCESOS DE FORMACIÓN ARTÍSTICA Y CULTURAL | Q69: Suma | R69: 2 | S69: Vincular | T69: 1200 | U69: Personas | V69: En procesos de formación artística y cultural que integre las diferentes de la localidad | W69: Vincular 1200 Personas En procesos de formación artística y cultural que integre las diferentes de la localidad | X69: 10 | Y69: Procesos de formación artística, cultural y deportiva | Z69: Procesos de formación en áreas artísticas, en cultura y disciplinas deportivas | AA69: 93 | AB69: Sector Cultura, recreación y deporte | AC69: 13 | AD69: Formación artística y cultural | AE69: 10 | AF69: Personas vinculadas a procesos de formación artística y cultural | AJ69: 0.02094774107 | AK69: 0 | AL69: 0 | AM69: 0 | AN69: 0 | AO69: 0 | AP69: 0 | AQ69: Bajo | AR69: Bajo | AS69: 0.4166663819 | AT69: 0 | AU69: 0 | AV69: 0.08425655247 | AW69: 0 | AX69: 0 | AY69: 0.4166663819 | AZ69: 0 | BA69: 0 | BB69: 331.25 | BC69: 2017_1 | BE69: 0 | BF69: 0 | BG69: 0 | BH69: 300 | BI69: 300 | BJ69: 0 | BK69: 0 | BL69: 0 | BM69: 0 | BN69: 0 | BO69: 0 | BP69: 0 | BQ69: 0 | BR69: 0 | BS69: 0 | BT69: 0 | BY69: 487813000 | BZ69: 487813000 | CA69: 0 | CB69: 0 | CC69: 0 | CD69: 0 | CE69: 0 | CF69: 0 | CG69: 0 | CH69: 0 | CI69: 0 | CJ69: 0 | CK69: 0 | CL69: 0 | CM69: 0 | CT69: Personas | CU69: 4 | CV69: Educación de calidad | CW69: 4.3 | CX69: De aquí a 2030, asegurar el acceso igualitario de todos los hombres y las mujeres a una formación técnica, profesional y superior de calidad, incluida la enseñanza universitaria. | CY69: 0.02094774107 | DG69: Anexo 2 (15%)
A70: 69 | B70: 3 | C70: Santa Fe | D70: 1 | E70: Pilar Igualdad de calidad de vida | F70: 11 | G70: Mejores oportunidades para el desarrollo a través de la cultura, la recreación y el deporte | H70: 192 | I70: Aumentar a 36% el porcentaje de la población que practica algún deporte | J70: 349 | K70: Garantizar la asistencia técnica del IDRD a las escuelas de formación deportiva por los Fondos de Desarrollo Local | L70: 69 | M70: Vincular 1800 personas en procesos de formación deportiva que integre las diferentes poblaciones de la localidad | N70: 3-3-1-15-01-11-1318-00 | O70: UNA LOCALIDAD ARTÍSTICA, DEPORTIVA, CULTURAL Y VITAL PARA TODOS | P70: PROCESOS DE FORMACIÓN DEPORTIVA | Q70: Suma | R70: 4 | S70: Vincular | T70: 1800 | U70: Personas | V70: En procesos de formación deportiva que integre las diferentes poblaciones de localidad | W70: Vincular 1800 Personas En procesos de formación deportiva que integre las diferentes poblaciones de localidad | X70: 10 | Y70: Procesos de formación artística, cultural y deportiva | Z70: Procesos de formación en áreas artísticas, en cultura y disciplinas deportivas | AA70: 93 | AB70: Sector Cultura, recreación y deporte | AC70: 16 | AD70: Eventos y actividades recreativas y deportivas | AE70: 11 | AF70: Personas vinculadas a procesos de formación deportiva | AG70: 9 | AH70: Política Pública de Deporte, Recreación , Actividad Física y Parques para Bogotá 2009-2019, denominada “Bogotá mas activa”. | AI70: 1. Aumentar la participación | AJ70: 0.01862023337 | AK70: 0 | AL70: 0 | AM70: 0 | AN70: 0 | AO70: 0 | AP70: 0 | AQ70: Bajo | AR70: Bajo | AS70: 0.3703704969 | AT70: 0 | AU70: 0 | AV70: 0.07489479007 | AW70: 0 | AX70: 0 | AY70: 0.3703704969 | AZ70: 0 | BA70: 0 | BB70: 6615 | BC70: 2017_1 | BE70: 0 | BF70: 0 | BG70: 0 | BH70: 450 | BI70: 450 | BJ70: 0 | BK70: 0 | BL70: 0 | BM70: 0 | BN70: 0 | BO70: 0 | BP70: 0 | BQ70: 0 | BR70: 0 | BS70: 0 | BT70: 0 | BY70: 433612000 | BZ70: 433612000 | CA70: 0 | CB70: 0 | CC70: 0 | CD70: 0 | CE70: 0 | CF70: 0 | CG70: 0 | CH70: 0 | CI70: 0 | CJ70: 0 | CK70: 0 | CL70: 0 | CM70: 0 | CT70: Personas | CU70: 11 | CV70: Ciudades y comunidades sostenibles | CW70: 11.4 | CX70: Redoblar los esfuerzos para proteger y salvaguardar el patrimonio cultural y natural del mundo | CY70: 0.01862023337 | DG70: Anexo 2 (15%)
A71: 70 | B71: 3 | C71: Santa Fe | D71: 2 | E71: Pilar Democracia urbana | F71: 15 | G71: Recuperación, incorporación, vida urbana y control de la ilegalidad | H71: 258 | I71: 100% de polígonos identificados de control y prevención, monitoreados en áreas susceptibles de ocupación ilegal | J71: 176 | K71: Monitorear el 100% de polígonos identificados de control y prevención, en áreas susceptibles de ocupación ilegal | L71: 70 | M71: Presentar 400 demandas de titulación en el cuatrienio | N71: 3-3-1-15-02-15-1319-00 | O71: SANTA FE TERRITORIO LEGAL | P71: DEMANDAS DE TITULACIÓN | Q71: Suma | R71: 1 | S71: Presentar | T71: 400 | U71: Demandas de titulación | V71: en el cuatrienio | W71: Presentar 400 Demandas de titulación en el cuatrienio | X71: 4 | Y71: Inspección, vigilancia y control - IVC | Z71: Asesoría para legalización de barrios y titulación de predios | AA71: 96 | AB71: Sector Hábitat | AC71: 19 | AD71: Regulación legalización de predios y apoyo a la vivienda | AE71: 12 | AF71: Demandas de titulación predial presentadas | AG71: 34 | AH71: Política Distrital Integral de Vivienda y Hábitat | AI71: 3. Asentamientos humanos y mejoramiento integral de barrios y vivienda | AJ71: 0.009310116686 | AK71: 0 | AL71: 0 | AM71: 0 | AN71: 0 | AO71: 0 | AP71: 0 | AQ71: Bajo | AR71: Bajo | AS71: 1 | AT71: 0 | AU71: 0 | AV71: 0.01771413865 | AW71: 0 | AX71: 0 | AY71: 1 | AZ71: 0 | BA71: 0 | BC71: 2017_1 | BE71: 0 | BF71: 0 | BG71: 0 | BH71: 100 | BI71: 100 | BJ71: 0 | BK71: 0 | BL71: 0 | BM71: 0 | BN71: 0 | BO71: 0 | BP71: 0 | BQ71: 0 | BR71: 0 | BS71: 0 | BT71: 0 | BY71: 216806000 | BZ71: 216806000 | CA71: 0 | CB71: 0 | CC71: 0 | CD71: 0 | CE71: 0 | CF71: 0 | CG71: 0 | CH71: 0 | CI71: 0 | CJ71: 0 | CK71: 0 | CL71: 0 | CM71: 0 | CT71: Personas | CU71: 11 | CV71: Ciudades y comunidades sostenibles | CW71: 11.1 | CX71: De aquí a 2030, asegurar el acceso de todas las personas a viviendas y servicios básicos adecuados, seguros y asequibles y mejorar los barrios marginales | CY71: 0.009310116686 | DG71: Anexo 1 (85%)
A72: 71 | B72: 3 | C72: Santa Fe | D72: 2 | E72: Pilar Democracia urbana | F72: 17 | G72: Espacio público, derecho de todos | H72: 296 | I72: Disminuir a 11,21% el porcentaje de personas que considera que las canchas y escenarios deportivos han empeorado | J72: 368 | K72: Construcción y/o mejoramiento de 64 parques en todas las escalas, en los que se construirán cuatro xtreme parks | L72: 71 | M72: Intervenir 16 parques vecinales y/o de bolsillo | N72: 3-3-1-15-02-17-1320-00 | O72: MEJORES PARQUES PARA LA INTEGRACIÓN SOCIAL | P72: INTERVENCIÓN DE PARQUES | Q72: Suma | R72: 1 | S72: Intervenir | T72: 16 | U72: Parques | V72: vecinales y/o de bolsillo | W72: Intervenir 16 Parques vecinales y/o de bolsillo | X72: 2 | Y72: Parques | Z72: Construcción, mantenimiento y dotación de parques vecinales y/o de bolsillo | AA72: 93 | AB72: Sector Cultura, recreación y deporte | AC72: 17 | AD72: Parques y escenarios deportivos | AE72: 15 | AF72: Parques vecinales y/o de bolsillo intervenidos | AG72: 9 | AH72: Política Pública de Deporte, Recreación , Actividad Física y Parques para Bogotá 2009-2019, denominada “Bogotá mas activa”. | AI72: 5. Mejorar los parques, escenarios y entornos | AJ72: 0.09999999571 | AK72: 0 | AL72: 0 | AM72: 0 | AN72: 0 | AO72: 0 | AP72: 0 | AQ72: Bajo | AR72: Bajo | AS72: 0.860101319 | AT72: 0 | AU72: 0 | AV72: 0.1902676248 | AW72: 0 | AX72: 0 | AY72: 1 | AZ72: 0 | BA72: 0 | BC72: 2017_1 | BE72: 0 | BF72: 0 | BG72: 0 | BH72: 4 | BI72: 4 | BJ72: 0 | BK72: 0 | BL72: 0 | BM72: 0 | BN72: 0 | BO72: 0 | BP72: 0 | BQ72: 0 | BR72: 0 | BS72: 0 | BT72: 0 | BY72: 2328714000 | BZ72: 2328714000 | CA72: 0 | CB72: 0 | CC72: 0 | CD72: 0 | CE72: 0 | CF72: 0 | CG72: 0 | CH72: 0 | CI72: 0 | CJ72: 0 | CK72: 0 | CL72: 0 | CM72: 0 | CT72: Personas | CU72: 11 | CV72: Ciudades y comunidades sostenibles | CW72: 11.7 | CX72: De aquí a 2030, proporcionar acceso universal a zonas verdes y espacios públicos seguros, inclusivos y accesibles, en particular para las mujeres y los niños, las personas de edad y las personas con discapacidad | CY72: 0.09999999571 | DG72: Anexo 1 (85%)
A73: 72 | B73: 3 | C73: Santa Fe | D73: 2 | E73: Pilar Democracia urbana | F73: 17 | G73: Espacio público, derecho de todos | H73: 824-832 | I73: Llegar a un 50% de organizaciones comunales de primer grado fortalecidas en su capacidad institucional/ Fortalecer 20 organizaciones comunales de segundo grado en su capacidad institucional | L73: 72 | M73: Construir y/o adecuar y/o dotar 24 espacios de encuentro comunal en la localidad | N73: 3-3-1-15-02-17-1321-00 | O73: CONSTRUYENDO ESPACIOS PARA LA GENTE | P73: FORTALECIMIENTO PARA LA PARTICIPACIÓN | Q73: Suma | R73: 1 | S73: Internvenir | T73: 24 | U73: espacios | V73: de encuentro comunal en la localidad | W73: Internvenir 24 espacios de encuentro comunal en la localidad | X73: 13 | Y73: Participación | Z73: Fomento a la participación | AA73: 98 | AB73: Sector Gobierno | AC73: 9 | AD73: Espacios y procesos de participación ciudadana fortalecidos | AE73: 35 | AF73: Organizaciones, instancias y expresiones sociales ciudadanas fortalecidas para la participación | AG73: 30 | AH73: Polìtica Pública de Participación Incidente para el Distrito Capital | AI73: 1. Fortalecimiento de la Participación Incidente de la Ciudadanía | AJ73: 0.01626537152 | AK73: 0 | AL73: 0 | AM73: 0 | AN73: 0 | AO73: 0 | AP73: 0 | AQ73: Bajo | AR73: Bajo | AS73: 0.139898681 | AT73: 0 | AU73: 0 | AV73: 0.03094773738 | AW73: 0 | AX73: 0 | AY73: 1 | AZ73: 0 | BA73: 0 | BC73: 2017_1 | BE73: 0 | BF73: 0 | BG73: 0 | BH73: 6 | BI73: 6 | BJ73: 0 | BK73: 0 | BL73: 0 | BM73: 0 | BN73: 0 | BO73: 0 | BP73: 0 | BQ73: 0 | BR73: 0 | BS73: 0 | BT73: 0 | BY73: 378774000 | BZ73: 378774000 | CA73: 0 | CB73: 0 | CC73: 0 | CD73: 0 | CE73: 0 | CF73: 0 | CG73: 0 | CH73: 0 | CI73: 0 | CJ73: 0 | CK73: 0 | CL73: 0 | CM73: 0 | CT73: Alianza y justicia | CU73: 16 | CV73: Paz, justicia e instituciones sólidas | CW73: 16.1 | CX73: Garantizar el acceso público a la información y proteger las libertades fundamentales, de conformidad con las leyes nacionales y los acuerdos internacionales | CY73: 0.01626537152 | DG73: Anexo 2 (15%)
A74: 73 | B74: 3 | C74: Santa Fe | D74: 2 | E74: Pilar Democracia urbana | F74: 18 | G74: Mejor movilidad para todos | H74: 300 | I74: Alcanzar 50% de malla vial en buen estado | J74: 229-226 | K74: Conservar y rehabilitar 1,083 km carril de la infraestructura vial local (por donde no circulan rutas de Transmilenio zonal)/ Conservar 750 km carril de malla vial arterial, troncal e intermedia y local (por donde circulan las rutas de Transmilenio troncal y zonal) circulan rutas de Transmilenio zonal) | L74: 73 | M74: Mantener 19 km/carril de malla vial urbana de la localidad | N74: 3-3-1-15-02-18-1322-00 | O74: POR UN ESPACIO PUBLICO MEJOR PARA TODOS | P74: MANTENIMIENTO MALLA VIAL LOCAL | Q74: Suma | R74: 1 | S74: Mantener | T74: 18 | U74: km | V74: Malla vial urbana de la localidad | W74: Mantener 18 km Malla vial urbana de la localidad | X74: 1 | Y74: Malla vial, espacio público y peatonal | Z74: Construcción y/o mantenimiento de malla vial, espacio público y peatonal, y puentes peatonales y/o vehiculares sobre cuerpos de agua (de escala local: urbana y/o rural) | AA74: 95 | AB74: Sector Movilidad | AC74: 22 | AD74: Vías Locales | AE74: 18 | AF74: Km/carril de malla vial local mantenido | AJ74: 0.2800000223 | AK74: 0 | AL74: 0 | AM74: 0 | AN74: 0 | AO74: 0 | AP74: 0 | AQ74: Bajo | AR74: Bajo | AS74: 0.7000000859 | AT74: 0 | AU74: 0 | AV74: 0.5327494148 | AW74: 0 | AX74: 0 | AY74: 0.7000000859 | AZ74: 0 | BA74: 0 | BB74: 15 | BC74: 2017_1 | BE74: 0 | BF74: 0 | BG74: 0 | BH74: 4.75 | BI74: 4.75 | BJ74: 0 | BK74: 0 | BL74: 0 | BM74: 0 | BN74: 0 | BO74: 0 | BP74: 0 | BQ74: 0 | BR74: 0 | BS74: 0 | BT74: 0 | BY74: 6520400000 | BZ74: 6520400000 | CA74: 0 | CB74: 0 | CC74: 0 | CD74: 14150000 | CE74: 0 | CF74: 0 | CG74: 0 | CH74: 14150000 | CI74: 0 | CJ74: 0 | CK74: 0 | CL74: 0 | CM74: 0 | CT74: Personas | CU74: 9 | CV74: Industria, innovación e infraestructura | CW74: 9.1 | CX74: Desarrollar infraestructuras fiables, sostenibles, resilientes y de calidad, incluidas infraestructuras regionales y transfronterizas, para apoyar el desarrollo económico y el bienestar humano, haciendo especial hincapié en el acceso asequible y equitativo para todos | CY74: 0.2800000223 | DG74: Anexo 1 (85%)
A75: 74 | B75: 3 | C75: Santa Fe | D75: 2 | E75: Pilar Democracia urbana | F75: 18 | G75: Mejor movilidad para todos | H75: 300 | I75: Alcanzar 50% de malla vial en buen estado | J75: 228 | K75: Mantener periódicamente de 50 km carril de malla vial rural | L75: 74 | M75: Mantener 1 km/carril de malla vial rural de la localidad | N75: 3-3-1-15-02-18-1322-00 | O75: POR UN ESPACIO PUBLICO MEJOR PARA TODOS | P75: MANTENIMIENTO MALLA VIAL RURAL | Q75: Suma | R75: 2 | S75: Mantener | T75: 2 | U75: km | V75: Malla vial rural de la localidad | W75: Mantener 2 km Malla vial rural de la localidad | X75: 1 | Y75: Malla vial, espacio público y peatonal | Z75: Construcción y/o mantenimiento de malla vial, espacio público y peatonal, y puentes peatonales y/o vehiculares sobre cuerpos de agua (de escala local: urbana y/o rural) | AA75: 95 | AB75: Sector Movilidad | AC75: 22 | AD75: Vías Locales | AE75: 19 | AF75: Km/carril de malla vial rural mantenidos | AJ75: 0.07999998798 | AK75: 0 | AL75: 0 | AM75: 0 | AN75: 0 | AO75: 0 | AP75: 0 | AQ75: Bajo | AR75: Bajo | AS75: 0.1999999785 | AT75: 0 | AU75: 0 | AV75: 0.1522140835 | AW75: 0 | AX75: 0 | AY75: 0.1999999785 | AZ75: 0 | BA75: 0 | BC75: 2017_1 | BE75: 0 | BF75: 0 | BG75: 0 | BH75: 0.25 | BI75: 0.25 | BJ75: 0 | BK75: 0 | BL75: 0 | BM75: 0 | BN75: 0 | BO75: 0 | BP75: 0 | BQ75: 0 | BR75: 0 | BS75: 0 | BT75: 0 | BY75: 1862971000 | BZ75: 1862971000 | CA75: 0 | CB75: 0 | CC75: 0 | CD75: 0 | CE75: 0 | CF75: 0 | CG75: 0 | CH75: 0 | CI75: 0 | CJ75: 0 | CK75: 0 | CL75: 0 | CM75: 0 | CT75: Personas | CU75: 9 | CV75: Industria, innovación e infraestructura | CW75: 9.1 | CX75: Desarrollar infraestructuras fiables, sostenibles, resilientes y de calidad, incluidas infraestructuras regionales y transfronterizas, para apoyar el desarrollo económico y el bienestar humano, haciendo especial hincapié en el acceso asequible y equitativo para todos | CY75: 0.07999998798 | DG75: Anexo 1 (85%)
A76: 75 | B76: 3 | C76: Santa Fe | D76: 2 | E76: Pilar Democracia urbana | F76: 18 | G76: Mejor movilidad para todos | H76: 313 | I76: Llevar a 20% la satisfacción con el viaje a pie | L76: 75 | M76: Mantener 15.000 M2 de espacio público. (Andenes- Senderos- Muros- Escalinatas) | N76: 3-3-1-15-02-18-1322-00 | O76: POR UN ESPACIO PUBLICO MEJOR PARA TODOS | P76: MANTENIMIENTO ESPACIO PÚBLICO | Q76: Suma | R76: 3 | S76: Mantener | T76: 15000 | U76: m2 | V76: De espacio público. (Andenes- Senderos- Muros- Escalinatas) | W76: Mantener 15000 m2 De espacio público. (Andenes- Senderos- Muros- Escalinatas) | X76: 1 | Y76: Malla vial, espacio público y peatonal | Z76: Construcción y/o mantenimiento de malla vial, espacio público y peatonal, y puentes peatonales y/o vehiculares sobre cuerpos de agua (de escala local: urbana y/o rural) | AA76: 95 | AB76: Sector Movilidad | AC76: 23 | AD76: Espacio Público | AE76: 21 | AF76: m2 de espacio público mantenidos | AJ76: 0.03999997252 | AK76: 0 | AL76: 0 | AM76: 0 | AN76: 0 | AO76: 0 | AP76: 0 | AQ76: Bajo | AR76: Bajo | AS76: 0.09999993559 | AT76: 0 | AU76: 0 | AV76: 0.07610700089 | AW76: 0 | AX76: 0 | AY76: 0.09999993559 | AZ76: 0 | BA76: 0 | BB76: 15960 | BC76: 2017_1 | BE76: 0 | BF76: 0 | BG76: 0 | BH76: 3750 | BI76: 3750 | BJ76: 0 | BK76: 0 | BL76: 0 | BM76: 0 | BN76: 0 | BO76: 0 | BP76: 0 | BQ76: 0 | BR76: 0 | BS76: 0 | BT76: 0 | BY76: 931485000 | BZ76: 931485000 | CA76: 0 | CB76: 0 | CC76: 0 | CD76: 0 | CE76: 0 | CF76: 0 | CG76: 0 | CH76: 0 | CI76: 0 | CJ76: 0 | CK76: 0 | CL76: 0 | CM76: 0 | CT76: Personas | CU76: 9 | CV76: Industria, innovación e infraestructura | CW76: 9.1 | CX76: Desarrollar infraestructuras fiables, sostenibles, resilientes y de calidad, incluidas infraestructuras regionales y transfronterizas, para apoyar el desarrollo económico y el bienestar humano, haciendo especial hincapié en el acceso asequible y equitativo para todos | CY76: 0.03999997252 | DG76: Anexo 1 (85%)
A77: 76 | B77: 3 | C77: Santa Fe | D77: 3 | E77: Pilar Construcción de comunidad y cultura ciudadana | F77: 19 | G77: Seguridad y convivencia para todos | H77: 363 | I77: Aumentar en 17 puntos porcentuales las personas que consideran que el barrio en el que habitan es seguro | L77: 76 | M77: Realizar una dotación para la seguridad de la localidad | N77: 3-3-1-15-03-19-1323-00 | O77: SANTA FE, TERRITORIO SEGURO | P77: DOTACIÓN | Q77: Constante | R77: 1 | S77: Realizar | T77: 1 | U77: Dotación | V77: Para la seguridad de la localidad | W77: Realizar 1 Dotación Para la seguridad de la localidad | X77: 3 | Y77: Seguridad y convivencia | Z77: Dotación con recursos tecnológicos para la seguridad | AA77: 102 | AB77: Sector Seguridad, Convivencia y Justicia | AC77: 31 | AD77: Infraestructura y dotaciones para seguridad | AE77: 23 | AF77: Dotaciones para seguridad realizadas | AG77: 31 | AH77: Política Pública Distrital de Convivencia y Seguridad Ciudadana | AJ77: 0.03724046675 | AK77: 0 | AL77: 0 | AM77: 0 | AN77: 0 | AO77: 0 | AP77: 0 | AQ77: Bajo | AR77: Bajo | AS77: 0.7448093669 | AT77: 0 | AU77: 0 | AV77: 0.7448093669 | AW77: 0 | AX77: 0 | AY77: 0.7448093669 | AZ77: 0 | BA77: 0 | BC77: 2017_1 | BE77: 0 | BF77: 0 | BG77: 0 | BH77: 1 | BI77: 1 | BJ77: 0 | BK77: 0 | BL77: 0 | BM77: 0 | BN77: 0 | BO77: 0 | BP77: 0 | BQ77: 0 | BR77: 0 | BS77: 0 | BT77: 0 | BY77: 867224000 | BZ77: 867224000 | CA77: 0 | CB77: 0 | CC77: 0 | CD77: 0 | CE77: 0 | CF77: 0 | CG77: 0 | CH77: 0 | CI77: 0 | CJ77: 0 | CK77: 0 | CL77: 0 | CM77: 0 | CT77: Alianza y justicia | CU77: 16 | CV77: Paz, justicia e instituciones sólidas | CW77: 16.1 | CX77: Garantizar el acceso público a la información y proteger las libertades fundamentales, de conformidad con las leyes nacionales y los acuerdos internacionales | CY77: 0.03724046675 | DG77: Anexo 1 (85%)
A78: 77 | B78: 3 | C78: Santa Fe | D78: 3 | E78: Pilar Construcción de comunidad y cultura ciudadana | F78: 19 | G78: Seguridad y convivencia para todos | H78: 363 | I78: Aumentar en 17 puntos porcentuales las personas que consideran que el barrio en el que habitan es seguro | L78: 77 | M78: Vincular 500 Personas a ejercicios de convivencia ciudadana | N78: 3-3-1-15-03-19-1323-00 | O78: SANTA FE, TERRITORIO SEGURO | P78: CONVIVENCIA CIUDADANA | Q78: Suma | R78: 2 | S78: Vincular | T78: 500 | U78: Personas | V78: Ejercicios de convivencia ciudadana | W78: Vincular 500 Personas Ejercicios de convivencia ciudadana | X78: 3 | Y78: Seguridad y convivencia | Z78: Promoción de la convivencia ciudadana | AA78: 102 | AB78: Sector Seguridad, Convivencia y Justicia | AC78: 11 | AD78: Prevención, atención y gestión del conflicto en la localidad | AE78: 24 | AF78: Personas vinculadas a ejercicios de convivencia ciudadana | AG78: 31 | AH78: Política Pública Distrital de Convivencia y Seguridad Ciudadana | AJ78: 0.01275953111 | AK78: 0 | AL78: 0 | AM78: 0 | AN78: 0 | AO78: 0 | AP78: 0 | AQ78: Bajo | AR78: Bajo | AS78: 0.2551906331 | AT78: 0 | AU78: 0 | AV78: 0.2551906331 | AW78: 0 | AX78: 0 | AY78: 0.2551906331 | AZ78: 0 | BA78: 0 | BB78: 2440 | BC78: 2017_1 | BE78: 0 | BF78: 0 | BG78: 0 | BH78: 125 | BI78: 125 | BJ78: 0 | BK78: 0 | BL78: 0 | BM78: 0 | BN78: 0 | BO78: 0 | BP78: 0 | BQ78: 0 | BR78: 0 | BS78: 0 | BT78: 0 | BY78: 297133000 | BZ78: 297133000 | CA78: 0 | CB78: 0 | CC78: 0 | CD78: 0 | CE78: 0 | CF78: 0 | CG78: 0 | CH78: 0 | CI78: 0 | CJ78: 0 | CK78: 0 | CL78: 0 | CM78: 0 | CT78: Alianza y justicia | CU78: 16 | CV78: Paz, justicia e instituciones sólidas | CW78: 16.1 | CX78: Garantizar el acceso público a la información y proteger las libertades fundamentales, de conformidad con las leyes nacionales y los acuerdos internacionales | CY78: 0.01275953111 | DG78: Anexo 1 (85%)
A79: 78 | B79: 3 | C79: Santa Fe | D79: 6 | E79: Eje transversal Sostenibilidad ambiental basada en la eficiencia energética | F79: 38 | G79: Recuperación y manejo de la Estructura Ecológica Principal | H79: 597 | I79: Aumentar en valor real de la cobertura verde en el espacio público urbano de Bogotá D.C. (arbolado 7%, zonas verdes en 0,2% y jardinería en 20%) garantizando el mantenimiento de lo generado y lo existente. | J79: 453 | K79: Plantar 86.000 los árboles y arbustos en el espacio Público urbano | L79: 78 | M79: Intervenir 10.000 árboles que mantengan la ordenación ecológica principal de la localidad | N79: 3-3-1-15-06-38-1324-00 | O79: RENATURALIZANDO LAS ZONES VERDES DE SANTA FE | P79: ARBORIZACIÓN | Q79: Suma | R79: 1 | S79: Intervenir | T79: 10000 | U79: Arboles | V79: Que mantengan la ordenación ecológica principal de | W79: Intervenir 10000 Arboles Que mantengan la ordenación ecológica principal de | X79: 12 | Y79: Protección y recuperación de los recursos ambientales | Z79: Intervención física en renaturalización, ecourbanismo, arborización, coberturas vegetales, muros verdes, paisajismo y jardinería | AA79: 94 | AB79: Sector Ambiente | AC79: 26 | AD79: Plantación y mantenimiento de arboles, jardines y especies vegetales | AE79: 27 | AF79: Arboles sembrados o intervenidos | AG79: 2 | AH79: Política para la Gestión de la Conservación de la Biodiversidad en el Distrito Capital | AI79: 3. Restauración de los ecosistemas degradados en el territorio. | AJ79: 0.004655058343 | AK79: 0 | AL79: 0 | AM79: 0 | AN79: 0 | AO79: 0 | AP79: 0 | AQ79: Bajo | AR79: Bajo | AS79: 0.3333333333 | AT79: 0 | AU79: 0 | AV79: 0.1779928739 | AW79: 0 | AX79: 0 | AY79: 0.3333333333 | AZ79: 0 | BA79: 0 | BC79: 2017_1 | BE79: 0 | BF79: 0 | BG79: 0 | BH79: 2500 | BI79: 2500 | BJ79: 0 | BK79: 0 | BL79: 0 | BM79: 0 | BN79: 0 | BO79: 0 | BP79: 0 | BQ79: 0 | BR79: 0 | BS79: 0 | BT79: 0 | BY79: 108403000 | BZ79: 108403000 | CA79: 0 | CB79: 0 | CC79: 0 | CD79: 0 | CE79: 0 | CF79: 0 | CG79: 0 | CH79: 0 | CI79: 0 | CJ79: 0 | CK79: 0 | CL79: 0 | CM79: 0 | CT79: Planeta | CU79: 11 | CV79: Ciudades y comunidades sostenibles | CW79: 11.7 | CX79: De aquí a 2030, proporcionar acceso universal a zonas verdes y espacios públicos seguros, inclusivos y accesibles, en particular para las mujeres y los niños, las personas de edad y las personas con discapacidad | CY79: 0.004655058343 | DG79: Anexo 2 (15%)
A80: 79 | B80: 3 | C80: Santa Fe | D80: 6 | E80: Eje transversal Sostenibilidad ambiental basada en la eficiencia energética | F80: 38 | G80: Recuperación y manejo de la Estructura Ecológica Principal | H80: 554 | I80: Restaurar 200 hectáreas nuevas en Cerros Orientales, ríos y quebradas y/o zonas de riesgo no mitigable que aportan a la conectividad ecológica de la región | J80: 439 | K80: Aplicar acciones del protocolo de restauración ecológica (diagnóstico, diseño, implementación y mantenimiento) del Distrito en 200 has | L80: 79 | M80: Intervenir 10 hectáreas de espacio público natura afectado por fenomenos naturales o no con acciones de renaturalización y/o ecourbanismo | N80: 3-3-1-15-06-38-1324-00 | O80: RENATURALIZANDO LAS ZONES VERDES DE SANTA FE | P80: RESTAURACIÓN ECOLÓGICA | Q80: Suma | R80: 2 | S80: Intervenir | T80: 10 | U80: Hectáreas | V80: De espacio público natura afectado por fenómenos no con acciones de re naturalización y/o eco urbanismo | W80: Intervenir 10 Hectáreas De espacio público natura afectado por fenómenos no con acciones de re naturalización y/o eco urbanismo | X80: 12 | Y80: Protección y recuperación de los recursos ambientales | Z80: Intervención física en renaturalización, ecourbanismo, arborización, coberturas vegetales, muros verdes, paisajismo y jardinería | AA80: 94 | AB80: Sector Ambiente | AC80: 20 | AD80: Calidad ambiental y preservación del patrimonio natural | AE80: 28 | AF80: Hectáreas de espacio público intervenidas con acciones de renaturalización y/o ecourbanismo | AG80: 2 | AH80: Política para la Gestión de la Conservación de la Biodiversidad en el Distrito Capital | AI80: 3. Restauración de los ecosistemas degradados en el territorio. | AJ80: 0.004655058343 | AK80: 0 | AL80: 0 | AM80: 0 | AN80: 0 | AO80: 0 | AP80: 0 | AQ80: Bajo | AR80: Bajo | AS80: 0.3333333333 | AT80: 0 | AU80: 0 | AV80: 0.1779928739 | AW80: 0 | AX80: 0 | AY80: 0.3333333333 | AZ80: 0 | BA80: 0 | BB80: 8 | BC80: 2017_1 | BE80: 0 | BF80: 0 | BG80: 0 | BH80: 2.5 | BI80: 2.5 | BJ80: 0 | BK80: 0 | BL80: 0 | BM80: 0 | BN80: 0 | BO80: 0 | BP80: 0 | BQ80: 0 | BR80: 0 | BS80: 0 | BT80: 0 | BY80: 108403000 | BZ80: 108403000 | CA80: 0 | CB80: 0 | CC80: 0 | CD80: 0 | CE80: 0 | CF80: 0 | CG80: 0 | CH80: 0 | CI80: 0 | CJ80: 0 | CK80: 0 | CL80: 0 | CM80: 0 | CT80: Planeta | CU80: 15 | CV80: Vida de ecosistemas terrestres | CW80: 15.1 | CX80: De aquí a 2020, asegurar la conservación, el restablecimiento y el uso sostenible de los ecosistemas terrestres y los ecosistemas interiores de agua dulce y sus servicios, en particular los bosques, los humedales, las montañas y las zonas áridas, en consonancia con las obligaciones contraídas en virtud de acuerdos internacionales | CY80: 0.004655058343 | DG80: Anexo 2 (15%)
A81: 80 | B81: 3 | C81: Santa Fe | D81: 6 | E81: Eje transversal Sostenibilidad ambiental basada en la eficiencia energética | F81: 38 | G81: Recuperación y manejo de la Estructura Ecológica Principal | H81: 597 | I81: Aumentar en valor real de la cobertura verde en el espacio público urbano de Bogotá D.C. (arbolado 7%, zonas verdes en 0,2% y jardinería en 20%) garantizando el mantenimiento de lo generado y lo existente. | J81: 454 | K81: Incrementar las zonas verdes de jardinería en 18.000 metros cuadrados nuevos | L81: 80 | M81: Intervenir 100 M2 de espacio público con acciones de jardinería, muros verdes y/o paisajismo | N81: 3-3-1-15-06-38-1324-00 | O81: RENATURALIZANDO LAS ZONES VERDES DE SANTA FE | P81: COBERTURAS VERDES | Q81: Suma | R81: 3 | S81: Intervenir | T81: 100 | U81: m2 | V81: De espacio público con acciones de jardinería, y/o paisajismo | W81: Intervenir 100 m2 De espacio público con acciones de jardinería, y/o paisajismo | X81: 12 | Y81: Protección y recuperación de los recursos ambientales | Z81: Intervención física en renaturalización, ecourbanismo, arborización, coberturas vegetales, muros verdes, paisajismo y jardinería | AA81: 94 | AB81: Sector Ambiente | AC81: 20 | AD81: Calidad ambiental y preservación del patrimonio natural | AE81: 29 | AF81: m2 de espacio público intervenidos con acciones de jardinería, muros verdes y/o paisajismo | AG81: 2 | AH81: Política para la Gestión de la Conservación de la Biodiversidad en el Distrito Capital | AI81: 3. Restauración de los ecosistemas degradados en el territorio. | AJ81: 0.004655058343 | AK81: 0 | AL81: 0 | AM81: 0 | AN81: 0 | AO81: 0 | AP81: 0 | AQ81: Bajo | AR81: Bajo | AS81: 0.3333333333 | AT81: 0 | AU81: 0 | AV81: 0.1779928739 | AW81: 0 | AX81: 0 | AY81: 0.3333333333 | AZ81: 0 | BA81: 0 | BC81: 2017_1 | BE81: 0 | BF81: 0 | BG81: 0 | BH81: 25 | BI81: 25 | BJ81: 0 | BK81: 0 | BL81: 0 | BM81: 0 | BN81: 0 | BO81: 0 | BP81: 0 | BQ81: 0 | BR81: 0 | BS81: 0 | BT81: 0 | BY81: 108403000 | BZ81: 108403000 | CA81: 0 | CB81: 0 | CC81: 0 | CD81: 0 | CE81: 0 | CF81: 0 | CG81: 0 | CH81: 0 | CI81: 0 | CJ81: 0 | CK81: 0 | CL81: 0 | CM81: 0 | CT81: Planeta | CU81: 11 | CV81: Ciudades y comunidades sostenibles | CW81: 11.7 | CX81: De aquí a 2030, proporcionar acceso universal a zonas verdes y espacios públicos seguros, inclusivos y accesibles, en particular para las mujeres y los niños, las personas de edad y las personas con discapacidad | CY81: 0.004655058343 | DG81: Anexo 2 (15%)
A82: 81 | B82: 3 | C82: Santa Fe | D82: 6 | E82: Eje transversal Sostenibilidad ambiental basada en la eficiencia energética | F82: 41 | G82: Desarrollo rural sostenible | H82: 642 | I82: Alcanzar un aumento del 20% en al menos uno de los componentes del índice de sostenibilidad de las unidades productivas intervenidas | J82: 280 | K82: Implementar en 80 unidades agrícolas familiares procesos de reconversión productiva | L82: 81 | M82: Beneficiar 200 personas a través de emprendimientos rurales | N82: 3-3-1-15-06-41-1325-00 | O82: SANTA FE POR UNA RURALIDAD EMPRENDEDORA Y TECNIFICADA | P82: EMPRENDIMIENTO RURAL | Q82: Suma | R82: 1 | S82: Beneficiar | T82: 200 | U82: Personas | V82: A través de emprendimientos rurales | W82: Beneficiar 200 Personas A través de emprendimientos rurales | X82: 12 | Y82: Protección y recuperación de los recursos ambientales | Z82: Apoyo a emprendimientos productivos rurales | AA82: 94 | AB82: Sector Ambiente | AC82: 30 | AD82: No Aplica | AE82: 30 | AF82: Personas beneficiadas a través de emprendimientos rurales | AG82: 6 | AH82: Política Pública Distrital de Ruralidad | AI82: 2. Desarrollo Humano Sostenible, Productividad y Seguridad Alimentaria. | AJ82: 0.007448101937 | AK82: 0 | AL82: 0 | AM82: 0 | AN82: 0 | AO82: 0 | AP82: 0 | AQ82: Bajo | AR82: Bajo | AS82: 0.6111070005 | AT82: 0 | AU82: 0 | AV82: 0.2847889267 | AW82: 0 | AX82: 0 | AY82: 0.6111070005 | AZ82: 0 | BA82: 0 | BC82: 2017_1 | BE82: 0 | BF82: 0 | BG82: 0 | BH82: 50 | BI82: 50 | BJ82: 0 | BK82: 0 | BL82: 0 | BM82: 0 | BN82: 0 | BO82: 0 | BP82: 0 | BQ82: 0 | BR82: 0 | BS82: 0 | BT82: 0 | BY82: 173445000 | BZ82: 173445000 | CA82: 0 | CB82: 0 | CC82: 0 | CD82: 0 | CE82: 0 | CF82: 0 | CG82: 0 | CH82: 0 | CI82: 0 | CJ82: 0 | CK82: 0 | CL82: 0 | CM82: 0 | CT82: Prosperidad | CU82: 8 | CV82: Poner fin al hambre, lograr la seguridad alimentaria y la mejora de la nutrición y promover la agricultura sostenible | CW82: 8.2 | CX82: De aquí a 2030, asegurar la sostenibilidad de los sistemas de producción de alimentos y aplicar prácticas agrícolas resilientes que aumenten la productividad y la producción, contribuyan al mantenimiento de los ecosistemas, fortalezcan la capacidad de adaptación al cambio climático, los fenómenos meteorológicos extremos, las sequías, las inundaciones y otros desastres, y mejoren progresivamente la calidad de la tierra y el suelo | CY82: 0.007448101937 | DG82: Anexo 2 (15%)
A83: 82 | B83: 3 | C83: Santa Fe | D83: 6 | E83: Eje transversal Sostenibilidad ambiental basada en la eficiencia energética | F83: 41 | G83: Desarrollo rural sostenible | H83: 639 | I83: Duplicar el número de predios con adopción de buenas prácticas productivas que contribuyan a la adaptación y reducción de la vulnerabilidad frente al cambio climático y la promoción del desarrollo sostenible. | J83: 468 | K83: Duplicar el número de predios con adopción de buenas prácticas productivas que contribuyan a la adaptación y reducción de la vulnerabilidad frente al cambio climático y la promoción del desarrollo sostenible. | L83: 82 | M83: Beneficiar 100 personas mediante acciones de asesoría técnica agropecuaria y/o asistencia en tecnologías ambientales sostenibles | N83: 3-3-1-15-06-41-1325-00 | O83: SANTA FE POR UNA RURALIDAD EMPRENDEDORA Y TECNIFICADA | P83: ASESORÍA Y ASISTENCIA TÉCNICA RURAL | Q83: Suma | R83: 2 | S83: Beneficiar | T83: 100 | U83: Personas | V83: Mediante acciones de asesoría técnica agropecuaria y/o tecnologías ambientales sostenibles | W83: Beneficiar 100 Personas Mediante acciones de asesoría técnica agropecuaria y/o tecnologías ambientales sostenibles | X83: 12 | Y83: Protección y recuperación de los recursos ambientales | Z83: Asesoría técnica agropecuaria, asistencia en tecnologías ambientales sostenibles y temas de productividad rural | AA83: 94 | AB83: Sector Ambiente | AC83: 30 | AD83: No Aplica | AE83: 31 | AF83: Personas beneficiadas con acciones de asesoría técnica agropecuaria y/o asistencia en tecnologías ambientales sostenibles | AG83: 6 | AH83: Política Pública Distrital de Ruralidad | AI83: 2. Desarrollo Humano Sostenible, Productividad y Seguridad Alimentaria. | AJ83: 0.004739783213 | AK83: 0 | AL83: 0 | AM83: 0 | AN83: 0 | AO83: 0 | AP83: 0 | AQ83: Bajo | AR83: Bajo | AS83: 0.3888929995 | AT83: 0 | AU83: 0 | AV83: 0.1812324516 | AW83: 0 | AX83: 0 | AY83: 0.3888929995 | AZ83: 0 | BA83: 0 | BB83: 125 | BC83: 2017_1 | BE83: 0 | BF83: 0 | BG83: 0 | BH83: 25 | BI83: 25 | BJ83: 0 | BK83: 0 | BL83: 0 | BM83: 0 | BN83: 0 | BO83: 0 | BP83: 0 | BQ83: 0 | BR83: 0 | BS83: 0 | BT83: 0 | BY83: 110376000 | BZ83: 110376000 | CA83: 0 | CB83: 0 | CC83: 0 | CD83: 0 | CE83: 0 | CF83: 0 | CG83: 0 | CH83: 0 | CI83: 0 | CJ83: 0 | CK83: 0 | CL83: 0 | CM83: 0 | CT83: Planeta | CU83: 13 | CV83: Acción por el Clima | CW83: 13.1 | CX83: Fortalecer la resiliencia y la capacidad de adaptación a los riesgos relacionados con el clima y los desastres naturales en todos los países. | CY83: 0.004739783213 | DG83: Anexo 2 (15%)
A84: 83 | B84: 3 | C84: Santa Fe | D84: 7 | E84: Eje transversal Gobierno legítimo, fortalecimiento local y eficiencia | F84: 45 | G84: Gobernanza e influencia local, regional e internacional | J84: 158 | K84: Implementar en un 100% en las Alcaldías Locales un nuevo modelo de gestión | L84: 83 | M84: Garantizar el pago de honorarios a los siete (7) Ediles de la localidad | N84: 3-3-1-15-07-45-1326-00 | O84: SANTA FE AL DÍA | P84: HONORARIOS A EDILES | Q84: Constante | R84: 1 | S84: Cubrir | T84: 7 | U84: Ediles | V84: Con el pago de honorarios | W84: Cubrir 7 Ediles Con el pago de honorarios | X84: 6 | Y84: Gestión pública local | Z84: Fortalecimiento institucional y pago de honorarios de ediles | AA84: 98 | AB84: Sector Gobierno | AC84: 29 | AD84: Fortalecimiento institucional | AE84: 32 | AF84: Ediles con pago de honorarios cubierto | AG84: 37 | AH84: Política Pública de transparencia, integridad y no tolerancia con la corrupción en Bogotá | AJ84: 0.02361818482 | AK84: 1.75 | AL84: 0.25 | AM84: 0.005904546204 | AN84: 1.75 | AO84: 0.25 | AP84: 0.005904546204 | AQ84: Bajo | AR84: Bajo | AS84: 0.1578197234 | AT84: 0.03945493085 | AU84: 0.03945493085 | AV84: 0.1578197234 | AW84: 0.03945493085 | AX84: 0.03945493085 | AY84: 0.1835060737 | AZ84: 0.04587651843 | BA84: 0.04587651843 | BB84: 7 | BC84: 2017_1 | BE84: 0 | BF84: 0 | BG84: 0 | BH84: 7 | BI84: 7 | BJ84: 0 | BK84: 0 | BL84: 0 | BM84: 7 | BN84: 0 | BO84: 0 | BP84: 0 | BQ84: 7 | BR84: 0 | BS84: 0 | BT84: 0 | BY84: 550000000 | BZ84: 550000000 | CA84: 0 | CB84: 0 | CC84: 0 | CD84: 90600160 | CE84: 0 | CF84: 0 | CG84: 0 | CH84: 90600160 | CI84: 90600160 | CJ84: 90600160 | CK84: 0 | CL84: 0 | CM84: 0 | CT84: Alianza y justicia | CU84: 16 | CV84: Paz, justicia e instituciones sólidas | CW84: 16.1 | CX84: Garantizar el acceso público a la información y proteger las libertades fundamentales, de conformidad con las leyes nacionales y los acuerdos internacionales | CY84: 0.02361818482 | DG84: Anexo 1 (85%)
A85: 84 | B85: 3 | C85: Santa Fe | D85: 7 | E85: Eje transversal Gobierno legítimo, fortalecimiento local y eficiencia | F85: 45 | G85: Gobernanza e influencia local, regional e internacional | J85: 158 | K85: Implementar en un 100% en las Alcaldías Locales un nuevo modelo de gestión | L85: 84 | M85: Realizar una estrategia de fortalecimiento institucional | N85: 3-3-1-15-07-45-1326-00 | O85: SANTA FE AL DÍA | P85: FORTALECIMIENTO LOCAL | Q85: Suma | R85: 2 | S85: Realizar | T85: 4 | U85: Estrategias | V85: De Fortalecimiento Institucional | W85: Realizar 4 Estrategias De Fortalecimiento Institucional | X85: 6 | Y85: Gestión pública local | Z85: Fortalecimiento institucional y pago de honorarios de ediles | AA85: 98 | AB85: Sector Gobierno | AC85: 29 | AD85: Fortalecimiento institucional | AE85: 33 | AF85: Estrategias de fortalecimiento institucional realizadas | AG85: 37 | AH85: Política Pública de transparencia, integridad y no tolerancia con la corrupción en Bogotá | AJ85: 0.07439715335 | AK85: 1 | AL85: 0.25 | AM85: 0.01859928834 | AN85: 1 | AO85: 0.25 | AP85: 0.01859928834 | AQ85: Bajo | AR85: Bajo | AS85: 0.4971312678 | AT85: 0.124282817 | AU85: 0.124282817 | AV85: 0.4971312678 | AW85: 0.124282817 | AX85: 0.124282817 | AY85: 0.5780431313 | AZ85: 0.1445107828 | BA85: 0.1445107828 | BB85: 4 | BC85: 2017_1 | BE85: 0 | BF85: 0 | BG85: 0 | BH85: 1 | BI85: 1 | BJ85: 0 | BK85: 0 | BL85: 0 | BM85: 1 | BN85: 0 | BO85: 0 | BP85: 0 | BQ85: 1 | BR85: 0 | BS85: 0 | BT85: 0 | BY85: 1732497000 | BZ85: 1732497000 | CA85: 0 | CB85: 0 | CC85: 0 | CD85: 1489326666 | CE85: 0 | CF85: 0 | CG85: 0 | CH85: 1489326666 | CI85: 2566668 | CJ85: 2566668 | CK85: 0 | CL85: 0 | CM85: 0 | CT85: Alianza y justicia | CU85: 16 | CV85: Paz, justicia e instituciones sólidas | CW85: 16.1 | CX85: Garantizar el acceso público a la información y proteger las libertades fundamentales, de conformidad con las leyes nacionales y los acuerdos internacionales | CY85: 0.07439715335 | DG85: Anexo 1 (85%)
A86: 85 | B86: 3 | C86: Santa Fe | D86: 7 | E86: Eje transversal Gobierno legítimo, fortalecimiento local y eficiencia | F86: 45 | G86: Gobernanza e influencia local, regional e internacional | J86: 160 | K86: Disminuir el número de actuaciones administrativas activas y las represadas a 21.513 | L86: 85 | M86: Realizar 4 acciones de inspección, vigilancia y control | N86: 3-3-1-15-07-45-1326-00 | O86: SANTA FE AL DÍA | P86: IVC | Q86: Suma | R86: 3 | S86: Realziar | T86: 4 | U86: Acciones | V86: de inspección, vigilancia y control | W86: Realziar 4 Acciones de inspección, vigilancia y control | X86: 4 | Y86: Inspección, vigilancia y control - IVC | Z86: Acciones de fortalecimiento para la inspección, vigilancia y control – IVC | AA86: 98 | AB86: Sector Gobierno | AC86: 32 | AD86: Inspección, vigilancia y control (IVC) | AE86: 34 | AF86: Acciones de inspección, vigilancia y control realizadas | AG86: 31 | AH86: Política Pública Distrital de Convivencia y Seguridad Ciudadana | AJ86: 0.03068985583 | AK86: 1 | AL86: 0.25 | AM86: 0.007672463958 | AN86: 0 | AO86: 0 | AP86: 0 | AQ86: Bajo | AR86: Bajo | AS86: 0.2050735311 | AT86: 0.05126838277 | AU86: 0 | AV86: 0.2050735311 | AW86: 0.05126838277 | AX86: 0 | AY86: 0.238450795 | AZ86: 0.05961269875 | BA86: 0 | BB86: 4 | BC86: 2017_1 | BE86: 0 | BF86: 0 | BG86: 0 | BH86: 1 | BI86: 1 | BJ86: 0 | BK86: 0 | BL86: 0 | BM86: 1 | BN86: 0 | BO86: 0 | BP86: 0 | BQ86: 0 | BR86: 0 | BS86: 0 | BT86: 0 | BY86: 714679000 | BZ86: 714679000 | CA86: 0 | CB86: 0 | CC86: 0 | CD86: 542040000 | CE86: 0 | CF86: 0 | CG86: 0 | CH86: 542040000 | CI86: 0 | CJ86: 0 | CK86: 0 | CL86: 0 | CM86: 0 | CT86: Alianza y justicia | CU86: 16 | CV86: Paz, justicia e instituciones sólidas | CW86: 16.1 | CX86: Garantizar el acceso público a la información y proteger las libertades fundamentales, de conformidad con las leyes nacionales y los acuerdos internacionales | CY86: 0.03068985583 | DG86: Anexo 1 (85%)
A87: 86 | B87: 3 | C87: Santa Fe | D87: 7 | E87: Eje transversal Gobierno legítimo, fortalecimiento local y eficiencia | F87: 45 | G87: Gobernanza e influencia local, regional e internacional | H87: 825 | I87: Realizar 350 Acciones de participación ciudadana desarrolladas por organizaciones comunales, sociales y comunitarias | J87: 148 | K87: Formar a 10.000 ciudadanos en participación | L87: 86 | M87: Vincular 1200 personas a procesos de participación y/o control social | N87: 3-3-1-15-07-45-1327-00 | O87: VOZ PARA TODOS | P87: PARTICIPACIÓN CIUDADANA Y CONTROL SOCIAL | Q87: Suma | R87: 1 | S87: Vincular | T87: 1200 | U87: Personas | V87: A procesos de participación y/o control social | W87: Vincular 1200 Personas A procesos de participación y/o control social | X87: 13 | Y87: Participación | Z87: Fomento a la participación | AA87: 98 | AB87: Sector Gobierno | AC87: 9 | AD87: Espacios y procesos de participación ciudadana fortalecidos | AE87: 36 | AF87: Personas vinculadas a procesos de participación ciudadana y/o control social | AG87: 30 | AH87: Polìtica Pública de Participación Incidente para el Distrito Capital | AI87: 1. Fortalecimiento de la Participación Incidente de la Ciudadanía | AJ87: 0.02094774107 | AK87: 0 | AL87: 0 | AM87: 0 | AN87: 0 | AO87: 0 | AP87: 0 | AQ87: Bajo | AR87: Bajo | AS87: 0.1399754777 | AT87: 0 | AU87: 0 | AV87: 0.1399754777 | AW87: 0 | AX87: 0 | AY87: 1 | AZ87: 0 | BA87: 0 | BB87: 620 | BC87: 2017_1 | BE87: 0 | BF87: 0 | BG87: 0 | BH87: 300 | BI87: 300 | BJ87: 0 | BK87: 0 | BL87: 0 | BM87: 0 | BN87: 0 | BO87: 0 | BP87: 0 | BQ87: 0 | BR87: 0 | BS87: 0 | BT87: 0 | BY87: 487813000 | BZ87: 487813000 | CA87: 0 | CB87: 0 | CC87: 0 | CD87: 0 | CE87: 0 | CF87: 0 | CG87: 0 | CH87: 0 | CI87: 0 | CJ87: 0 | CK87: 0 | CL87: 0 | CM87: 0 | CT87: Alianza y justicia | CU87: 16 | CV87: Paz, justicia e instituciones sólidas | CW87: 16.1 | CX87: Garantizar el acceso público a la información y proteger las libertades fundamentales, de conformidad con las leyes nacionales y los acuerdos internacionales | CY87: 0.02094774107 | DG87: Anexo 2 (15%)
A88: 87 | B88: 4 | C88: San Cristóbal | D88: 1 | E88: Pilar Igualdad de calidad de vida | F88: 2 | G88: Desarrollo integral desde la gestación hasta la adolescencia | H88: 10 | I88: Alcanzar 159.054 cupos para la atención integral de niños y niñas de primera infancia con estándares de calidad superiores al 80% en el ámbito institucional. | J88: 382 | K88: 83.000 cupos para la atención integral de niños y niñas de 4 y 5 años | L88: 87 | M88: Adecuar 4 jardines infantiles | N88: 3-3-1-15-01-02-1492-00 | O88: Niños y niñas sanos y felices en San Cristóbal | P88: ADECUACIÓN DE ESPACIOS | Q88: Suma | R88: 1 | S88: Adecuar | T88: 4 | U88: jardines | V88: infantiles | W88: Adecuar 4 jardines infantiles | X88: 8 | Y88: Dotación | Z88: Dotación pedagógica y adecuación de jardines infantiles | AA88: 92 | AB88: Sector Integración social | AC88: 2 | AD88: Adecuación , habilitación y dotación de jardines | AE88: 1 | AF88: Jardines infantiles adecuados | AG88: 38 | AH88: Política Pública de Infancia y Adolescencia de Bogotá D.C. | AI88: 2. Bogotá construye ciudad con los niños y las niñas y los/las adolescentes | AJ88: 0.004434988458 | AK88: 0 | AL88: 0 | AM88: 0 | AN88: 0 | AO88: 0 | AP88: 0 | AQ88: Bajo | AR88: Bajo | AS88: =AJ88/SUMIF($F$88:$F$117,F88,$AJ$88:$AJ$117) -> 0.2222222222 | AT88: 0 | AU88: 0 | AV88: =AJ88/SUMIF($D$88:$D$117,D88,$AJ$88:$AJ$117) -> 0.02261691247 | AW88: 0 | AX88: 0 | AY88: =AJ88/SUMIF($N$88:$N$117,N88,$AJ$88:$AJ$117) -> 0.2222222222 | AZ88: 0 | BA88: 0 | BB88: 13 | BC88: 2017_1 | BE88: 0 | BF88: 0 | BG88: 0 | BH88: 1 | BI88: 1 | BJ88: 0 | BK88: 0 | BL88: 0 | BM88: 0 | BN88: 0 | BO88: 0 | BP88: 0 | BQ88: 0 | BR88: 0 | BS88: 0 | BT88: 0 | BY88: 250000000 | BZ88: 250000000 | CA88: 0 | CB88: 0 | CC88: 0 | CD88: 0 | CE88: 0 | CF88: 0 | CG88: 0 | CH88: 0 | CI88: 0 | CJ88: 0 | CK88: 0 | CL88: 0 | CM88: 0 | CT88: Personas | CU88: 4 | CV88: Educación de calidad | CW88: 4.2 | CX88: De aquí a 2030, asegurar que todas las niñas y todos los niños tengan acceso a servicios de atención y desarrollo en la primera infancia y educación preescolar de calidad, a fin de que estén preparados para la enseñanza primaria. | CY88: 0.004508147494 | DG88: Anexo 2 (15%)
A89: 88 | B89: 4 | C89: San Cristóbal | D89: 1 | E89: Pilar Igualdad de calidad de vida | F89: 2 | G89: Desarrollo integral desde la gestación hasta la adolescencia | H89: 6 | I89: Alcanzar 232.687 cupos de ámbitos institucionales y de los programas del orden nacional relacionados con la atención integral de niños, niñas y de primera infancia, en el marco de la RIA. | J89: 298 | K89: 76.241 cupos para atender niños y niñas de 0 a 5 años en el marco de la Ruta Integral de Atenciones | L89: 88 | M89: Dotar 589 jardines infantiles | N89: 3-3-1-15-01-02-1492-00 | O89: Niños y niñas sanos y felices en San Cristóbal | P89: DOTACIÓN | Q89: Suma | R89: 2 | S89: Dotar | T89: 589 | U89: jardines | V89: infantiles | W89: Dotar 589 jardines infantiles | X89: 8 | Y89: Dotación | Z89: Dotación pedagógica y adecuación de jardines infantiles | AA89: 92 | AB89: Sector Integración social | AC89: 1 | AD89: Protección integral a niños y niñas y adolescentes | AE89: 2 | AF89: Jardines infantiles dotados | AG89: 38 | AH89: Política Pública de Infancia y Adolescencia de Bogotá D.C. | AI89: 2. Bogotá construye ciudad con los niños y las niñas y los/las adolescentes | AJ89: 0.009313475761 | AK89: 0 | AL89: 0 | AM89: 0 | AN89: 0 | AO89: 0 | AP89: 0 | AQ89: Bajo | AR89: Bajo | AS89: =AJ89/SUMIF($F$88:$F$117,F89,$AJ$88:$AJ$117) -> 0.4666666667 | AT89: 0 | AU89: 0 | AV89: =AJ89/SUMIF($D$88:$D$117,D89,$AJ$88:$AJ$117) -> 0.0474955162 | AW89: 0 | AX89: 0 | AY89: =AJ89/SUMIF($N$88:$N$117,N89,$AJ$88:$AJ$117) -> 0.4666666667 | AZ89: 0 | BA89: 0 | BB89: 27 | BC89: 2017_1 | BE89: 0 | BF89: 0 | BG89: 0 | BH89: 148 | BI89: 148 | BJ89: 0 | BK89: 0 | BL89: 0 | BM89: 0 | BN89: 0 | BO89: 0 | BP89: 0 | BQ89: 0 | BR89: 0 | BS89: 0 | BT89: 0 | BY89: 900000000 | BZ89: 900000000 | CA89: 0 | CB89: 0 | CC89: 0 | CD89: 0 | CE89: 0 | CF89: 0 | CG89: 0 | CH89: 0 | CI89: 0 | CJ89: 0 | CK89: 0 | CL89: 0 | CM89: 0 | CT89: Personas | CU89: 4 | CV89: Educación de calidad | CW89: 4.2 | CX89: De aquí a 2030, asegurar que todas las niñas y todos los niños tengan acceso a servicios de atención y desarrollo en la primera infancia y educación preescolar de calidad, a fin de que estén preparados para la enseñanza primaria. | CY89: 0.01622933098 | DG89: Anexo 2 (15%)
A90: 89 | B90: 4 | C90: San Cristóbal | D90: 1 | E90: Pilar Igualdad de calidad de vida | F90: 2 | G90: Desarrollo integral desde la gestación hasta la adolescencia | H90: 6 | I90: Alcanzar 232.687 cupos de ámbitos institucionales y de los programas del orden nacional relacionados con la atención integral de niños, niñas y de primera infancia, en el marco de la RIA. | J90: 298 | K90: 76.241 cupos para atender niños y niñas de 0 a 5 años en el marco de la Ruta Integral de Atenciones | L90: 89 | M90: Vincular a 2000 personas en acciones de promocion del buen trato infantil | N90: 3-3-1-15-01-02-1492-00 | O90: Niños y niñas sanos y felices en San Cristóbal | P90: BUEN TRATO INFANTIL | Q90: Suma | R90: 3 | S90: Vincular | T90: 2000 | U90: personas | V90: en acciones de promoción del buen trato infantil | W90: Vincular 2000 personas en acciones de promoción del buen trato infantil | X90: 7 | Y90: Atención a población vulnerable | Z90: Prevención de violencia infantil y promoción del buen trato | AA90: 92 | AB90: Sector Integración social | AC90: 1 | AD90: Protección integral a niños y niñas y adolescentes | AE90: 3 | AF90: Personas vinculadas a acciones de promoción del buen trato infantil | AG90: 38 | AH90: Política Pública de Infancia y Adolescencia de Bogotá D.C. | AI90: 1. Niños, niñas y adolescentes en ciudadanía plena | AJ90: 0.006208983841 | AK90: 0 | AL90: 0 | AM90: 0 | AN90: 0 | AO90: 0 | AP90: 0 | AQ90: Bajo | AR90: Bajo | AS90: 0.3111111111 | AT90: 0 | AU90: 0 | AV90: 0.03166367746 | AW90: 0 | AX90: 0 | AY90: 0.3111111111 | AZ90: 0 | BA90: 0 | BB90: 4800 | BC90: 2017_1 | BE90: 0 | BF90: 0 | BG90: 0 | BH90: 500 | BI90: 500 | BJ90: 0 | BK90: 0 | BL90: 0 | BM90: 0 | BN90: 0 | BO90: 0 | BP90: 0 | BQ90: 0 | BR90: 0 | BS90: 0 | BT90: 0 | BY90: 400000000 | BZ90: 400000000 | CA90: 0 | CB90: 0 | CC90: 0 | CD90: 0 | CE90: 0 | CF90: 0 | CG90: 0 | CH90: 0 | CI90: 0 | CJ90: 0 | CK90: 0 | CL90: 0 | CM90: 0 | CT90: Personas | CU90: 4 | CV90: Educación de calidad | CW90: 4.2 | CX90: De aquí a 2030, asegurar que todas las niñas y todos los niños tengan acceso a servicios de atención y desarrollo en la primera infancia y educación preescolar de calidad, a fin de que estén preparados para la enseñanza primaria. | CY90: 0.00721303599 | DG90: Anexo 2 (15%)
A91: 90 | B91: 4 | C91: San Cristóbal | D91: 1 | E91: Pilar Igualdad de calidad de vida | F91: 3 | G91: Igualdad y autonomía para una Bogotá incluyente | H91: 27 | I91: Incrementar en un 25% la vinculación de personas mayores en procesos de fortalecimiento de sus proyectos de vida a través de los servicios de la SDIS | J91: 306 | K91: Entregar a 90.318 personas mayores en situación de vulnerabilidad socioeconómica apoyos económicos | L91: 90 | M91: Beneficiar a 4950 con subisidio tipo C, por año | N91: 3-3-1-15-01-03-1509-00 | O91: Personas mayores protegidas en San Cristóbal | P91: SUBSIDIO TIPO C | Q91: Constante | R91: 1 | S91: Beneficiar | T91: 4950 | U91: personas | V91: con subisidio tipo C por año | W91: Beneficiar 4950 personas con subisidio tipo C por año | X91: 5 | Y91: Atención a población vulnerable_Subsidio C | Z91: Subsidio C a persona mayor | AA91: 92 | AB91: Sector Integración social | AC91: 2 | AD91: Protección integral a personas y familias en situación de vulneración | AE91: 4 | AF91: Personas con subsidio tipo C beneficiadas | AG91: 39 | AH91: Política Pública Social para el Envejecimiento y la Vejez en el D.C. 2010 - 2026 | AI91: 2. Vivir bien en la vejez | AJ91: 0.1083982139 | AK91: 0 | AL91: 0 | AM91: 0 | AN91: 0 | AO91: 0 | AP91: 0 | AQ91: Bajo | AR91: Bajo | AS91: 0.8972160226 | AT91: 0 | AU91: 0 | AV91: 0.5527935279 | AW91: 0 | AX91: 0 | AY91: 1 | AZ91: 0 | BA91: 0 | BB91: 3837.5 | BC91: 2017_1 | BE91: 0 | BF91: 0 | BG91: 0 | BH91: 4950 | BI91: 4950 | BJ91: 0 | BK91: 0 | BL91: 0 | BM91: 0 | BN91: 0 | BO91: 0 | BP91: 0 | BQ91: 0 | BR91: 0 | BS91: 0 | BT91: 0 | BY91: 7209170000 | BZ91: 7209170000 | CA91: 0 | CB91: 0 | CC91: 0 | CD91: 631600000 | CE91: 0 | CF91: 0 | CG91: 0 | CH91: 631600000 | CI91: 0 | CJ91: 0 | CK91: 0 | CL91: 0 | CM91: 0 | CT91: Personas | CU91: 1 | CV91: Fin de la pobreza | CW91: 1.2 | CX91: De aquí a 2030, reducir al menos a la mitad la proporción de hombres, mujeres y niños de todas las edades que viven en la pobreza en todas sus dimensiones con arreglo a las definiciones nacionales | CY91: 0.1300000067 | DG91: Anexo 1 (85%)
A92: 91 | B92: 4 | C92: San Cristóbal | D92: 1 | E92: Pilar Igualdad de calidad de vida | F92: 3 | G92: Igualdad y autonomía para una Bogotá incluyente | H92: 34 | I92: Incrementar a 2.000 personas con discapacidad con procesos de inclusión efectivos en el Distrito. | L92: 91 | M92: Beneficiar 1600 personas en condicion de discapacidad con ayudas técnicas no POS | N92: 3-3-1-15-01-03-1502-00 | O92: Superando las barreras de la discapacidad en San Cristóbal | P92: AYUDAS TÉCNICAS | Q92: Suma | R92: 1 | S92: Beneficiar | T92: 1600 | U92: personas | V92: en condición de discapacidad con ayudas técnicas no POS | W92: Beneficiar 1600 personas en condición de discapacidad con ayudas técnicas no POS | X92: 7 | Y92: Atención a población vulnerable | Z92: Ayudas Técnicas a personas con discapacidad (no incluidas en el POS) | AA92: 91 | AB92: Sector Salud | AC92: 3 | AD92: Promoción, prevención e intervención en salud | AE92: 5 | AF92: Personas beneficiadas con ayudas técnicas no POS | AG92: 40 | AH92: Política Pública de Discapacidad para el Distrito Capital | AI92: 1. Desarrollo de capacidades y oportunidades | AJ92: 0.01241796768 | AK92: 0 | AL92: 0 | AM92: 0 | AN92: 0 | AO92: 0 | AP92: 0 | AQ92: Bajo | AR92: Bajo | AS92: 0.1027839774 | AT92: 0 | AU92: 0 | AV92: 0.06332735493 | AW92: 0 | AX92: 0 | AY92: 1 | AZ92: 0 | BA92: 0 | BB92: 1339 | BC92: 2017_1 | BE92: 0 | BF92: 0 | BG92: 0 | BH92: 400 | BI92: 400 | BJ92: 0 | BK92: 0 | BL92: 0 | BM92: 0 | BN92: 0 | BO92: 0 | BP92: 0 | BQ92: 0 | BR92: 0 | BS92: 0 | BT92: 0 | BY92: 700000000 | BZ92: 700000000 | CA92: 0 | CB92: 0 | CC92: 0 | CD92: 0 | CE92: 0 | CF92: 0 | CG92: 0 | CH92: 0 | CI92: 0 | CJ92: 0 | CK92: 0 | CL92: 0 | CM92: 0 | CT92: Personas | CU92: 1 | CV92: Fin de la pobreza | CW92: 1.3 | CX92: Implementar a nivel nacional sistemas y medidas apropiados de protección social para todos, incluidos niveles mínimos, y, de aquí a 2030, lograr una amplia cobertura de las personas pobres y vulnerables | CY92: 0.01262281298 | DG92: Anexo 2 (15%)
A93: 92 | B93: 4 | C93: San Cristóbal | D93: 1 | E93: Pilar Igualdad de calidad de vida | F93: 4 | G93: Familias protegidas y adaptadas al cambio climático | H93: 50 | I93: Beneficiar a 8.750 familias localizadas en zonas de riesgo mitigable por fenómenos de remoción en masa, con obras de mitigación | J93: 432 | K93: Construcción de 16 obras de mitigación | L93: 92 | M93: Realizar 1/ estrategia integral de promoción y prevención frente al riesgo natural y antrópico | N93: 3-3-1-15-01-04-1579-00 | O93: San Cristóbal preparada para el riesgo | P93: OBRAS DE MITIGACIÓN | Q93: Constante | R93: 1 | S93: Realizar | T93: 1 | U93: estrategia integral | V93: de promoción y prevención frente al riesgo natural y antrópico | W93: Realizar 1 estrategia integral de promoción y prevención frente al riesgo natural y antrópico | X93: 15 | Y93: Proyecto estratégico | Z93: Proyecto estratégico | AA93: 94 | AB93: Sector Ambiente | AC93: 24 | AD93: Gestión para la prevención y mitigación del riesgo | AE93: 39 | AF93: Estrategias integrales para la prevención del riesgo natural y antrópico realizadas | AG93: 32 | AH93: Plan Distrital para la Prevención y Atención de Emergencias para Bogotá D.C." | AI93: 2. Prevención de nuevos riesgos (generación y acumulación del riesgo). | AJ93: 0.01274216534 | AK93: 0 | AL93: 0 | AM93: 0 | AN93: 0 | AO93: 0 | AP93: 0 | AQ93: Bajo | AR93: Bajo | AS93: 1 | AT93: 0 | AU93: 0 | AV93: 0.06498065123 | AW93: 0 | AX93: 0 | AY93: 1 | AZ93: 0 | BA93: 0 | BB93: 1200 | BC93: 2017_1 | BE93: 0 | BF93: 0 | BG93: 0 | BH93: 1 | BI93: 1 | BJ93: 0 | BK93: 0 | BL93: 0 | BM93: 0 | BN93: 0 | BO93: 0 | BP93: 0 | BQ93: 0 | BR93: 0 | BS93: 0 | BT93: 0 | BY93: 892928000 | BZ93: 892928000 | CA93: 0 | CB93: 0 | CC93: 0 | CD93: 0 | CE93: 0 | CF93: 0 | CG93: 0 | CH93: 0 | CI93: 0 | CJ93: 0 | CK93: 0 | CL93: 0 | CM93: 0 | CT93: Personas | CU93: 11 | CV93: Ciudades y comunidades sostenibles | CW93: 11.5 | CX93: De aquí a 2030, reducir significativamente el número de muertes causadas por los desastres, incluidos los relacionados con el agua, y de personas afectadas por ellos, y reducir considerablemente las pérdidas económicas directas provocadas por los desastres en comparación con el producto interno bruto mundial, haciendo especial hincapié en la protección de los pobres y las personas en situaciones de vulnerabilidad | CY93: 0.0161018045 | DG93: Anexo 2 (15%)
A94: 93 | B94: 4 | C94: San Cristóbal | D94: 1 | E94: Pilar Igualdad de calidad de vida | F94: 7 | G94: Inclusión educativa para la equidad | H94: 105 | I94: Contar con 30 colegios nuevos correspondientes a: 3 en ejecución, 5 en diseño y 22 en gestión de predios. | J94: 407 | K94: 300 sedes de IED con mejoramientos de infraestructura | L94: 93 | M94: Dotar 33 IED con material pedagógico | N94: 3-3-1-15-01-07-1486-00 | O94: En San Cristóbal se contribuye a una mejor educación | P94: DOTACIÓN | Q94: Suma | R94: 1 | S94: Dotar | T94: 33 | U94: IED | V94: con material pedagógico | W94: Dotar 33 IED con material pedagógico | X94: 8 | Y94: Dotación | Z94: Dotación pedagógica a colegios | AA94: 90 | AB94: Sector Educación | AC94: 5 | AD94: Infraestructura y dotación escolar | AE94: 7 | AF94: IED dotados con material pedagógico | AG94: 24 | AH94: Plan Sectorial de Educación 2012-2016 | AI94: 3. Educación Media fortalecida y mayor acceso a la educación superior | AJ94: 0.01241796768 | AK94: 0 | AL94: 0 | AM94: 0 | AN94: 0 | AO94: 0 | AP94: 0 | AQ94: Bajo | AR94: Bajo | AS94: 1 | AT94: 0 | AU94: 0 | AV94: 0.06332735493 | AW94: 0 | AX94: 0 | AY94: 1 | AZ94: 0 | BA94: 0 | BB94: 54 | BC94: 2017_1 | BE94: 0 | BF94: 0 | BG94: 0 | BH94: 8 | BI94: 8 | BJ94: 0 | BK94: 0 | BL94: 0 | BM94: 0 | BN94: 0 | BO94: 0 | BP94: 0 | BQ94: 0 | BR94: 0 | BS94: 0 | BT94: 0 | BY94: 700000000 | BZ94: 700000000 | CA94: 0 | CB94: 0 | CC94: 0 | CD94: 0 | CE94: 0 | CF94: 0 | CG94: 0 | CH94: 0 | CI94: 0 | CJ94: 0 | CK94: 0 | CL94: 0 | CM94: 0 | CT94: Personas | CU94: 4 | CV94: Educación de calidad | CW94: 4.a | CX94: Construir y adecuar instalaciones educativas que tengan en cuenta las necesidades de los niños y las personas con discapacidad y las diferencias de género, y que ofrezcan entornos de aprendizaje seguros, no violentos, inclusivos y eficaces para todos. | CY94: 0.01262281298 | DG94: Anexo 2 (15%)
A95: 94 | B95: 4 | C95: San Cristóbal | D95: 1 | E95: Pilar Igualdad de calidad de vida | F95: 11 | G95: Mejores oportunidades para el desarrollo a través de la cultura, la recreación y el deporte | H95: 159 | I95: Aumentar a 15% el porcentaje de la población que realiza prácticas culturales | L95: 94 | M95: Realizar 8 eventos artísticos y culturales | N95: 3-3-1-15-01-11-1554-00 | O95: Deporte y cultura para ser felices en San Cristóbal | P95: EVENTOS CULTURALES Y ARTISTICOS | Q95: Suma | R95: 3 | S95: Realizar | T95: 8 | U95: eventos | V95: artísticos y culturales | W95: Realizar 8 eventos artísticos y culturales | X95: 11 | Y95: Eventos artísticos, culturales y deportivos | Z95: Realización de eventos artísticos, culturales y deportivos | AA95: 93 | AB95: Sector Cultura, recreación y deporte | AC95: 12 | AD95: Espacios artísticos y culturales | AE95: 8 | AF95: Eventos artísticos y culturales realizados | AJ95: 0.008869976915 | AK95: 0 | AL95: 0 | AM95: 0 | AN95: 0 | AO95: 0 | AP95: 0 | AQ95: Bajo | AR95: Bajo | AS95: 0.2941176471 | AT95: 0 | AU95: 0 | AV95: 0.04523382495 | AW95: 0 | AX95: 0 | AY95: 0.2941176471 | AZ95: 0 | BA95: 0 | BC95: 2017_1 | BE95: 0 | BF95: 0 | BG95: 0 | BH95: 2 | BI95: 2 | BJ95: 0 | BK95: 0 | BL95: 0 | BM95: 0 | BN95: 0 | BO95: 0 | BP95: 0 | BQ95: 0 | BR95: 0 | BS95: 0 | BT95: 0 | BY95: 600000000 | BZ95: 600000000 | CA95: 0 | CB95: 0 | CC95: 0 | CD95: 0 | CE95: 0 | CF95: 0 | CG95: 0 | CH95: 0 | CI95: 0 | CJ95: 0 | CK95: 0 | CL95: 0 | CM95: 0 | CT95: Personas | CU95: 11 | CV95: Ciudades y comunidades sostenibles | CW95: 11.4 | CX95: Redoblar los esfuerzos para proteger y salvaguardar el patrimonio cultural y natural del mundo | CY95: 0.01081955399 | DG95: Anexo 2 (15%)
A96: 95 | B96: 4 | C96: San Cristóbal | D96: 1 | E96: Pilar Igualdad de calidad de vida | F96: 11 | G96: Mejores oportunidades para el desarrollo a través de la cultura, la recreación y el deporte | H96: 159 | I96: Aumentar a 15% el porcentaje de la población que realiza prácticas culturales | J96: 352 | K96: Implementar el Sistema Distrital de Formación Artística y Cultural (SIDFAC) | L96: 95 | M96: Vincular 600 personas a procesos de formación artístitca y cultural | N96: 3-3-1-15-01-11-1554-00 | O96: Deporte y cultura para ser felices en San Cristóbal | P96: PROCESOS DE FORMACIÓN ARTÍSTICA Y CULTURAL | Q96: Suma | R96: 4 | S96: Vincular | T96: 600 | U96: personas | V96: a procesos de formación artístitca y cultural | W96: Vincular 600 personas a procesos de formación artístitca y cultural | X96: 10 | Y96: Procesos de formación artística, cultural y deportiva | Z96: Procesos de formación en áreas artísticas, en cultura y disciplinas deportivas | AA96: 93 | AB96: Sector Cultura, recreación y deporte | AC96: 13 | AD96: Formación artística y cultural | AE96: 10 | AF96: Personas vinculadas a procesos de formación artística y cultural | AJ96: 0.005321986149 | AK96: 0 | AL96: 0 | AM96: 0 | AN96: 0 | AO96: 0 | AP96: 0 | AQ96: Bajo | AR96: Bajo | AS96: 0.1764705882 | AT96: 0 | AU96: 0 | AV96: 0.02714029497 | AW96: 0 | AX96: 0 | AY96: 0.1764705882 | AZ96: 0 | BA96: 0 | BB96: 1300 | BC96: 2017_1 | BE96: 0 | BF96: 0 | BG96: 0 | BH96: 150 | BI96: 150 | BJ96: 0 | BK96: 0 | BL96: 0 | BM96: 0 | BN96: 0 | BO96: 0 | BP96: 0 | BQ96: 0 | BR96: 0 | BS96: 0 | BT96: 0 | BY96: 300000000 | BZ96: 300000000 | CA96: 0 | CB96: 0 | CC96: 0 | CD96: 0 | CE96: 0 | CF96: 0 | CG96: 0 | CH96: 0 | CI96: 0 | CJ96: 0 | CK96: 0 | CL96: 0 | CM96: 0 | CT96: Personas | CU96: 4 | CV96: Educación de calidad | CW96: 4.3 | CX96: De aquí a 2030, asegurar el acceso igualitario de todos los hombres y las mujeres a una formación técnica, profesional y superior de calidad, incluida la enseñanza universitaria. | CY96: 0.005409776993 | DG96: Anexo 2 (15%)
A97: 96 | B97: 4 | C97: San Cristóbal | D97: 1 | E97: Pilar Igualdad de calidad de vida | F97: 11 | G97: Mejores oportunidades para el desarrollo a través de la cultura, la recreación y el deporte | H97: 192 | I97: Aumentar a 36% el porcentaje de la población que practica algún deporte | J97: 350 | K97: Realizar torneos interbarriales en 4 deportes | L97: 96 | M97: Realizar 12 eventos de recreación y deporte | N97: 3-3-1-15-01-11-1554-00 | O97: Deporte y cultura para ser felices en San Cristóbal | P97: EVENTOS RECREATIVOS Y DEPORTIVOS | Q97: Suma | R97: 1 | S97: Realizar | T97: 12 | U97: eventos | V97: de recreación y deporte | W97: Realizar 12 eventos de recreación y deporte | X97: 11 | Y97: Eventos artísticos, culturales y deportivos | Z97: Realización de eventos artísticos, culturales y deportivos | AA97: 93 | AB97: Sector Cultura, recreación y deporte | AC97: 16 | AD97: Eventos y actividades recreativas y deportivas | AE97: 9 | AF97: Eventos de recreación y deporte realizados | AG97: 9 | AH97: Política Pública de Deporte, Recreación , Actividad Física y Parques para Bogotá 2009-2019, denominada “Bogotá mas activa”. | AI97: 1. Aumentar la participación | AJ97: 0.0106439723 | AK97: 0 | AL97: 0 | AM97: 0 | AN97: 0 | AO97: 0 | AP97: 0 | AQ97: Bajo | AR97: Bajo | AS97: 0.3529411765 | AT97: 0 | AU97: 0 | AV97: 0.05428058994 | AW97: 0 | AX97: 0 | AY97: 0.3529411765 | AZ97: 0 | BA97: 0 | BB97: 46 | BC97: 2017_1 | BE97: 0 | BF97: 0 | BG97: 0 | BH97: 3 | BI97: 3 | BJ97: 0 | BK97: 0 | BL97: 0 | BM97: 0 | BN97: 0 | BO97: 0 | BP97: 0 | BQ97: 0 | BR97: 0 | BS97: 0 | BT97: 0 | BY97: 600000000 | BZ97: 600000000 | CA97: 0 | CB97: 0 | CC97: 0 | CD97: 0 | CE97: 0 | CF97: 0 | CG97: 0 | CH97: 0 | CI97: 0 | CJ97: 0 | CK97: 0 | CL97: 0 | CM97: 0 | CT97: Personas | CU97: 3 | CV97: Salud y Bienestar | CW97: 3.d | CX97: Reforzar la capacidad de todos los países, en particular los países en desarrollo, en materia de alerta temprana, reducción de riesgos y gestión de los riesgos para la salud nacional y mundial | CY97: 0.01081955399 | DG97: Anexo 2 (15%)
A98: 97 | B98: 4 | C98: San Cristóbal | D98: 1 | E98: Pilar Igualdad de calidad de vida | F98: 11 | G98: Mejores oportunidades para el desarrollo a través de la cultura, la recreación y el deporte | H98: 192 | I98: Aumentar a 36% el porcentaje de la población que practica algún deporte | J98: 349 | K98: Garantizar la asistencia técnica del IDRD a las escuelas de formación deportiva por los Fondos de Desarrollo Local | L98: 97 | M98: Vincular 800 personas a procesos de formación deportiva | N98: 3-3-1-15-01-11-1554-00 | O98: Deporte y cultura para ser felices en San Cristóbal | P98: PROCESOS DE FORMACIÓN DEPORTIVA | Q98: Suma | R98: 2 | S98: Vincular | T98: 800 | U98: personas | V98: a procesos de formación deportiva | W98: Vincular 800 personas a procesos de formación deportiva | X98: 10 | Y98: Procesos de formación artística, cultural y deportiva | Z98: Procesos de formación en áreas artísticas, en cultura y disciplinas deportivas | AA98: 93 | AB98: Sector Cultura, recreación y deporte | AC98: 16 | AD98: Eventos y actividades recreativas y deportivas | AE98: 11 | AF98: Personas vinculadas a procesos de formación deportiva | AG98: 9 | AH98: Política Pública de Deporte, Recreación , Actividad Física y Parques para Bogotá 2009-2019, denominada “Bogotá mas activa”. | AI98: 1. Aumentar la participación | AJ98: 0.005321986149 | AK98: 0 | AL98: 0 | AM98: 0 | AN98: 0 | AO98: 0 | AP98: 0 | AQ98: Bajo | AR98: Bajo | AS98: 0.1764705882 | AT98: 0 | AU98: 0 | AV98: 0.02714029497 | AW98: 0 | AX98: 0 | AY98: 0.1764705882 | AZ98: 0 | BA98: 0 | BB98: 4025 | BC98: 2017_1 | BE98: 0 | BF98: 0 | BG98: 0 | BH98: 200 | BI98: 200 | BJ98: 0 | BK98: 0 | BL98: 0 | BM98: 0 | BN98: 0 | BO98: 0 | BP98: 0 | BQ98: 0 | BR98: 0 | BS98: 0 | BT98: 0 | BY98: 300000000 | BZ98: 300000000 | CA98: 0 | CB98: 0 | CC98: 0 | CD98: 0 | CE98: 0 | CF98: 0 | CG98: 0 | CH98: 0 | CI98: 0 | CJ98: 0 | CK98: 0 | CL98: 0 | CM98: 0 | CT98: Personas | CU98: 11 | CV98: Ciudades y comunidades sostenibles | CW98: 11.4 | CX98: Redoblar los esfuerzos para proteger y salvaguardar el patrimonio cultural y natural del mundo | CY98: 0.005409776993 | DG98: Anexo 2 (15%)
A99: 98 | B99: 4 | C99: San Cristóbal | D99: 2 | E99: Pilar Democracia urbana | F99: 15 | G99: Recuperación, incorporación, vida urbana y control de la ilegalidad | H99: 258 | I99: 100% de polígonos identificados de control y prevención, monitoreados en áreas susceptibles de ocupación ilegal | J99: 176 | K99: Monitorear el 100% de polígonos identificados de control y prevención, en áreas susceptibles de ocupación ilegal | L99: 98 | M99: Gestionar la presentación de 300 demandas de titulación predial | N99: 3-3-1-15-02-15-1581-00 | O99: San Cristóbal cumple y respeta las normas | P99: DEMANDAS DE TITULACIÓN | Q99: Suma | R99: 2 | S99: Gestionar la presentación de | T99: 300 | U99: demandas | V99: de titulación predial | W99: Gestionar la presentación de 300 demandas de titulación predial | X99: 4 | Y99: Inspección, vigilancia y control - IVC | Z99: Asesoría para legalización de barrios y titulación de predios | AA99: 96 | AB99: Sector Hábitat | AC99: 19 | AD99: Regulación legalización de predios y apoyo a la vivienda | AE99: 12 | AF99: Demandas de titulación predial presentadas | AG99: 34 | AH99: Política Distrital Integral de Vivienda y Hábitat | AI99: 3. Asentamientos humanos y mejoramiento integral de barrios y vivienda | AJ99: 0.003547990766 | AK99: 0 | AL99: 0 | AM99: 0 | AN99: 0 | AO99: 0 | AP99: 0 | AQ99: Bajo | AR99: Bajo | AS99: 0.6259780908 | AT99: 0 | AU99: 0 | AV99: 0.007366909867 | AW99: 0 | AX99: 0 | AY99: 0.6259780908 | AZ99: 0 | BA99: 0 | BC99: 2017_1 | BE99: 0 | BF99: 0 | BG99: 0 | BH99: 80 | BI99: 80 | BJ99: 0 | BK99: 0 | BL99: 0 | BM99: 0 | BN99: 0 | BO99: 0 | BP99: 0 | BQ99: 0 | BR99: 0 | BS99: 0 | BT99: 0 | BY99: 225000000 | BZ99: 225000000 | CA99: 0 | CB99: 0 | CC99: 0 | CD99: 0 | CE99: 0 | CF99: 0 | CG99: 0 | CH99: 0 | CI99: 0 | CJ99: 0 | CK99: 0 | CL99: 0 | CM99: 0 | CT99: Personas | CU99: 11 | CV99: Ciudades y comunidades sostenibles | CW99: 11.1 | CX99: De aquí a 2030, asegurar el acceso de todas las personas a viviendas y servicios básicos adecuados, seguros y asequibles y mejorar los barrios marginales | CY99: 0.004057332744 | DG99: Anexo 1 (85%)
A100: 99 | B100: 4 | C100: San Cristóbal | D100: 2 | E100: Pilar Democracia urbana | F100: 15 | G100: Recuperación, incorporación, vida urbana y control de la ilegalidad | H100: 258 | I100: 100% de polígonos identificados de control y prevención, monitoreados en áreas susceptibles de ocupación ilegal | J100: 176 | K100: Monitorear el 100% de polígonos identificados de control y prevención, en áreas susceptibles de ocupación ilegal | L100: 99 | M100: 1 estudio preliminar para la regularización urbanística (levantamientos topográficos y análisis) a asentamientos de origen informal previamente legalizados y priorizados en la localidad diagnosticados por la SDHT | N100: 3-3-1-15-02-15-1581-00 | O100: San Cristóbal cumple y respeta las normas | P100: ESTUDIOS DE REGULARIZACIÓN | Q100: Suma | R100: 1 | S100: Realizar | T100: 1 | U100: estudio | V100: preliminar para la regularización urbanística (levantamientos topográficos y análisis) a asentamientos de origen informal previamente legalizados y priorizados en la localidad diagnosticados por la SDHT | W100: Realizar 1 estudio preliminar para la regularización urbanística (levantamientos topográficos y análisis) a asentamientos de origen informal previamente legalizados y priorizados en la localidad diagnosticados por la SDHT | X100: 4 | Y100: Inspección, vigilancia y control - IVC | Z100: Asesoría para legalización de barrios y titulación de predios | AA100: 96 | AB100: Sector Hábitat | AC100: 19 | AD100: Regulación legalización de predios y apoyo a la vivienda | AE100: 13 | AF100: Estudios preliminares para la regularización urbanística (levantamiento topográficos y análisis de los mismos) a asentamientos de origen informal previamente legalizados y priorizados en los territorios diagnosticados por la SDHT | AG100: 34 | AH100: Política Distrital Integral de Vivienda y Hábitat | AI100: 3. Asentamientos humanos y mejoramiento integral de barrios y vivienda | AJ100: 0.002119924483 | AK100: 0 | AL100: 0 | AM100: 0 | AN100: 0 | AO100: 0 | AP100: 0 | AQ100: Bajo | AR100: Bajo | AS100: 0.3740219092 | AT100: 0 | AU100: 0 | AV100: 0.004401728645 | AW100: 0 | AX100: 0 | AY100: 0.3740219092 | AZ100: 0 | BA100: 0 | BC100: 2017_1 | BE100: 0 | BF100: 0 | BG100: 0 | BH100: 1 | BI100: 1 | BJ100: 0 | BK100: 0 | BL100: 0 | BM100: 0 | BN100: 0 | BO100: 0 | BP100: 0 | BQ100: 0 | BR100: 0 | BS100: 0 | BT100: 0 | BY100: 478000000 | BZ100: 478000000 | CA100: 0 | CB100: 0 | CC100: 0 | CD100: 0 | CE100: 0 | CF100: 0 | CG100: 0 | CH100: 0 | CI100: 0 | CJ100: 0 | CK100: 0 | CL100: 0 | CM100: 0 | CT100: Personas | CU100: 11 | CV100: Ciudades y comunidades sostenibles | CW100: 11.1 | CX100: De aquí a 2030, asegurar el acceso de todas las personas a viviendas y servicios básicos adecuados, seguros y asequibles y mejorar los barrios marginales | CY100: 0.008619578008 | DG100: Anexo 1 (85%)
A101: 100 | B101: 4 | C101: San Cristóbal | D101: 2 | E101: Pilar Democracia urbana | F101: 17 | G101: Espacio público, derecho de todos | H101: 296 | I101: Disminuir a 11,21% el porcentaje de personas que considera que las canchas y escenarios deportivos han empeorado | J101: 368 | K101: Construcción y/o mejoramiento de 64 parques en todas las escalas, en los que se construirán cuatro xtreme parks | L101: 100 | M101: Construir 8 parques vecinales y/o de bolsillo | N101: 3-3-1-15-02-17-1510-00 | O101: Parques de ensueño en San Cristóbal | P101: CONSTRUCCIÓN DE PARQUES | Q101: Suma | R101: 1 | S101: Construir | T101: 8 | U101: parques | V101: vecinales y/o de bolsillo | W101: Construir 8 parques vecinales y/o de bolsillo | X101: 2 | Y101: Parques | Z101: Construcción, mantenimiento y dotación de parques vecinales y/o de bolsillo | AA101: 93 | AB101: Sector Cultura, recreación y deporte | AC101: 17 | AD101: Parques y escenarios deportivos | AE101: 14 | AF101: Parques vecinales y/o de bolsillo construidos | AG101: 9 | AH101: Política Pública de Deporte, Recreación , Actividad Física y Parques para Bogotá 2009-2019, denominada “Bogotá mas activa”. | AI101: 5. Mejorar los parques, escenarios y entornos | AJ101: 0.01241796768 | AK101: 0 | AL101: 0 | AM101: 0 | AN101: 0 | AO101: 0 | AP101: 0 | AQ101: Bajo | AR101: Bajo | AS101: 0.13494171 | AT101: 0 | AU101: 0 | AV101: 0.02578418453 | AW101: 0 | AX101: 0 | AY101: 0.13494171 | AZ101: 0 | BA101: 0 | BC101: 2017_1 | BE101: 0 | BF101: 0 | BG101: 0 | BH101: 2 | BI101: 2 | BJ101: 0 | BK101: 0 | BL101: 0 | BM101: 0 | BN101: 0 | BO101: 0 | BP101: 0 | BQ101: 0 | BR101: 0 | BS101: 0 | BT101: 0 | BY101: 700000000 | BZ101: 700000000 | CA101: 0 | CB101: 0 | CC101: 0 | CD101: 0 | CE101: 0 | CF101: 0 | CG101: 0 | CH101: 0 | CI101: 0 | CJ101: 0 | CK101: 0 | CL101: 0 | CM101: 0 | CT101: Personas | CU101: 11 | CV101: Ciudades y comunidades sostenibles | CW101: 11.7 | CX101: De aquí a 2030, proporcionar acceso universal a zonas verdes y espacios públicos seguros, inclusivos y accesibles, en particular para las mujeres y los niños, las personas de edad y las personas con discapacidad | CY101: 0.01262281298 | DG101: Anexo 1 (85%)
A102: 101 | B102: 4 | C102: San Cristóbal | D102: 2 | E102: Pilar Democracia urbana | F102: 17 | G102: Espacio público, derecho de todos | H102: 296 | I102: Disminuir a 11,21% el porcentaje de personas que considera que las canchas y escenarios deportivos han empeorado | J102: 368 | K102: Construcción y/o mejoramiento de 64 parques en todas las escalas, en los que se construirán cuatro xtreme parks | L102: 101 | M102: Intervenir 65 parques vecinales y/o de bolsillo | N102: 3-3-1-15-02-17-1510-00 | O102: Parques de ensueño en San Cristóbal | P102: INTERVENCIÓN DE PARQUES | Q102: Suma | R102: 2 | S102: Intervenir | T102: 65 | U102: parques | V102: vecinales y/o de bolsillo | W102: Intervenir 65 parques vecinales y/o de bolsillo | X102: 2 | Y102: Parques | Z102: Construcción, mantenimiento y dotación de parques vecinales y/o de bolsillo | AA102: 93 | AB102: Sector Cultura, recreación y deporte | AC102: 17 | AD102: Parques y escenarios deportivos | AE102: 15 | AF102: Parques vecinales y/o de bolsillo intervenidos | AG102: 9 | AH102: Política Pública de Deporte, Recreación , Actividad Física y Parques para Bogotá 2009-2019, denominada “Bogotá mas activa”. | AI102: 5. Mejorar los parques, escenarios y entornos | AJ102: 0.07960671232 | AK102: 0 | AL102: 0 | AM102: 0 | AN102: 0 | AO102: 0 | AP102: 0 | AQ102: Bajo | AR102: Bajo | AS102: 0.86505829 | AT102: 0 | AU102: 0 | AV102: 0.1652922775 | AW102: 0 | AX102: 0 | AY102: 0.86505829 | AZ102: 0 | BA102: 0 | BB102: 65 | BC102: 2017_1 | BE102: 0 | BF102: 0 | BG102: 0 | BH102: 16 | BI102: 16 | BJ102: 0 | BK102: 0 | BL102: 0 | BM102: 0 | BN102: 0 | BO102: 0 | BP102: 0 | BQ102: 0 | BR102: 0 | BS102: 0 | BT102: 0 | BY102: 4845515000 | BZ102: 4845515000 | CA102: 0 | CB102: 0 | CC102: 0 | CD102: 0 | CE102: 0 | CF102: 0 | CG102: 0 | CH102: 0 | CI102: 0 | CJ102: 0 | CK102: 0 | CL102: 0 | CM102: 0 | CT102: Personas | CU102: 11 | CV102: Ciudades y comunidades sostenibles | CW102: 11.7 | CX102: De aquí a 2030, proporcionar acceso universal a zonas verdes y espacios públicos seguros, inclusivos y accesibles, en particular para las mujeres y los niños, las personas de edad y las personas con discapacidad | CY102: 0.08737718521 | DG102: Anexo 1 (85%)
A103: 102 | B103: 4 | C103: San Cristóbal | D103: 2 | E103: Pilar Democracia urbana | F103: 18 | G103: Mejor movilidad para todos | H103: 300 | I103: Alcanzar 50% de malla vial en buen estado | J103: 225 | K103: Construir 30 km de nueva malla vial | L103: 102 | M103: Construir 5,5 Km/carril de malla vial local | N103: 3-3-1-15-02-18-1557-00 | O103: Mejores vías y espacio publico para todos en San Cristóbal | P103: CONSTRUCCIÓN MALLA VIAL LOCAL | Q103: Suma | R103: 1 | S103: Construir | T103: 5.5 | U103: Km/carril | V103: de malla vial loca | W103: Construir 5,5 Km/carril de malla vial loca | X103: 1 | Y103: Malla vial, espacio público y peatonal | Z103: Construcción y/o mantenimiento de malla vial, espacio público y peatonal, y puentes peatonales y/o vehiculares sobre cuerpos de agua (de escala local: urbana y/o rural) | AA103: 95 | AB103: Sector Movilidad | AC103: 22 | AD103: Vías Locales | AE103: 17 | AF103: Km/carril de malla vial local construido | AJ103: 0.05543735572 | AK103: 0 | AL103: 0 | AM103: 0 | AN103: 0 | AO103: 0 | AP103: 0 | AQ103: Bajo | AR103: Bajo | AS103: 0.1443984936 | AT103: 0 | AU103: 0 | AV103: 0.1151079667 | AW103: 0 | AX103: 0 | AY103: 0.1443984936 | AZ103: 0 | BA103: 0 | BC103: 2017_1 | BE103: 0 | BF103: 0 | BG103: 0 | BH103: 0.5 | BI103: 0.5 | BJ103: 0 | BK103: 0 | BL103: 0 | BM103: 0 | BN103: 0 | BO103: 0 | BP103: 0 | BQ103: 0 | BR103: 0 | BS103: 0 | BT103: 0 | BY103: 3500000000 | BZ103: 3500000000 | CA103: 0 | CB103: 0 | CC103: 0 | CD103: 0 | CE103: 0 | CF103: 0 | CG103: 0 | CH103: 0 | CI103: 0 | CJ103: 0 | CK103: 0 | CL103: 0 | CM103: 0 | CT103: Personas | CU103: 9 | CV103: Industria, innovación e infraestructura | CW103: 9.1 | CX103: Desarrollar infraestructuras fiables, sostenibles, resilientes y de calidad, incluidas infraestructuras regionales y transfronterizas, para apoyar el desarrollo económico y el bienestar humano, haciendo especial hincapié en el acceso asequible y equitativo para todos | CY103: 0.06311406491 | DG103: Anexo 1 (85%)
A104: 103 | B104: 4 | C104: San Cristóbal | D104: 2 | E104: Pilar Democracia urbana | F104: 18 | G104: Mejor movilidad para todos | H104: 300 | I104: Alcanzar 50% de malla vial en buen estado | J104: 229-226 | K104: Conservar y rehabilitar 1,083 km carril de la infraestructura vial local (por donde no circulan rutas de Transmilenio zonal)/ Conservar 750 km carril de malla vial arterial, troncal e intermedia y local (por donde circulan las rutas de Transmilenio troncal y zonal) circulan rutas de Transmilenio zonal) | L104: 103 | M104: Mantener 45 Km/carril de malla vial local | N104: 3-3-1-15-02-18-1557-00 | O104: Mejores vías y espacio publico para todos en San Cristóbal | P104: MANTENIMIENTO MALLA VIAL LOCAL | Q104: Suma | R104: 2 | S104: Mantener | T104: 45 | U104: Km/carril | V104: de malla vial loca | W104: Mantener 45 Km/carril de malla vial loca | X104: 1 | Y104: Malla vial, espacio público y peatonal | Z104: Construcción y/o mantenimiento de malla vial, espacio público y peatonal, y puentes peatonales y/o vehiculares sobre cuerpos de agua (de escala local: urbana y/o rural) | AA104: 95 | AB104: Sector Movilidad | AC104: 22 | AD104: Vías Locales | AE104: 18 | AF104: Km/carril de malla vial local mantenido | AJ104: 0.2217494229 | AK104: 0 | AL104: 0 | AM104: 0 | AN104: 0 | AO104: 0 | AP104: 0 | AQ104: Bajo | AR104: Bajo | AS104: 0.5775939745 | AT104: 0 | AU104: 0 | AV104: 0.4604318667 | AW104: 0 | AX104: 0 | AY104: 0.5775939745 | AZ104: 0 | BA104: 0 | BB104: 31 | BC104: 2017_1 | BE104: 0 | BF104: 0 | BG104: 0 | BH104: 11 | BI104: 11 | BJ104: 0 | BK104: 0 | BL104: 0 | BM104: 0 | BN104: 0 | BO104: 0 | BP104: 0 | BQ104: 0 | BR104: 0 | BS104: 0 | BT104: 0 | BY104: 12500000000 | BZ104: 12500000000 | CA104: 0 | CB104: 0 | CC104: 0 | CD104: 0 | CE104: 0 | CF104: 0 | CG104: 0 | CH104: 0 | CI104: 0 | CJ104: 0 | CK104: 0 | CL104: 0 | CM104: 0 | CT104: Personas | CU104: 9 | CV104: Industria, innovación e infraestructura | CW104: 9.1 | CX104: Desarrollar infraestructuras fiables, sostenibles, resilientes y de calidad, incluidas infraestructuras regionales y transfronterizas, para apoyar el desarrollo económico y el bienestar humano, haciendo especial hincapié en el acceso asequible y equitativo para todos | CY104: 0.2254073747 | DG104: Anexo 1 (85%)
A105: 104 | B105: 4 | C105: San Cristóbal | D105: 2 | E105: Pilar Democracia urbana | F105: 18 | G105: Mejor movilidad para todos | H105: 313 | I105: Llevar a 20% la satisfacción con el viaje a pie | L105: 104 | M105: Construir 24.000 m2 de espacio público local | N105: 3-3-1-15-02-18-1557-00 | O105: Mejores vías y espacio publico para todos en San Cristóbal | P105: CONSTRUCCIÓN ESPACIO PÚBLICO | Q105: Suma | R105: 3 | S105: Construir | T105: 24000 | U105: m2 | V105: de espacio público local | W105: Construir 24000 m2 de espacio público local | X105: 1 | Y105: Malla vial, espacio público y peatonal | Z105: Construcción y/o mantenimiento de malla vial, espacio público y peatonal, y puentes peatonales y/o vehiculares sobre cuerpos de agua (de escala local: urbana y/o rural) | AA105: 95 | AB105: Sector Movilidad | AC105: 23 | AD105: Espacio Público | AE105: 20 | AF105: m2 de espacio público construidos | AJ105: 0.09892685254 | AK105: 0 | AL105: 0 | AM105: 0 | AN105: 0 | AO105: 0 | AP105: 0 | AQ105: Bajo | AR105: Bajo | AS105: 0.2576762239 | AT105: 0 | AU105: 0 | AV105: 0.2054078644 | AW105: 0 | AX105: 0 | AY105: 0.2576762239 | AZ105: 0 | BA105: 0 | BB105: 11447 | BC105: 2017_1 | BE105: 0 | BF105: 0 | BG105: 0 | BH105: 6000 | BI105: 6000 | BJ105: 0 | BK105: 0 | BL105: 0 | BM105: 0 | BN105: 0 | BO105: 0 | BP105: 0 | BQ105: 0 | BR105: 0 | BS105: 0 | BT105: 0 | BY105: 5742060000 | BZ105: 5742060000 | CA105: 0 | CB105: 0 | CC105: 0 | CD105: 0 | CE105: 0 | CF105: 0 | CG105: 0 | CH105: 0 | CI105: 0 | CJ105: 0 | CK105: 0 | CL105: 0 | CM105: 0 | CT105: Personas | CU105: 9 | CV105: Industria, innovación e infraestructura | CW105: 9.1 | CX105: Desarrollar infraestructuras fiables, sostenibles, resilientes y de calidad, incluidas infraestructuras regionales y transfronterizas, para apoyar el desarrollo económico y el bienestar humano, haciendo especial hincapié en el acceso asequible y equitativo para todos | CY105: 0.1035442136 | DG105: Anexo 1 (85%)
A106: 105 | B106: 4 | C106: San Cristóbal | D106: 2 | E106: Pilar Democracia urbana | F106: 18 | G106: Mejor movilidad para todos | H106: 313 | I106: Llevar a 20% la satisfacción con el viaje a pie | L106: 105 | M106: Intervenir 16 puentes vehiculares y/o peatonales de escala local sobre cuerpo de agua | N106: 3-3-1-15-02-18-1557-00 | O106: Mejores vías y espacio publico para todos en San Cristóbal | P106: INTERVENCIÓN PUENTES | Q106: Suma | R106: 4 | S106: Intervenir | T106: 16 | U106: puentes | V106: vehiculares y/o peatonales de escala local sobre cuerpos de agua | W106: Intervenir 16 puentes vehiculares y/o peatonales de escala local sobre cuerpos de agua | X106: 1 | Y106: Malla vial, espacio público y peatonal | Z106: Construcción y/o mantenimiento de malla vial, espacio público y peatonal, y puentes peatonales y/o vehiculares sobre cuerpos de agua (de escala local: urbana y/o rural) | AA106: 95 | AB106: Sector Movilidad | AC106: 23 | AD106: Espacio Público | AE106: 22 | AF106: Puentes vehiculares y/o peatonales, de escala local sobre cuerpos de agua intervenidos | AJ106: 0.007805579686 | AK106: 0 | AL106: 0 | AM106: 0 | AN106: 0 | AO106: 0 | AP106: 0 | AQ106: Bajo | AR106: Bajo | AS106: 0.0203313079 | AT106: 0 | AU106: 0 | AV106: 0.01620720171 | AW106: 0 | AX106: 0 | AY106: 0.0203313079 | AZ106: 0 | BA106: 0 | BC106: 2017_1 | BE106: 0 | BF106: 0 | BG106: 0 | BH106: 4 | BI106: 4 | BJ106: 0 | BK106: 0 | BL106: 0 | BM106: 0 | BN106: 0 | BO106: 0 | BP106: 0 | BQ106: 0 | BR106: 0 | BS106: 0 | BT106: 0 | BY106: 440000000 | BZ106: 440000000 | CA106: 0 | CB106: 0 | CC106: 0 | CD106: 0 | CE106: 0 | CF106: 0 | CG106: 0 | CH106: 0 | CI106: 0 | CJ106: 0 | CK106: 0 | CL106: 0 | CM106: 0 | CT106: Personas | CU106: 9 | CV106: Industria, innovación e infraestructura | CW106: 9.1 | CX106: Desarrollar infraestructuras fiables, sostenibles, resilientes y de calidad, incluidas infraestructuras regionales y transfronterizas, para apoyar el desarrollo económico y el bienestar humano, haciendo especial hincapié en el acceso asequible y equitativo para todos | CY106: 0.007934339589 | DG106: Anexo 1 (85%)
A107: 106 | B107: 4 | C107: San Cristóbal | D107: 3 | E107: Pilar Construcción de comunidad y cultura ciudadana | F107: 19 | G107: Seguridad y convivencia para todos | H107: 363 | I107: Aumentar en 17 puntos porcentuales las personas que consideran que el barrio en el que habitan es seguro | L107: 106 | M107: Realizar 4 dotaciones para seguridad | N107: 3-3-1-15-03-19-1555-00 | O107: Mejor seguridad y convivencia para todos | P107: DOTACIÓN | Q107: Suma | R107: 1 | S107: Realizar | T107: 4 | U107: dotaciones | V107: para seguridad | W107: Realizar 4 dotaciones para seguridad | X107: 3 | Y107: Seguridad y convivencia | Z107: Dotación con recursos tecnológicos para la seguridad | AA107: 102 | AB107: Sector Seguridad, Convivencia y Justicia | AC107: 31 | AD107: Infraestructura y dotaciones para seguridad | AE107: 23 | AF107: Dotaciones para seguridad realizadas | AG107: 31 | AH107: Política Pública Distrital de Convivencia y Seguridad Ciudadana | AJ107: 0.03220866018 | AK107: 0 | AL107: 0 | AM107: 0 | AN107: 0 | AO107: 0 | AP107: 0 | AQ107: Bajo | AR107: Bajo | AS107: 0.6999998072 | AT107: 0 | AU107: 0 | AV107: 0.6999998072 | AW107: 0 | AX107: 0 | AY107: 0.6999998072 | AZ107: 0 | BA107: 0 | BC107: 2017_1 | BE107: 0 | BF107: 0 | BG107: 0 | BH107: 1 | BI107: 1 | BJ107: 0 | BK107: 0 | BL107: 0 | BM107: 0 | BN107: 0 | BO107: 0 | BP107: 0 | BQ107: 0 | BR107: 0 | BS107: 0 | BT107: 0 | BY107: 1940930000 | BZ107: 1940930000 | CA107: 0 | CB107: 0 | CC107: 0 | CD107: 0 | CE107: 0 | CF107: 0 | CG107: 0 | CH107: 0 | CI107: 0 | CJ107: 0 | CK107: 0 | CL107: 0 | CM107: 0 | CT107: Alianza y justicia | CU107: 16 | CV107: Paz, justicia e instituciones sólidas | CW107: 16.1 | CX107: Garantizar el acceso público a la información y proteger las libertades fundamentales, de conformidad con las leyes nacionales y los acuerdos internacionales | CY107: 0.03499999486 | DG107: Anexo 1 (85%)
A108: 107 | B108: 4 | C108: San Cristóbal | D108: 3 | E108: Pilar Construcción de comunidad y cultura ciudadana | F108: 19 | G108: Seguridad y convivencia para todos | H108: 363 | I108: Aumentar en 17 puntos porcentuales las personas que consideran que el barrio en el que habitan es seguro | L108: 107 | M108: Vincular a 2000 personas a ejercicios de convivencia ciudadana | N108: 3-3-1-15-03-19-1555-00 | O108: Mejor seguridad y convivencia para todos | P108: CONVIVENCIA CIUDADANA | Q108: Suma | R108: 2 | S108: Vincular | T108: 2000 | U108: personas | V108: a ejercicios de convivencia ciudadana | W108: Vincular 2000 personas a ejercicios de convivencia ciudadana | X108: 3 | Y108: Seguridad y convivencia | Z108: Promoción de la convivencia ciudadana | AA108: 102 | AB108: Sector Seguridad, Convivencia y Justicia | AC108: 11 | AD108: Prevención, atención y gestión del conflicto en la localidad | AE108: 24 | AF108: Personas vinculadas a ejercicios de convivencia ciudadana | AG108: 31 | AH108: Política Pública Distrital de Convivencia y Seguridad Ciudadana | AJ108: 0.01380372418 | AK108: 500 | AL108: 0.25 | AM108: 0.003450931044 | AN108: 0 | AO108: 0 | AP108: 0 | AQ108: Bajo | AR108: Bajo | AS108: 0.3000001928 | AT108: 0.07500004819 | AU108: 0 | AV108: 0.3000001928 | AW108: 0.07500004819 | AX108: 0 | AY108: 0.3000001928 | AZ108: 0.07500004819 | BA108: 0 | BC108: 2017_1 | BE108: 0 | BF108: 0 | BG108: 0 | BH108: 500 | BI108: 500 | BJ108: 0 | BK108: 0 | BL108: 0 | BM108: 500 | BN108: 0 | BO108: 0 | BP108: 0 | BQ108: 0 | BR108: 0 | BS108: 0 | BT108: 0 | BY108: 831827000 | BZ108: 831827000 | CA108: 0 | CB108: 0 | CC108: 0 | CD108: 269052810 | CE108: 0 | CF108: 0 | CG108: 0 | CH108: 269052810 | CI108: 0 | CJ108: 0 | CK108: 0 | CL108: 0 | CM108: 0 | CT108: Alianza y justicia | CU108: 16 | CV108: Paz, justicia e instituciones sólidas | CW108: 16.1 | CX108: Garantizar el acceso público a la información y proteger las libertades fundamentales, de conformidad con las leyes nacionales y los acuerdos internacionales | CY108: 0.01499999522 | DG108: Anexo 1 (85%)
A109: 108 | B109: 4 | C109: San Cristóbal | D109: 6 | E109: Eje transversal Sostenibilidad ambiental basada en la eficiencia energética | F109: 38 | G109: Recuperación y manejo de la Estructura Ecológica Principal | H109: 597 | I109: Aumentar en valor real de la cobertura verde en el espacio público urbano de Bogotá D.C. (arbolado 7%, zonas verdes en 0,2% y jardinería en 20%) garantizando el mantenimiento de lo generado y lo existente. | J109: 453 | K109: Plantar 86.000 los árboles y arbustos en el espacio Público urbano | L109: 108 | M109: Sembrar o intervenir 2.800 árboles | N109: 3-3-1-15-06-38-1534-00 | O109: San Cristóbal ambientalmente sostenible | P109: ARBORIZACIÓN | Q109: Suma | R109: 1 | S109: Sembrar | T109: 2800 | U109: árboles | V109: nativos para mejorar las condiciones ambientales de la localidad | W109: Sembrar 2800 árboles nativos para mejorar las condiciones ambientales de la localidad | X109: 12 | Y109: Protección y recuperación de los recursos ambientales | Z109: Intervención física en renaturalización, ecourbanismo, arborización, coberturas vegetales, muros verdes, paisajismo y jardinería | AA109: 94 | AB109: Sector Ambiente | AC109: 26 | AD109: Plantación y mantenimiento de arboles, jardines y especies vegetales | AE109: 27 | AF109: Arboles sembrados o intervenidos | AG109: 2 | AH109: Política para la Gestión de la Conservación de la Biodiversidad en el Distrito Capital | AI109: 3. Restauración de los ecosistemas degradados en el territorio. | AJ109: 0.00310449192 | AK109: 0 | AL109: 0 | AM109: 0 | AN109: 0 | AO109: 0 | AP109: 0 | AQ109: Bajo | AR109: Bajo | AS109: 0.1428571429 | AT109: 0 | AU109: 0 | AV109: 0.1428571429 | AW109: 0 | AX109: 0 | AY109: 0.1428571429 | AZ109: 0 | BA109: 0 | BB109: 3069 | BC109: 2017_1 | BE109: 0 | BF109: 0 | BG109: 0 | BH109: 700 | BI109: 700 | BJ109: 0 | BK109: 0 | BL109: 0 | BM109: 0 | BN109: 0 | BO109: 0 | BP109: 0 | BQ109: 0 | BR109: 0 | BS109: 0 | BT109: 0 | BY109: 175000000 | BZ109: 175000000 | CA109: 0 | CB109: 0 | CC109: 0 | CD109: 0 | CE109: 0 | CF109: 0 | CG109: 0 | CH109: 0 | CI109: 0 | CJ109: 0 | CK109: 0 | CL109: 0 | CM109: 0 | CT109: Planeta | CU109: 11 | CV109: Ciudades y comunidades sostenibles | CW109: 11.7 | CX109: De aquí a 2030, proporcionar acceso universal a zonas verdes y espacios públicos seguros, inclusivos y accesibles, en particular para las mujeres y los niños, las personas de edad y las personas con discapacidad | CY109: 0.003155703246 | DG109: Anexo 2 (15%)
A110: 109 | B110: 4 | C110: San Cristóbal | D110: 6 | E110: Eje transversal Sostenibilidad ambiental basada en la eficiencia energética | F110: 38 | G110: Recuperación y manejo de la Estructura Ecológica Principal | H110: 554 | I110: Restaurar 200 hectáreas nuevas en Cerros Orientales, ríos y quebradas y/o zonas de riesgo no mitigable que aportan a la conectividad ecológica de la región | J110: 439 | K110: Aplicar acciones del protocolo de restauración ecológica (diagnóstico, diseño, implementación y mantenimiento) del Distrito en 200 has | L110: 109 | M110: Intervenir 12 Ha de espacio público con acciones de renaturalización y/o ecourbanismo | N110: 3-3-1-15-06-38-1534-00 | O110: San Cristóbal ambientalmente sostenible | P110: RESTAURACIÓN ECOLÓGICA | Q110: Suma | R110: 2 | S110: Intervenir | T110: 12 | U110: has | V110: de espacio público con acciones de renaturalización y/o ecourbanismo | W110: Intervenir 12 has de espacio público con acciones de renaturalización y/o ecourbanismo | X110: 12 | Y110: Protección y recuperación de los recursos ambientales | Z110: Intervención física en renaturalización, ecourbanismo, arborización, coberturas vegetales, muros verdes, paisajismo y jardinería | AA110: 94 | AB110: Sector Ambiente | AC110: 20 | AD110: Calidad ambiental y preservación del patrimonio natural | AE110: 28 | AF110: Hectáreas de espacio público intervenidas con acciones de renaturalización y/o ecourbanismo | AG110: 2 | AH110: Política para la Gestión de la Conservación de la Biodiversidad en el Distrito Capital | AI110: 3. Restauración de los ecosistemas degradados en el territorio. | AJ110: 0.009756974607 | AK110: 0 | AL110: 0 | AM110: 0 | AN110: 0 | AO110: 0 | AP110: 0 | AQ110: Bajo | AR110: Bajo | AS110: 0.4489795918 | AT110: 0 | AU110: 0 | AV110: 0.4489795918 | AW110: 0 | AX110: 0 | AY110: 0.4489795918 | AZ110: 0 | BA110: 0 | BB110: 2 | BC110: 2017_1 | BE110: 0 | BF110: 0 | BG110: 0 | BH110: 3 | BI110: 3 | BJ110: 0 | BK110: 0 | BL110: 0 | BM110: 0 | BN110: 0 | BO110: 0 | BP110: 0 | BQ110: 0 | BR110: 0 | BS110: 0 | BT110: 0 | BY110: 700000000 | BZ110: 700000000 | CA110: 0 | CB110: 0 | CC110: 0 | CD110: 0 | CE110: 0 | CF110: 0 | CG110: 0 | CH110: 0 | CI110: 0 | CJ110: 0 | CK110: 0 | CL110: 0 | CM110: 0 | CT110: Planeta | CU110: 15 | CV110: Vida de ecosistemas terrestres | CW110: 15.1 | CX110: De aquí a 2020, asegurar la conservación, el restablecimiento y el uso sostenible de los ecosistemas terrestres y los ecosistemas interiores de agua dulce y sus servicios, en particular los bosques, los humedales, las montañas y las zonas áridas, en consonancia con las obligaciones contraídas en virtud de acuerdos internacionales | CY110: 0.01262281298 | DG110: Anexo 2 (15%)
A111: 110 | B111: 4 | C111: San Cristóbal | D111: 6 | E111: Eje transversal Sostenibilidad ambiental basada en la eficiencia energética | F111: 38 | G111: Recuperación y manejo de la Estructura Ecológica Principal | H111: 597 | I111: Aumentar en valor real de la cobertura verde en el espacio público urbano de Bogotá D.C. (arbolado 7%, zonas verdes en 0,2% y jardinería en 20%) garantizando el mantenimiento de lo generado y lo existente. | J111: 454 | K111: Incrementar las zonas verdes de jardinería en 18.000 metros cuadrados nuevos | L111: 110 | M111: Intervenir 4.000 m2 de espacio público con acciones de jardinería, muros verdes y/o paisajismo | N111: 3-3-1-15-06-38-1534-00 | O111: San Cristóbal ambientalmente sostenible | P111: COBERTURAS VERDES | Q111: Suma | R111: 3 | S111: Intervenir | T111: 4000 | U111: m2 | V111: de espacio público con acciones de jardinera, muros verdes y/o paisajismo | W111: Intervenir 4000 m2 de espacio público con acciones de jardinera, muros verdes y/o paisajismo | X111: 12 | Y111: Protección y recuperación de los recursos ambientales | Z111: Intervención física en renaturalización, ecourbanismo, arborización, coberturas vegetales, muros verdes, paisajismo y jardinería | AA111: 94 | AB111: Sector Ambiente | AC111: 20 | AD111: Calidad ambiental y preservación del patrimonio natural | AE111: 29 | AF111: m2 de espacio público intervenidos con acciones de jardinería, muros verdes y/o paisajismo | AG111: 2 | AH111: Política para la Gestión de la Conservación de la Biodiversidad en el Distrito Capital | AI111: 3. Restauración de los ecosistemas degradados en el territorio. | AJ111: 0.008869976915 | AK111: 0 | AL111: 0 | AM111: 0 | AN111: 0 | AO111: 0 | AP111: 0 | AQ111: Bajo | AR111: Bajo | AS111: 0.4081632653 | AT111: 0 | AU111: 0 | AV111: 0.4081632653 | AW111: 0 | AX111: 0 | AY111: 0.4081632653 | AZ111: 0 | BA111: 0 | BC111: 2017_1 | BE111: 0 | BF111: 0 | BG111: 0 | BH111: 1000 | BI111: 1000 | BJ111: 0 | BK111: 0 | BL111: 0 | BM111: 0 | BN111: 0 | BO111: 0 | BP111: 0 | BQ111: 0 | BR111: 0 | BS111: 0 | BT111: 0 | BY111: 500000000 | BZ111: 500000000 | CA111: 0 | CB111: 0 | CC111: 0 | CD111: 0 | CE111: 0 | CF111: 0 | CG111: 0 | CH111: 0 | CI111: 0 | CJ111: 0 | CK111: 0 | CL111: 0 | CM111: 0 | CT111: Planeta | CU111: 11 | CV111: Ciudades y comunidades sostenibles | CW111: 11.7 | CX111: De aquí a 2030, proporcionar acceso universal a zonas verdes y espacios públicos seguros, inclusivos y accesibles, en particular para las mujeres y los niños, las personas de edad y las personas con discapacidad | CY111: 0.009016294988 | DG111: Anexo 2 (15%)
A112: 111 | B112: 4 | C112: San Cristóbal | D112: 7 | E112: Eje transversal Gobierno legítimo, fortalecimiento local y eficiencia | F112: 45 | G112: Gobernanza e influencia local, regional e internacional | J112: 158 | K112: Implementar en un 100% en las Alcaldías Locales un nuevo modelo de gestión | L112: 111 | M112: Cubrir a los 11 ediles con pago de honorarios | N112: 3-3-1-15-07-45-1531-00 | O112: Acciones de desarrollo y fortalecimiento institucional | P112: HONORARIOS A EDILES | Q112: Constante | R112: 1 | S112: Cubrir a | T112: 11 | U112: ediles | V112: con pago de honorarios | W112: Cubrir a 11 ediles con pago de honorarios | X112: 6 | Y112: Gestión pública local | Z112: Fortalecimiento institucional y pago de honorarios de ediles | AA112: 98 | AB112: Sector Gobierno | AC112: 29 | AD112: Fortalecimiento institucional | AE112: 32 | AF112: Ediles con pago de honorarios cubierto | AG112: 37 | AH112: Política Pública de transparencia, integridad y no tolerancia con la corrupción en Bogotá | AJ112: 0.01522531538 | AK112: 2.75 | AL112: 0.25 | AM112: 0.003806328844 | AN112: 2.75 | AO112: 0.25 | AP112: 0.003806328844 | AQ112: Bajo | AR112: Bajo | AS112: 0.05981204071 | AT112: 0.01495301018 | AU112: 0.01495301018 | AV112: 0.05981204071 | AW112: 0.01495301018 | AX112: 0.01495301018 | AY112: 0.1236156701 | AZ112: 0.03090391753 | BA112: 0.03090391753 | BB112: 11 | BC112: 2017_1 | BE112: 0 | BF112: 0 | BG112: 0 | BH112: 11 | BI112: 11 | BJ112: 0 | BK112: 0 | BL112: 0 | BM112: 11 | BN112: 0 | BO112: 0 | BP112: 0 | BQ112: 11 | BR112: 0 | BS112: 0 | BT112: 0 | BY112: 797000000 | BZ112: 797000000 | CA112: 0 | CB112: 0 | CC112: 0 | CD112: 213233948 | CE112: 0 | CF112: 0 | CG112: 0 | CH112: 213233948 | CI112: 213233948 | CJ112: 213233948 | CK112: 0 | CL112: 0 | CM112: 0 | CT112: Alianza y justicia | CU112: 16 | CV112: Paz, justicia e instituciones sólidas | CW112: 16.1 | CX112: Garantizar el acceso público a la información y proteger las libertades fundamentales, de conformidad con las leyes nacionales y los acuerdos internacionales | CY112: 0.01437197421 | DG112: Anexo 1 (85%)
A113: 112 | B113: 4 | C113: San Cristóbal | D113: 7 | E113: Eje transversal Gobierno legítimo, fortalecimiento local y eficiencia | F113: 45 | G113: Gobernanza e influencia local, regional e internacional | J113: 158 | K113: Implementar en un 100% en las Alcaldías Locales un nuevo modelo de gestión | L113: 112 | M113: Realizar 1 estrategia de fortalecimiento institucional | N113: 3-3-1-15-07-45-1531-00 | O113: Acciones de desarrollo y fortalecimiento institucional | P113: FORTALECIMIENTO LOCAL | Q113: Constante | R113: 2 | S113: Implementar | T113: 1 | U113: estrategia | V113: contratacion de servicios profesionales, y la adquisicion de bienes y servicios para garantizar la gobernabilidad local | W113: Implementar 1 estrategia contratacion de servicios profesionales, y la adquisicion de bienes y servicios para garantizar la gobernabilidad local | X113: 6 | Y113: Gestión pública local | Z113: Fortalecimiento institucional y pago de honorarios de ediles | AA113: 98 | AB113: Sector Gobierno | AC113: 29 | AD113: Fortalecimiento institucional | AE113: 33 | AF113: Estrategias de fortalecimiento institucional realizadas | AG113: 37 | AH113: Política Pública de transparencia, integridad y no tolerancia con la corrupción en Bogotá | AJ113: 0.07679936463 | AK113: 0.25 | AL113: 0.25 | AM113: 0.01919984116 | AN113: 0.25 | AO113: 0.25 | AP113: 0.01919984116 | AQ113: Bajo | AR113: Bajo | AS113: 0.3017032232 | AT113: 0.0754258058 | AU113: 0.0754258058 | AV113: 0.3017032232 | AW113: 0.0754258058 | AX113: 0.0754258058 | AY113: 0.6235407734 | AZ113: 0.1558851933 | BA113: 0.1558851933 | BB113: 1 | BC113: 2017_1 | BE113: 0 | BF113: 0 | BG113: 0 | BH113: 1 | BI113: 1 | BJ113: 0 | BK113: 0 | BL113: 0 | BM113: 1 | BN113: 0 | BO113: 0 | BP113: 0 | BQ113: 1 | BR113: 0 | BS113: 0 | BT113: 0 | BY113: 4748515000 | BZ113: 4748515000 | CA113: 0 | CB113: 0 | CC113: 0 | CD113: 2564270302 | CE113: 0 | CF113: 0 | CG113: 0 | CH113: 2564270302 | CI113: 0 | CJ113: 0 | CK113: 0 | CL113: 0 | CM113: 0 | CT113: Alianza y justicia | CU113: 16 | CV113: Paz, justicia e instituciones sólidas | CW113: 16.1 | CX113: Garantizar el acceso público a la información y proteger las libertades fundamentales, de conformidad con las leyes nacionales y los acuerdos internacionales | CY113: 0.08562802399 | DG113: Anexo 1 (85%)
A114: 113 | B114: 4 | C114: San Cristóbal | D114: 7 | E114: Eje transversal Gobierno legítimo, fortalecimiento local y eficiencia | F114: 45 | G114: Gobernanza e influencia local, regional e internacional | J114: 160 | K114: Disminuir el número de actuaciones administrativas activas y las represadas a 21.513 | L114: 113 | M114: Realizar 4 acciones de inspección, vigilancia y control | N114: 3-3-1-15-07-45-1531-00 | O114: Acciones de desarrollo y fortalecimiento institucional | P114: IVC | Q114: Suma | R114: 3 | S114: Realizar | T114: 4 | U114: acciones | V114: de inspección, vigilancia y control | W114: Realizar 4 acciones de inspección, vigilancia y control | X114: 4 | Y114: Inspección, vigilancia y control - IVC | Z114: Acciones de fortalecimiento para la inspección, vigilancia y control – IVC | AA114: 98 | AB114: Sector Gobierno | AC114: 32 | AD114: Inspección, vigilancia y control (IVC) | AE114: 34 | AF114: Acciones de inspección, vigilancia y control realizadas | AG114: 31 | AH114: Política Pública Distrital de Convivencia y Seguridad Ciudadana | AJ114: 0.03114186805 | AK114: 1 | AL114: 0.25 | AM114: 0.007785467013 | AN114: 1 | AO114: 0.25 | AP114: 0.007785467013 | AQ114: Bajo | AR114: Bajo | AS114: 0.1223395794 | AT114: 0.03058489486 | AU114: 0.03058489486 | AV114: 0.1223395794 | AW114: 0.03058489486 | AX114: 0.03058489486 | AY114: 0.2528435565 | AZ114: 0.06321088913 | BA114: 0.06321088913 | BB114: 3 | BC114: 2017_1 | BE114: 0 | BF114: 0 | BG114: 0 | BH114: 1 | BI114: 1 | BJ114: 0 | BK114: 0 | BL114: 0 | BM114: 1 | BN114: 0 | BO114: 0 | BP114: 0 | BQ114: 1 | BR114: 0 | BS114: 0 | BT114: 0 | BY114: 1515206000 | BZ114: 1515206000 | CA114: 0 | CB114: 0 | CC114: 0 | CD114: 747790000 | CE114: 0 | CF114: 0 | CG114: 0 | CH114: 747790000 | CI114: 150200 | CJ114: 150200 | CK114: 0 | CL114: 0 | CM114: 0 | CT114: Alianza y justicia | CU114: 16 | CV114: Paz, justicia e instituciones sólidas | CW114: 16.1 | CX114: Garantizar el acceso público a la información y proteger las libertades fundamentales, de conformidad con las leyes nacionales y los acuerdos internacionales | CY114: 0.02732308853 | DG114: Anexo 1 (85%)
A115: 114 | B115: 4 | C115: San Cristóbal | D115: 7 | E115: Eje transversal Gobierno legítimo, fortalecimiento local y eficiencia | F115: 45 | G115: Gobernanza e influencia local, regional e internacional | H115: 824-832 | I115: Llegar a un 50% de organizaciones comunales de primer grado fortalecidas en su capacidad institucional/ Fortalecer 20 organizaciones comunales de segundo grado en su capacidad institucional | L115: 114 | M115: Fotalecer 100 organizaciones, instacionas y expresiones sociales ciudadanas para la participación | N115: 3-3-1-15-07-45-1578-00 | O115: Participación para el bien común en San Cristóbal | P115: FORTALECIMIENTO PARA LA PARTICIPACIÓN | Q115: Suma | R115: 1 | S115: Fortalecer | T115: 100 | U115: organizaciones, instancias y expresiones sociales | V115: ciudadanas para la participación | W115: Fortalecer 100 organizaciones, instancias y expresiones sociales ciudadanas para la participación | X115: 13 | Y115: Participación | Z115: Fomento a la participación | AA115: 98 | AB115: Sector Gobierno | AC115: 9 | AD115: Espacios y procesos de participación ciudadana fortalecidos | AE115: 35 | AF115: Organizaciones, instancias y expresiones sociales ciudadanas fortalecidas para la participación | AG115: 30 | AH115: Polìtica Pública de Participación Incidente para el Distrito Capital | AI115: 1. Fortalecimiento de la Participación Incidente de la Ciudadanía | AJ115: 0.04978234629 | AK115: 0 | AL115: 0 | AM115: 0 | AN115: 0 | AO115: 0 | AP115: 0 | AQ115: Bajo | AR115: Bajo | AS115: 0.1955679504 | AT115: 0 | AU115: 0 | AV115: 0.1955679504 | AW115: 0 | AX115: 0 | AY115: 0.9655911315 | AZ115: 0 | BA115: 0 | BB115: 13 | BC115: 2017_1 | BE115: 0 | BF115: 0 | BG115: 0 | BH115: 25 | BI115: 25 | BJ115: 0 | BK115: 0 | BL115: 0 | BM115: 0 | BN115: 0 | BO115: 0 | BP115: 0 | BQ115: 0 | BR115: 0 | BS115: 0 | BT115: 0 | BY115: 2864000000 | BZ115: 2864000000 | CA115: 0 | CB115: 0 | CC115: 0 | CD115: 0 | CE115: 0 | CF115: 0 | CG115: 0 | CH115: 0 | CI115: 0 | CJ115: 0 | CK115: 0 | CL115: 0 | CM115: 0 | CT115: Alianza y justicia | CU115: 16 | CV115: Paz, justicia e instituciones sólidas | CW115: 16.1 | CX115: Garantizar el acceso público a la información y proteger las libertades fundamentales, de conformidad con las leyes nacionales y los acuerdos internacionales | CY115: 0.05164533769 | DG115: Anexo 2 (15%)
A116: 115 | B116: 4 | C116: San Cristóbal | D116: 7 | E116: Eje transversal Gobierno legítimo, fortalecimiento local y eficiencia | F116: 45 | G116: Gobernanza e influencia local, regional e internacional | H116: 825 | I116: Realizar 350 Acciones de participación ciudadana desarrolladas por organizaciones comunales, sociales y comunitarias | J116: 148 | K116: Formar a 10.000 ciudadanos en participación | L116: 115 | M116: Vincular a 800 personas en procesos de participación ciudadana y/o control social | N116: 3-3-1-15-07-45-1578-00 | O116: Participación para el bien común en San Cristóbal | P116: PARTICIPACIÓN CIUDADANA Y CONTROL SOCIAL | Q116: Suma | R116: 2 | S116: Vincular | T116: 800 | U116: personas | V116: en procesos de participación ciudadana y/o control social | W116: Vincular 800 personas en procesos de participación ciudadana y/o control social | X116: 13 | Y116: Participación | Z116: Fomento a la participación | AA116: 98 | AB116: Sector Gobierno | AC116: 9 | AD116: Espacios y procesos de participación ciudadana fortalecidos | AE116: 36 | AF116: Personas vinculadas a procesos de participación ciudadana y/o control social | AG116: 30 | AH116: Polìtica Pública de Participación Incidente para el Distrito Capital | AI116: 1. Fortalecimiento de la Participación Incidente de la Ciudadanía | AJ116: 0.001773995383 | AK116: 0 | AL116: 0 | AM116: 0 | AN116: 0 | AO116: 0 | AP116: 0 | AQ116: Bajo | AR116: Bajo | AS116: 0.006969069701 | AT116: 0 | AU116: 0 | AV116: 0.006969069701 | AW116: 0 | AX116: 0 | AY116: 0.03440886854 | AZ116: 0 | BA116: 0 | BB116: 5765 | BC116: 2017_1 | BE116: 0 | BF116: 0 | BG116: 0 | BH116: 200 | BI116: 200 | BJ116: 0 | BK116: 0 | BL116: 0 | BM116: 0 | BN116: 0 | BO116: 0 | BP116: 0 | BQ116: 0 | BR116: 0 | BS116: 0 | BT116: 0 | BY116: 100000000 | BZ116: 100000000 | CA116: 0 | CB116: 0 | CC116: 0 | CD116: 0 | CE116: 0 | CF116: 0 | CG116: 0 | CH116: 0 | CI116: 0 | CJ116: 0 | CK116: 0 | CL116: 0 | CM116: 0 | CT116: Alianza y justicia | CU116: 16 | CV116: Paz, justicia e instituciones sólidas | CW116: 16.1 | CX116: Garantizar el acceso público a la información y proteger las libertades fundamentales, de conformidad con las leyes nacionales y los acuerdos internacionales | CY116: 0.001803258998 | DG116: Anexo 2 (15%)
A117: 116 | B117: 4 | C117: San Cristóbal | D117: 7 | E117: Eje transversal Gobierno legítimo, fortalecimiento local y eficiencia | F117: 45 | G117: Gobernanza e influencia local, regional e internacional | J117: 155-156 | K117: Actualizar Tecnológicamente 5 Sedes administrativas de Alcaldías Locales/Construir 5 sedes administrativas de Alcaldías Locales | L117: 116 | M117: Adecuar 1 sede de gobierno local | N117: 3-3-1-15-07-45-1580-00 | O117: Nueva sede para un mejor servicio al ciudadano | P117: SEDE ADMINISTRATIVA | Q117: Suma | R117: 1 | S117: Adecuar | T117: 1 | U117: sede | V117: de gobierno local | W117: Adecuar 1 sede de gobierno local | X117: 16 | Y117: Proyecto estratégico (Sede administrativa) | Z117: Proyecto estratégico | AA117: 98 | AB117: Sector Gobierno | AC117: 28 | AD117: Infraestructura para la atención de servicio al ciudadano | AE117: 37 | AF117: Sede administrativa local adecuada | AG117: 37 | AH117: Política Pública de transparencia, integridad y no tolerancia con la corrupción en Bogotá | AJ117: 0.07982979224 | AK117: 0 | AL117: 0 | AM117: 0 | AN117: 0 | AO117: 0 | AP117: 0 | AQ117: Bajo | AR117: Bajo | AS117: 0.3136081365 | AT117: 0 | AU117: 0 | AV117: 0.3136081365 | AW117: 0 | AX117: 0 | AY117: 1 | AZ117: 0 | BA117: 0 | BC117: 2017_1 | BE117: 0 | BF117: 0 | BG117: 0 | BH117: 0.17 | BI117: 0.17 | BJ117: 0 | BK117: 0 | BL117: 0 | BM117: 0 | BN117: 0 | BO117: 0 | BP117: 0 | BQ117: 0 | BR117: 0 | BS117: 0 | BT117: 0 | BY117: 3000000000 | BZ117: 3000000000 | CA117: 0 | CB117: 0 | CC117: 0 | CD117: 0 | CE117: 0 | CF117: 0 | CG117: 0 | CH117: 0 | CI117: 0 | CJ117: 0 | CK117: 0 | CL117: 0 | CM117: 0 | CT117: Alianza y justicia | CU117: 16 | CV117: Paz, justicia e instituciones sólidas | CW117: 16.1 | CX117: Garantizar el acceso público a la información y proteger las libertades fundamentales, de conformidad con las leyes nacionales y los acuerdos internacionales | CY117: 0.05132139681 | DG117: Anexo 3 (Construcción Sedes, CAI)
A118: 117 | B118: 5 | C118: Usme | D118: 1 | E118: Pilar Igualdad de calidad de vida | F118: 2 | G118: Desarrollo integral desde la gestación hasta la adolescencia | H118: 10 | I118: Alcanzar 159.054 cupos para la atención integral de niños y niñas de primera infancia con estándares de calidad superiores al 80% en el ámbito institucional. | J118: 382 | K118: 83.000 cupos para la atención integral de niños y niñas de 4 y 5 años | L118: 117 | M118: Adecuar 4 jardines infantiles | N118: 3-3-1-15-01-02-1402-00 | O118: Todos comprometidos con nuestros niños y niñas | P118: ADECUACIÓN DE ESPACIOS | Q118: Suma | R118: 1 | S118: Adecuar | T118: 4 | U118: jardines | V118: infantiles | W118: Adecuar 4 jardines infantiles | X118: 8 | Y118: Dotación | Z118: Dotación pedagógica y adecuación de jardines infantiles | AA118: 92 | AB118: Sector Integración social | AC118: 2 | AD118: Adecuación , habilitación y dotación de jardines | AE118: 1 | AF118: Jardines infantiles adecuados | AG118: 38 | AH118: Política Pública de Infancia y Adolescencia de Bogotá D.C. | AI118: 2. Bogotá construye ciudad con los niños y las niñas y los/las adolescentes | AJ118: 0.002165449599 | AK118: 0 | AL118: 0 | AM118: 0 | AN118: 0 | AO118: 0 | AP118: 0 | AQ118: Bajo | AR118: Bajo | AS118: =AJ118/SUMIF($F$118:$F$152,F118,$AJ$118:$AJ$152) -> 0.1308748412 | AT118: 0 | AU118: 0 | AV118: =AJ118/SUMIF($D$118:$D$152,D118,$AJ$118:$AJ$152) -> 0.01193297018 | AW118: 0 | AX118: 0 | AY118: =AJ118/SUMIF($N$118:$N$152,N118,$AJ$118:$AJ$152) -> 0.1308748412 | AZ118: 0 | BA118: 0 | BC118: 2017_1 | BE118: 0 | BF118: 0 | BG118: 0 | BH118: 1 | BI118: 1 | BJ118: 0 | BK118: 0 | BL118: 0 | BM118: 0 | BN118: 0 | BO118: 0 | BP118: 0 | BQ118: 0 | BR118: 0 | BS118: 0 | BT118: 0 | BY118: 119000000 | BZ118: 119000000 | CA118: 0 | CB118: 0 | CC118: 0 | CD118: 0 | CE118: 0 | CF118: 0 | CG118: 0 | CH118: 0 | CI118: 0 | CJ118: 0 | CK118: 0 | CL118: 0 | CM118: 0 | CT118: Personas | CU118: 4 | CV118: Educación de calidad | CW118: 4.2 | CX118: De aquí a 2030, asegurar que todas las niñas y todos los niños tengan acceso a servicios de atención y desarrollo en la primera infancia y educación preescolar de calidad, a fin de que estén preparados para la enseñanza primaria. | CY118: 0.002131072682 | DG118: Anexo 2 (15%)
A119: 118 | B119: 5 | C119: Usme | D119: 1 | E119: Pilar Igualdad de calidad de vida | F119: 2 | G119: Desarrollo integral desde la gestación hasta la adolescencia | H119: 10 | I119: Alcanzar 159.054 cupos para la atención integral de niños y niñas de primera infancia con estándares de calidad superiores al 80% en el ámbito institucional. | J119: 382 | K119: 83.000 cupos para la atención integral de niños y niñas de 4 y 5 años | L119: 118 | M119: Dotar 137 jardines infantiles para la primera infancia en la localidad. | N119: 3-3-1-15-01-02-1402-00 | O119: Todos comprometidos con nuestros niños y niñas | P119: DOTACIÓN | Q119: Suma | R119: 2 | S119: Dotar | T119: 137 | U119: jardines | V119: infantiles para la primera infancia en la localidad | W119: Dotar 137 jardines infantiles para la primera infancia en la localidad | X119: 8 | Y119: Dotación | Z119: Dotación pedagógica y adecuación de jardines infantiles | AA119: 92 | AB119: Sector Integración social | AC119: 2 | AD119: Adecuación , habilitación y dotación de jardines | AE119: 2 | AF119: Jardines infantiles dotados | AG119: 38 | AH119: Política Pública de Infancia y Adolescencia de Bogotá D.C. | AI119: 2. Bogotá construye ciudad con los niños y las niñas y los/las adolescentes | AJ119: 0.01044046161 | AK119: 0 | AL119: 0 | AM119: 0 | AN119: 0 | AO119: 0 | AP119: 0 | AQ119: Bajo | AR119: Bajo | AS119: =AJ119/SUMIF($F$118:$F$152,F119,$AJ$118:$AJ$152) -> 0.6309977184 | AT119: 0 | AU119: 0 | AV119: =AJ119/SUMIF($D$118:$D$152,D119,$AJ$118:$AJ$152) -> 0.05753341806 | AW119: 0 | AX119: 0 | AY119: =AJ119/SUMIF($N$118:$N$152,N119,$AJ$118:$AJ$152) -> 0.6309977184 | AZ119: 0 | BA119: 0 | BB119: 9 | BC119: 2017_1 | BE119: 0 | BF119: 0 | BG119: 0 | BH119: 34 | BI119: 34 | BJ119: 0 | BK119: 0 | BL119: 0 | BM119: 0 | BN119: 0 | BO119: 0 | BP119: 0 | BQ119: 0 | BR119: 0 | BS119: 0 | BT119: 0 | BY119: 822489000 | BZ119: 822489000 | CA119: 0 | CB119: 0 | CC119: 0 | CD119: 0 | CE119: 0 | CF119: 0 | CG119: 0 | CH119: 0 | CI119: 0 | CJ119: 0 | CK119: 0 | CL119: 0 | CM119: 0 | CT119: Personas | CU119: 4 | CV119: Educación de calidad | CW119: 4.2 | CX119: De aquí a 2030, asegurar que todas las niñas y todos los niños tengan acceso a servicios de atención y desarrollo en la primera infancia y educación preescolar de calidad, a fin de que estén preparados para la enseñanza primaria. | CY119: 0.01472927596 | DG119: Anexo 2 (15%)
A120: 119 | B120: 5 | C120: Usme | D120: 1 | E120: Pilar Igualdad de calidad de vida | F120: 2 | G120: Desarrollo integral desde la gestación hasta la adolescencia | H120: 6 | I120: Alcanzar 232.687 cupos de ámbitos institucionales y de los programas del orden nacional relacionados con la atención integral de niños, niñas y de primera infancia, en el marco de la RIA. | J120: 298 | K120: 76.241 cupos para atender niños y niñas de 0 a 5 años en el marco de la Ruta Integral de Atenciones | L120: 119 | M120: Vincular 800 personas en procesos de protección, prevención de maltrato y de todas las formas de trabajo infantil | N120: 3-3-1-15-01-02-1402-00 | O120: Todos comprometidos con nuestros niños y niñas | P120: BUEN TRATO INFANTIL | Q120: Suma | R120: 3 | S120: Vincular | T120: 800 | U120: personas | V120: en procesos de protección, prevención de maltrato y de todas las formas de trabajo infantil | W120: Vincular 800 personas en procesos de protección, prevención de maltrato y de todas las formas de trabajo infantil | X120: 7 | Y120: Atención a población vulnerable | Z120: Prevención de violencia infantil y promoción del buen trato | AA120: 92 | AB120: Sector Integración social | AC120: 1 | AD120: Protección integral a niños y niñas y adolescentes | AE120: 3 | AF120: Personas vinculadas a acciones de promoción del buen trato infantil | AG120: 38 | AH120: Política Pública de Infancia y Adolescencia de Bogotá D.C. | AI120: 1. Niños, niñas y adolescentes en ciudadanía plena | AJ120: 0.003940046578 | AK120: 0 | AL120: 0 | AM120: 0 | AN120: 0 | AO120: 0 | AP120: 0 | AQ120: Bajo | AR120: Bajo | AS120: 0.2381274404 | AT120: 0 | AU120: 0 | AV120: 0.02171210003 | AW120: 0 | AX120: 0 | AY120: 0.2381274404 | AZ120: 0 | BA120: 0 | BB120: 3608.5 | BC120: 2017_1 | BE120: 0 | BF120: 0 | BG120: 0 | BH120: 200 | BI120: 200 | BJ120: 0 | BK120: 0 | BL120: 0 | BM120: 0 | BN120: 0 | BO120: 0 | BP120: 0 | BQ120: 0 | BR120: 0 | BS120: 0 | BT120: 0 | BY120: 216515000 | BZ120: 216515000 | CA120: 0 | CB120: 0 | CC120: 0 | CD120: 0 | CE120: 0 | CF120: 0 | CG120: 0 | CH120: 0 | CI120: 0 | CJ120: 0 | CK120: 0 | CL120: 0 | CM120: 0 | CT120: Personas | CU120: 4 | CV120: Educación de calidad | CW120: 4.2 | CX120: De aquí a 2030, asegurar que todas las niñas y todos los niños tengan acceso a servicios de atención y desarrollo en la primera infancia y educación preescolar de calidad, a fin de que estén preparados para la enseñanza primaria. | CY120: 0.00387738825 | DG120: Anexo 2 (15%)
A121: 120 | B121: 5 | C121: Usme | D121: 1 | E121: Pilar Igualdad de calidad de vida | F121: 3 | G121: Igualdad y autonomía para una Bogotá incluyente | H121: 27 | I121: Incrementar en un 25% la vinculación de personas mayores en procesos de fortalecimiento de sus proyectos de vida a través de los servicios de la SDIS | J121: 306 | K121: Entregar a 90.318 personas mayores en situación de vulnerabilidad socioeconómica apoyos económicos | L121: 120 | M121: Entregar 3107 Subsidios TIPO C a personas mayores por anualidad | N121: 3-3-1-15-01-03-1403-00 | O121: Apoyo económico para un envejecimiento digno e incluyente | P121: SUBSIDIO TIPO C | Q121: Constante | R121: 1 | S121: Entregar | T121: 3107 | U121: subisidios tipo c | V121: a personas mayores por anualidad | W121: Entregar 3107 subisidios tipo c a personas mayores por anualidad | X121: 5 | Y121: Atención a población vulnerable_Subsidio C | Z121: Subsidio C a persona mayor | AA121: 92 | AB121: Sector Integración social | AC121: 2 | AD121: Protección integral a personas y familias en situación de vulneración | AE121: 4 | AF121: Personas con subsidio tipo C beneficiadas | AG121: 39 | AH121: Política Pública Social para el Envejecimiento y la Vejez en el D.C. 2010 - 2026 | AI121: 2. Vivir bien en la vejez | AJ121: 0.09183445311 | AK121: 776.75 | AL121: 0.25 | AM121: 0.02295861328 | AN121: 776.75 | AO121: 0.25 | AP121: 0.02295861328 | AQ121: Bajo | AR121: Bajo | AS121: 0.9198152071 | AT121: 0.2299538018 | AU121: 0.2299538018 | AV121: 0.5060647871 | AW121: 0.1265161968 | AX121: 0.1265161968 | AY121: 1 | AZ121: 0.25 | BA121: 0.25 | BB121: 2183.5 | BC121: 2017_1 | BE121: 0 | BF121: 0 | BG121: 0 | BH121: 3107 | BI121: 3107 | BJ121: 0 | BK121: 0 | BL121: 0 | BM121: 3107 | BN121: 0 | BO121: 0 | BP121: 0 | BQ121: 3107 | BR121: 0 | BS121: 0 | BT121: 0 | BY121: 5031111000 | BZ121: 5031111000 | CA121: 0 | CB121: 0 | CC121: 0 | CD121: 4495440000 | CE121: 0 | CF121: 0 | CG121: 0 | CH121: 4495440000 | CI121: 656974025 | CJ121: 656974025 | CK121: 0 | CL121: 0 | CM121: 0 | CT121: Personas | CU121: 1 | CV121: Fin de la pobreza | CW121: 1.2 | CX121: De aquí a 2030, reducir al menos a la mitad la proporción de hombres, mujeres y niños de todas las edades que viven en la pobreza en todas sus dimensiones con arreglo a las definiciones nacionales | CY121: 0.09009801018 | DG121: Anexo 1 (85%)
A122: 121 | B122: 5 | C122: Usme | D122: 1 | E122: Pilar Igualdad de calidad de vida | F122: 3 | G122: Igualdad y autonomía para una Bogotá incluyente | H122: 34 | I122: Incrementar a 2.000 personas con discapacidad con procesos de inclusión efectivos en el Distrito. | L122: 121 | M122: Beneficiar 800 Personas de la localidad en condición de discapacidad con ayudas técnicas NO cubiertas por el POS | N122: 3-3-1-15-01-03-1404-00 | O122: Apoyo oportuno a personas en situación de discapacidad | P122: AYUDAS TÉCNICAS | Q122: Suma | R122: 1 | S122: Beneficiar | T122: 800 | U122: personas | V122: de la localidad en condición de discapacidad con ayudas técnicas NO cubiertas por el POS | W122: Beneficiar 800 personas de la localidad en condición de discapacidad con ayudas técnicas NO cubiertas por el POS | X122: 7 | Y122: Atención a población vulnerable | Z122: Ayudas Técnicas a personas con discapacidad (no incluidas en el POS) | AA122: 91 | AB122: Sector Salud | AC122: 3 | AD122: Promoción, prevención e intervención en salud | AE122: 5 | AF122: Personas beneficiadas con ayudas técnicas no POS | AG122: 40 | AH122: Política Pública de Discapacidad para el Distrito Capital | AI122: 1. Desarrollo de capacidades y oportunidades | AJ122: 0.008005658687 | AK122: 0 | AL122: 0 | AM122: 0 | AN122: 0 | AO122: 0 | AP122: 0 | AQ122: Bajo | AR122: Bajo | AS122: 0.0801847929 | AT122: 0 | AU122: 0 | AV122: 0.04411614401 | AW122: 0 | AX122: 0 | AY122: 1 | AZ122: 0 | BA122: 0 | BB122: 204 | BC122: 2017_1 | BE122: 0 | BF122: 0 | BG122: 0 | BH122: 200 | BI122: 200 | BJ122: 0 | BK122: 0 | BL122: 0 | BM122: 0 | BN122: 0 | BO122: 0 | BP122: 0 | BQ122: 0 | BR122: 0 | BS122: 0 | BT122: 0 | BY122: 439931000 | BZ122: 439931000 | CA122: 0 | CB122: 0 | CC122: 0 | CD122: 0 | CE122: 0 | CF122: 0 | CG122: 0 | CH122: 0 | CI122: 0 | CJ122: 0 | CK122: 0 | CL122: 0 | CM122: 0 | CT122: Personas | CU122: 1 | CV122: Fin de la pobreza | CW122: 1.3 | CX122: Implementar a nivel nacional sistemas y medidas apropiados de protección social para todos, incluidos niveles mínimos, y, de aquí a 2030, lograr una amplia cobertura de las personas pobres y vulnerables | CY122: 0.007878360807 | DG122: Anexo 2 (15%)
A123: 122 | B123: 5 | C123: Usme | D123: 1 | E123: Pilar Igualdad de calidad de vida | F123: 4 | G123: Familias protegidas y adaptadas al cambio climático | H123: 50 | I123: Beneficiar a 8.750 familias localizadas en zonas de riesgo mitigable por fenómenos de remoción en masa, con obras de mitigación | J123: 432 | K123: Construcción de 16 obras de mitigación | L123: 122 | M123: Construir 4 Obras de mitigación para puntos críticos que presenten afectación por problemas de inundación, deslizamiento y remoción en masa | N123: 3-3-1-15-01-04-1405-00 | O123: Usme consciente de su territorio y riesgos | P123: OBRAS DE MITIGACIÓN | Q123: Suma | R123: 1 | S123: Construir | T123: 4 | U123: obras | V123: de mitigación para puntos críticos que presenten afectación por problemas de inundación, deslizamiento y remoción en masa | W123: Construir 4 obras de mitigación para puntos críticos que presenten afectación por problemas de inundación, deslizamiento y remoción en masa | X123: 9 | Y123: Obras prioritarias de mitigación o prevención de riesgo | Z123: Obras de intervención de puntos críticos identificados con problemas de inundación, deslizamiento y remoción en masa | AA123: 94 | AB123: Sector Ambiente | AC123: 24 | AD123: Gestión para la prevención y mitigación del riesgo | AE123: 6 | AF123: Obras de mitigación de riesgo realizadas | AG123: 32 | AH123: Plan Distrital para la Prevención y Atención de Emergencias para Bogotá D.C." | AI123: 3. Mitigación de riesgos | AJ123: 0.01642213452 | AK123: 1 | AL123: 0.25 | AM123: 0.00410553363 | AN123: 0 | AO123: 0 | AP123: 0 | AQ123: Bajo | AR123: Bajo | AS123: 1 | AT123: 0.25 | AU123: 0 | AV123: 0.09049614527 | AW123: 0.02262403632 | AX123: 0 | AY123: 1 | AZ123: 0.25 | BA123: 0 | BC123: 2017_1 | BE123: 0 | BF123: 0 | BG123: 0 | BH123: 1 | BI123: 1 | BJ123: 0 | BK123: 0 | BL123: 0 | BM123: 1 | BN123: 0 | BO123: 0 | BP123: 0 | BQ123: 0 | BR123: 0 | BS123: 0 | BT123: 0 | BY123: 877144000 | BZ123: 877144000 | CA123: 0 | CB123: 0 | CC123: 0 | CD123: 454216171 | CE123: 0 | CF123: 0 | CG123: 0 | CH123: 454216171 | CI123: 0 | CJ123: 0 | CK123: 0 | CL123: 0 | CM123: 0 | CT123: Personas | CU123: 11 | CV123: Ciudades y comunidades sostenibles | CW123: 11.5 | CX123: De aquí a 2030, reducir significativamente el número de muertes causadas por los desastres, incluidos los relacionados con el agua, y de personas afectadas por ellos, y reducir considerablemente las pérdidas económicas directas provocadas por los desastres en comparación con el producto interno bruto mundial, haciendo especial hincapié en la protección de los pobres y las personas en situaciones de vulnerabilidad | CY123: 0.0157080472 | DG123: Anexo 2 (15%)
